{"text_format":"1","workbook":"xlsx","n_sheets":3,"sheets":["公表名簿（県内建設)","公表名簿（県外建設)","等級(21-4月現在)"],"not_rendered":{"charts":0,"images":0,"macros":1,"external_links":0,"defined_names":4,"comments":0,"pivot_tables":0},"unopened":[],"bounds":{"document_bytes":16777216,"sheet_cells":100000,"rows_first":2000,"rows_last":500,"rows_between":2000,"halvings":0,"cell_chars":16384,"cell_head_chars":4096},"cells_cut":0,"cells_raw":0,"read":"whole","date_system":"1900"}

{"sheet":"公表名簿（県内建設)","index":0,"n_rows":89,"n_cols":37,"rows_kept":89,"cut":false,"hidden":false,"merged":[[0,6,0,11],[21,37,21,39]]}
["八匝水道企業団建設工事等入札参加業者資格者名簿（県内建設）　",null,null,null,null,null,{"$f":"TODAY()","v":"2025-10-21"}]
["番号","区域","商号又は名称","所在地","代表者氏名","電話番号","ＦＡＸ","許可区分(土木)","土木一式","許可区分（建築）","建築一式","許可区分（電気）","電気","許可区分（管）","管","許可区分(ほ装)","ほ装","許可区分（塗装）","塗装","許可区分（防水）","防水","許可区分（機械器具）","機械器具設置","許可区分(電気)","電気通信","許可区分（水道施設）","水道施設","土木一式(等級)","建築一式(等級)","電気(等級)","管(等級)","ほ装(等級)","塗装(等級)","防水(等級)","機械器具設置(等級)","電気通信(等級)","水道施設(等級)"]
[1,"県内","荏原実業株式会社　東関東支社","千葉市中央区新田町５番１０号わかちく千葉ビル","関口　哲夫","043-241-8311","043-243-9178","特定",1087,null,null,"特定",1349,"特定",1291,null,null,"特定",990,null,null,"特定",1486,null,null,"特定",1320,{"$f":"IF(NOT(ISBLANK(テーブル63[[#This Row],[土木一式]])),VLOOKUP(テーブル63[[#This Row],[土木一式]],土木[],2,TRUE), IF(NOT(ISBLANK(テーブル63[[#This Row],[許可区分(土木)]])),\"D\",\"-\"))","v":"A"},{"$f":"IF(NOT(ISBLANK(テーブル63[[#This Row],[建築一式]])),VLOOKUP(テーブル63[[#This Row],[建築一式]],建築[],2,TRUE), IF(NOT(ISBLANK(テーブル63[[#This Row],[許可区分（建築）]])),\"D\",\"-\"))","v":"-"},{"$f":"IF(NOT(ISBLANK(テーブル63[[#This Row],[電気]])),VLOOKUP(テーブル63[[#This Row],[電気]],電気[],2,TRUE), IF(NOT(ISBLANK(テーブル63[[#This Row],[許可区分（電気）]])),\"D\",\"-\"))","v":"A"},{"$f":"IF(NOT(ISBLANK(テーブル63[[#This Row],[管]])),VLOOKUP(テーブル63[[#This Row],[管]],管[],2,TRUE), IF(NOT(ISBLANK(テーブル63[[#This Row],[許可区分（管）]])),\"D\",\"-\"))","v":"A"},{"$f":"IF(NOT(ISBLANK(テーブル63[[#This Row],[ほ装]])),VLOOKUP(テーブル63[[#This Row],[ほ装]],ほ装[],2,TRUE), IF(NOT(ISBLANK(テーブル63[[#This Row],[許可区分(ほ装)]])),\"D\",\"-\"))","v":"-"},{"$f":"IF(NOT(ISBLANK(テーブル63[[#This Row],[塗装]])),VLOOKUP(テーブル63[[#This Row],[塗装]],塗装[],2,TRUE), IF(NOT(ISBLANK(テーブル63[[#This Row],[許可区分（塗装）]])),\"D\",\"-\"))","v":"A"},{"$f":"IF(NOT(ISBLANK(テーブル63[[#This Row],[防水]])),VLOOKUP(テーブル63[[#This Row],[防水]],塗装[],2,TRUE), IF(NOT(ISBLANK(テーブル63[[#This Row],[許可区分（防水）]])),\"D\",\"-\"))","v":"-"},{"$f":"IF(NOT(ISBLANK(テーブル63[[#This Row],[機械器具設置]])),VLOOKUP(テーブル63[[#This Row],[機械器具設置]],塗装[],2,TRUE), IF(NOT(ISBLANK(テーブル63[[#This Row],[許可区分（機械器具）]])),\"D\",\"-\"))","v":"A"},{"$f":"IF(NOT(ISBLANK(テーブル63[[#This Row],[電気通信]])),VLOOKUP(テーブル63[[#This Row],[電気通信]],電気[],2,TRUE), IF(NOT(ISBLANK(テーブル63[[#This Row],[許可区分(電気)]])),\"D\",\"-\"))","v":"-"},{"$f":"IF(NOT(ISBLANK(テーブル63[[#This Row],[水道施設]])),VLOOKUP(テーブル63[[#This Row],[水道施設]],水道[],2,TRUE), IF(NOT(ISBLANK(テーブル63[[#This Row],[許可区分（水道施設）]])),\"D\",\"-\"))","v":"A"}]
[2,"県内","前田建設工業株式会社","千葉市中央区中央一丁目１１番１号","渡辺　賢太朗","043-222-9417","043-227-3251","特定",2004,"特定",2008,null,null,null,null,null,null,null,null,null,null,null,null,null,null,"特定",1601,{"$f":"IF(NOT(ISBLANK(テーブル63[[#This Row],[土木一式]])),VLOOKUP(テーブル63[[#This Row],[土木一式]],土木[],2,TRUE), IF(NOT(ISBLANK(テーブル63[[#This Row],[許可区分(土木)]])),\"D\",\"-\"))","v":"A"},{"$f":"IF(NOT(ISBLANK(テーブル63[[#This Row],[建築一式]])),VLOOKUP(テーブル63[[#This Row],[建築一式]],建築[],2,TRUE), IF(NOT(ISBLANK(テーブル63[[#This Row],[許可区分（建築）]])),\"D\",\"-\"))","v":"A"},{"$f":"IF(NOT(ISBLANK(テーブル63[[#This Row],[電気]])),VLOOKUP(テーブル63[[#This Row],[電気]],電気[],2,TRUE), IF(NOT(ISBLANK(テーブル63[[#This Row],[許可区分（電気）]])),\"D\",\"-\"))","v":"-"},{"$f":"IF(NOT(ISBLANK(テーブル63[[#This Row],[管]])),VLOOKUP(テーブル63[[#This Row],[管]],管[],2,TRUE), IF(NOT(ISBLANK(テーブル63[[#This Row],[許可区分（管）]])),\"D\",\"-\"))","v":"-"},{"$f":"IF(NOT(ISBLANK(テーブル63[[#This Row],[ほ装]])),VLOOKUP(テーブル63[[#This Row],[ほ装]],ほ装[],2,TRUE), IF(NOT(ISBLANK(テーブル63[[#This Row],[許可区分(ほ装)]])),\"D\",\"-\"))","v":"-"},{"$f":"IF(NOT(ISBLANK(テーブル63[[#This Row],[塗装]])),VLOOKUP(テーブル63[[#This Row],[塗装]],塗装[],2,TRUE), IF(NOT(ISBLANK(テーブル63[[#This Row],[許可区分（塗装）]])),\"D\",\"-\"))","v":"-"},{"$f":"IF(NOT(ISBLANK(テーブル63[[#This Row],[防水]])),VLOOKUP(テーブル63[[#This Row],[防水]],塗装[],2,TRUE), IF(NOT(ISBLANK(テーブル63[[#This Row],[許可区分（防水）]])),\"D\",\"-\"))","v":"-"},{"$f":"IF(NOT(ISBLANK(テーブル63[[#This Row],[機械器具設置]])),VLOOKUP(テーブル63[[#This Row],[機械器具設置]],塗装[],2,TRUE), IF(NOT(ISBLANK(テーブル63[[#This Row],[許可区分（機械器具）]])),\"D\",\"-\"))","v":"-"},{"$f":"IF(NOT(ISBLANK(テーブル63[[#This Row],[電気通信]])),VLOOKUP(テーブル63[[#This Row],[電気通信]],電気[],2,TRUE), IF(NOT(ISBLANK(テーブル63[[#This Row],[許可区分(電気)]])),\"D\",\"-\"))","v":"-"},{"$f":"IF(NOT(ISBLANK(テーブル63[[#This Row],[水道施設]])),VLOOKUP(テーブル63[[#This Row],[水道施設]],水道[],2,TRUE), IF(NOT(ISBLANK(テーブル63[[#This Row],[許可区分（水道施設）]])),\"D\",\"-\"))","v":"A"}]
[3,"県内","遠藤建設株式会社","旭市後草７５番地","伊藤　幸夫","0479-55-5171","0479-55-4808","特定",1029,"一般",714,null,null,"一般",714,"特定",856,null,null,null,null,null,null,null,null,"特定",884,{"$f":"IF(NOT(ISBLANK(テーブル63[[#This Row],[土木一式]])),VLOOKUP(テーブル63[[#This Row],[土木一式]],土木[],2,TRUE), IF(NOT(ISBLANK(テーブル63[[#This Row],[許可区分(土木)]])),\"D\",\"-\"))","v":"A"},{"$f":"IF(NOT(ISBLANK(テーブル63[[#This Row],[建築一式]])),VLOOKUP(テーブル63[[#This Row],[建築一式]],建築[],2,TRUE), IF(NOT(ISBLANK(テーブル63[[#This Row],[許可区分（建築）]])),\"D\",\"-\"))","v":"B"},{"$f":"IF(NOT(ISBLANK(テーブル63[[#This Row],[電気]])),VLOOKUP(テーブル63[[#This Row],[電気]],電気[],2,TRUE), IF(NOT(ISBLANK(テーブル63[[#This Row],[許可区分（電気）]])),\"D\",\"-\"))","v":"-"},{"$f":"IF(NOT(ISBLANK(テーブル63[[#This Row],[管]])),VLOOKUP(テーブル63[[#This Row],[管]],管[],2,TRUE), IF(NOT(ISBLANK(テーブル63[[#This Row],[許可区分（管）]])),\"D\",\"-\"))","v":"A"},{"$f":"IF(NOT(ISBLANK(テーブル63[[#This Row],[ほ装]])),VLOOKUP(テーブル63[[#This Row],[ほ装]],ほ装[],2,TRUE), IF(NOT(ISBLANK(テーブル63[[#This Row],[許可区分(ほ装)]])),\"D\",\"-\"))","v":"A"},{"$f":"IF(NOT(ISBLANK(テーブル63[[#This Row],[塗装]])),VLOOKUP(テーブル63[[#This Row],[塗装]],塗装[],2,TRUE), IF(NOT(ISBLANK(テーブル63[[#This Row],[許可区分（塗装）]])),\"D\",\"-\"))","v":"-"},{"$f":"IF(NOT(ISBLANK(テーブル63[[#This Row],[防水]])),VLOOKUP(テーブル63[[#This Row],[防水]],塗装[],2,TRUE), IF(NOT(ISBLANK(テーブル63[[#This Row],[許可区分（防水）]])),\"D\",\"-\"))","v":"-"},{"$f":"IF(NOT(ISBLANK(テーブル63[[#This Row],[機械器具設置]])),VLOOKUP(テーブル63[[#This Row],[機械器具設置]],塗装[],2,TRUE), IF(NOT(ISBLANK(テーブル63[[#This Row],[許可区分（機械器具）]])),\"D\",\"-\"))","v":"-"},{"$f":"IF(NOT(ISBLANK(テーブル63[[#This Row],[電気通信]])),VLOOKUP(テーブル63[[#This Row],[電気通信]],電気[],2,TRUE), IF(NOT(ISBLANK(テーブル63[[#This Row],[許可区分(電気)]])),\"D\",\"-\"))","v":"-"},{"$f":"IF(NOT(ISBLANK(テーブル63[[#This Row],[水道施設]])),VLOOKUP(テーブル63[[#This Row],[水道施設]],水道[],2,TRUE), IF(NOT(ISBLANK(テーブル63[[#This Row],[許可区分（水道施設）]])),\"D\",\"-\"))","v":"A"}]
[4,"県内","株式会社ナカボーテック東関東支店","市原市五井金杉2丁目2番地2","矢島　秀治","0436-23-4711","0436-23-4716","特定",1181,null,null,"特定",1307,null,null,null,null,"特定",1040,null,null,null,null,null,null,null,null,{"$f":"IF(NOT(ISBLANK(テーブル63[[#This Row],[土木一式]])),VLOOKUP(テーブル63[[#This Row],[土木一式]],土木[],2,TRUE), IF(NOT(ISBLANK(テーブル63[[#This Row],[許可区分(土木)]])),\"D\",\"-\"))","v":"A"},{"$f":"IF(NOT(ISBLANK(テーブル63[[#This Row],[建築一式]])),VLOOKUP(テーブル63[[#This Row],[建築一式]],建築[],2,TRUE), IF(NOT(ISBLANK(テーブル63[[#This Row],[許可区分（建築）]])),\"D\",\"-\"))","v":"-"},{"$f":"IF(NOT(ISBLANK(テーブル63[[#This Row],[電気]])),VLOOKUP(テーブル63[[#This Row],[電気]],電気[],2,TRUE), IF(NOT(ISBLANK(テーブル63[[#This Row],[許可区分（電気）]])),\"D\",\"-\"))","v":"A"},{"$f":"IF(NOT(ISBLANK(テーブル63[[#This Row],[管]])),VLOOKUP(テーブル63[[#This Row],[管]],管[],2,TRUE), IF(NOT(ISBLANK(テーブル63[[#This Row],[許可区分（管）]])),\"D\",\"-\"))","v":"-"},{"$f":"IF(NOT(ISBLANK(テーブル63[[#This Row],[ほ装]])),VLOOKUP(テーブル63[[#This Row],[ほ装]],ほ装[],2,TRUE), IF(NOT(ISBLANK(テーブル63[[#This Row],[許可区分(ほ装)]])),\"D\",\"-\"))","v":"-"},{"$f":"IF(NOT(ISBLANK(テーブル63[[#This Row],[塗装]])),VLOOKUP(テーブル63[[#This Row],[塗装]],塗装[],2,TRUE), IF(NOT(ISBLANK(テーブル63[[#This Row],[許可区分（塗装）]])),\"D\",\"-\"))","v":"A"},{"$f":"IF(NOT(ISBLANK(テーブル63[[#This Row],[防水]])),VLOOKUP(テーブル63[[#This Row],[防水]],塗装[],2,TRUE), IF(NOT(ISBLANK(テーブル63[[#This Row],[許可区分（防水）]])),\"D\",\"-\"))","v":"-"},{"$f":"IF(NOT(ISBLANK(テーブル63[[#This Row],[機械器具設置]])),VLOOKUP(テーブル63[[#This Row],[機械器具設置]],塗装[],2,TRUE), IF(NOT(ISBLANK(テーブル63[[#This Row],[許可区分（機械器具）]])),\"D\",\"-\"))","v":"-"},{"$f":"IF(NOT(ISBLANK(テーブル63[[#This Row],[電気通信]])),VLOOKUP(テーブル63[[#This Row],[電気通信]],電気[],2,TRUE), IF(NOT(ISBLANK(テーブル63[[#This Row],[許可区分(電気)]])),\"D\",\"-\"))","v":"-"},{"$f":"IF(NOT(ISBLANK(テーブル63[[#This Row],[水道施設]])),VLOOKUP(テーブル63[[#This Row],[水道施設]],水道[],2,TRUE), IF(NOT(ISBLANK(テーブル63[[#This Row],[許可区分（水道施設）]])),\"D\",\"-\"))","v":"-"}]
[5,"県内","株式会社今井組","銚子市長塚町4丁目1157番地","今井　泰雄","0479-23-6588","0479-25-2075","特定",1085,null,null,null,null,null,null,"特定",863,null,null,null,null,null,null,null,null,"特定",809,{"$f":"IF(NOT(ISBLANK(テーブル63[[#This Row],[土木一式]])),VLOOKUP(テーブル63[[#This Row],[土木一式]],土木[],2,TRUE), IF(NOT(ISBLANK(テーブル63[[#This Row],[許可区分(土木)]])),\"D\",\"-\"))","v":"A"},{"$f":"IF(NOT(ISBLANK(テーブル63[[#This Row],[建築一式]])),VLOOKUP(テーブル63[[#This Row],[建築一式]],建築[],2,TRUE), IF(NOT(ISBLANK(テーブル63[[#This Row],[許可区分（建築）]])),\"D\",\"-\"))","v":"-"},{"$f":"IF(NOT(ISBLANK(テーブル63[[#This Row],[電気]])),VLOOKUP(テーブル63[[#This Row],[電気]],電気[],2,TRUE), IF(NOT(ISBLANK(テーブル63[[#This Row],[許可区分（電気）]])),\"D\",\"-\"))","v":"-"},{"$f":"IF(NOT(ISBLANK(テーブル63[[#This Row],[管]])),VLOOKUP(テーブル63[[#This Row],[管]],管[],2,TRUE), IF(NOT(ISBLANK(テーブル63[[#This Row],[許可区分（管）]])),\"D\",\"-\"))","v":"-"},{"$f":"IF(NOT(ISBLANK(テーブル63[[#This Row],[ほ装]])),VLOOKUP(テーブル63[[#This Row],[ほ装]],ほ装[],2,TRUE), IF(NOT(ISBLANK(テーブル63[[#This Row],[許可区分(ほ装)]])),\"D\",\"-\"))","v":"A"},{"$f":"IF(NOT(ISBLANK(テーブル63[[#This Row],[塗装]])),VLOOKUP(テーブル63[[#This Row],[塗装]],塗装[],2,TRUE), IF(NOT(ISBLANK(テーブル63[[#This Row],[許可区分（塗装）]])),\"D\",\"-\"))","v":"-"},{"$f":"IF(NOT(ISBLANK(テーブル63[[#This Row],[防水]])),VLOOKUP(テーブル63[[#This Row],[防水]],塗装[],2,TRUE), IF(NOT(ISBLANK(テーブル63[[#This Row],[許可区分（防水）]])),\"D\",\"-\"))","v":"-"},{"$f":"IF(NOT(ISBLANK(テーブル63[[#This Row],[機械器具設置]])),VLOOKUP(テーブル63[[#This Row],[機械器具設置]],塗装[],2,TRUE), IF(NOT(ISBLANK(テーブル63[[#This Row],[許可区分（機械器具）]])),\"D\",\"-\"))","v":"-"},{"$f":"IF(NOT(ISBLANK(テーブル63[[#This Row],[電気通信]])),VLOOKUP(テーブル63[[#This Row],[電気通信]],電気[],2,TRUE), IF(NOT(ISBLANK(テーブル63[[#This Row],[許可区分(電気)]])),\"D\",\"-\"))","v":"-"},{"$f":"IF(NOT(ISBLANK(テーブル63[[#This Row],[水道施設]])),VLOOKUP(テーブル63[[#This Row],[水道施設]],水道[],2,TRUE), IF(NOT(ISBLANK(テーブル63[[#This Row],[許可区分（水道施設）]])),\"D\",\"-\"))","v":"A"}]
[6,"県内","大崎電設株式会社","市原市八幡北町1丁目11番地4","武田　一衛","0436-43-2611","0436-43-5882",null,null,null,null,"特定",957,"一般",709,null,null,null,null,null,null,"一般",689,"特定",722,null,null,{"$f":"IF(NOT(ISBLANK(テーブル63[[#This Row],[土木一式]])),VLOOKUP(テーブル63[[#This Row],[土木一式]],土木[],2,TRUE), IF(NOT(ISBLANK(テーブル63[[#This Row],[許可区分(土木)]])),\"D\",\"-\"))","v":"-"},{"$f":"IF(NOT(ISBLANK(テーブル63[[#This Row],[建築一式]])),VLOOKUP(テーブル63[[#This Row],[建築一式]],建築[],2,TRUE), IF(NOT(ISBLANK(テーブル63[[#This Row],[許可区分（建築）]])),\"D\",\"-\"))","v":"-"},{"$f":"IF(NOT(ISBLANK(テーブル63[[#This Row],[電気]])),VLOOKUP(テーブル63[[#This Row],[電気]],電気[],2,TRUE), IF(NOT(ISBLANK(テーブル63[[#This Row],[許可区分（電気）]])),\"D\",\"-\"))","v":"A"},{"$f":"IF(NOT(ISBLANK(テーブル63[[#This Row],[管]])),VLOOKUP(テーブル63[[#This Row],[管]],管[],2,TRUE), IF(NOT(ISBLANK(テーブル63[[#This Row],[許可区分（管）]])),\"D\",\"-\"))","v":"A"},{"$f":"IF(NOT(ISBLANK(テーブル63[[#This Row],[ほ装]])),VLOOKUP(テーブル63[[#This Row],[ほ装]],ほ装[],2,TRUE), IF(NOT(ISBLANK(テーブル63[[#This Row],[許可区分(ほ装)]])),\"D\",\"-\"))","v":"-"},{"$f":"IF(NOT(ISBLANK(テーブル63[[#This Row],[塗装]])),VLOOKUP(テーブル63[[#This Row],[塗装]],塗装[],2,TRUE), IF(NOT(ISBLANK(テーブル63[[#This Row],[許可区分（塗装）]])),\"D\",\"-\"))","v":"-"},{"$f":"IF(NOT(ISBLANK(テーブル63[[#This Row],[防水]])),VLOOKUP(テーブル63[[#This Row],[防水]],塗装[],2,TRUE), IF(NOT(ISBLANK(テーブル63[[#This Row],[許可区分（防水）]])),\"D\",\"-\"))","v":"-"},{"$f":"IF(NOT(ISBLANK(テーブル63[[#This Row],[機械器具設置]])),VLOOKUP(テーブル63[[#This Row],[機械器具設置]],塗装[],2,TRUE), IF(NOT(ISBLANK(テーブル63[[#This Row],[許可区分（機械器具）]])),\"D\",\"-\"))","v":"C"},{"$f":"IF(NOT(ISBLANK(テーブル63[[#This Row],[電気通信]])),VLOOKUP(テーブル63[[#This Row],[電気通信]],電気[],2,TRUE), IF(NOT(ISBLANK(テーブル63[[#This Row],[許可区分(電気)]])),\"D\",\"-\"))","v":"B"},{"$f":"IF(NOT(ISBLANK(テーブル63[[#This Row],[水道施設]])),VLOOKUP(テーブル63[[#This Row],[水道施設]],水道[],2,TRUE), IF(NOT(ISBLANK(テーブル63[[#This Row],[許可区分（水道施設）]])),\"D\",\"-\"))","v":"-"}]
[7,"県内","あおみ建設株式会社　千葉営業所","富津市大堀1-14-14","渡部　直人","0439-27-0139","0439-87-8221","特定",1562,null,null,null,null,null,null,"特定",906,null,null,null,null,null,null,null,null,"特定",1159,{"$f":"IF(NOT(ISBLANK(テーブル63[[#This Row],[土木一式]])),VLOOKUP(テーブル63[[#This Row],[土木一式]],土木[],2,TRUE), IF(NOT(ISBLANK(テーブル63[[#This Row],[許可区分(土木)]])),\"D\",\"-\"))","v":"A"},{"$f":"IF(NOT(ISBLANK(テーブル63[[#This Row],[建築一式]])),VLOOKUP(テーブル63[[#This Row],[建築一式]],建築[],2,TRUE), IF(NOT(ISBLANK(テーブル63[[#This Row],[許可区分（建築）]])),\"D\",\"-\"))","v":"-"},{"$f":"IF(NOT(ISBLANK(テーブル63[[#This Row],[電気]])),VLOOKUP(テーブル63[[#This Row],[電気]],電気[],2,TRUE), IF(NOT(ISBLANK(テーブル63[[#This Row],[許可区分（電気）]])),\"D\",\"-\"))","v":"-"},{"$f":"IF(NOT(ISBLANK(テーブル63[[#This Row],[管]])),VLOOKUP(テーブル63[[#This Row],[管]],管[],2,TRUE), IF(NOT(ISBLANK(テーブル63[[#This Row],[許可区分（管）]])),\"D\",\"-\"))","v":"-"},{"$f":"IF(NOT(ISBLANK(テーブル63[[#This Row],[ほ装]])),VLOOKUP(テーブル63[[#This Row],[ほ装]],ほ装[],2,TRUE), IF(NOT(ISBLANK(テーブル63[[#This Row],[許可区分(ほ装)]])),\"D\",\"-\"))","v":"A"},{"$f":"IF(NOT(ISBLANK(テーブル63[[#This Row],[塗装]])),VLOOKUP(テーブル63[[#This Row],[塗装]],塗装[],2,TRUE), IF(NOT(ISBLANK(テーブル63[[#This Row],[許可区分（塗装）]])),\"D\",\"-\"))","v":"-"},{"$f":"IF(NOT(ISBLANK(テーブル63[[#This Row],[防水]])),VLOOKUP(テーブル63[[#This Row],[防水]],塗装[],2,TRUE), IF(NOT(ISBLANK(テーブル63[[#This Row],[許可区分（防水）]])),\"D\",\"-\"))","v":"-"},{"$f":"IF(NOT(ISBLANK(テーブル63[[#This Row],[機械器具設置]])),VLOOKUP(テーブル63[[#This Row],[機械器具設置]],塗装[],2,TRUE), IF(NOT(ISBLANK(テーブル63[[#This Row],[許可区分（機械器具）]])),\"D\",\"-\"))","v":"-"},{"$f":"IF(NOT(ISBLANK(テーブル63[[#This Row],[電気通信]])),VLOOKUP(テーブル63[[#This Row],[電気通信]],電気[],2,TRUE), IF(NOT(ISBLANK(テーブル63[[#This Row],[許可区分(電気)]])),\"D\",\"-\"))","v":"-"},{"$f":"IF(NOT(ISBLANK(テーブル63[[#This Row],[水道施設]])),VLOOKUP(テーブル63[[#This Row],[水道施設]],水道[],2,TRUE), IF(NOT(ISBLANK(テーブル63[[#This Row],[許可区分（水道施設）]])),\"D\",\"-\"))","v":"A"}]
[8,"県内","株式会社安部日鋼工業　千葉営業所","市川市南八幡5-11-12","近藤　正己","047-377-0742","047-712-7609","特定",1363,null,null,null,null,null,null,null,null,"特定",939,null,null,null,null,null,null,"特定",1275,{"$f":"IF(NOT(ISBLANK(テーブル63[[#This Row],[土木一式]])),VLOOKUP(テーブル63[[#This Row],[土木一式]],土木[],2,TRUE), IF(NOT(ISBLANK(テーブル63[[#This Row],[許可区分(土木)]])),\"D\",\"-\"))","v":"A"},{"$f":"IF(NOT(ISBLANK(テーブル63[[#This Row],[建築一式]])),VLOOKUP(テーブル63[[#This Row],[建築一式]],建築[],2,TRUE), IF(NOT(ISBLANK(テーブル63[[#This Row],[許可区分（建築）]])),\"D\",\"-\"))","v":"-"},{"$f":"IF(NOT(ISBLANK(テーブル63[[#This Row],[電気]])),VLOOKUP(テーブル63[[#This Row],[電気]],電気[],2,TRUE), IF(NOT(ISBLANK(テーブル63[[#This Row],[許可区分（電気）]])),\"D\",\"-\"))","v":"-"},{"$f":"IF(NOT(ISBLANK(テーブル63[[#This Row],[管]])),VLOOKUP(テーブル63[[#This Row],[管]],管[],2,TRUE), IF(NOT(ISBLANK(テーブル63[[#This Row],[許可区分（管）]])),\"D\",\"-\"))","v":"-"},{"$f":"IF(NOT(ISBLANK(テーブル63[[#This Row],[ほ装]])),VLOOKUP(テーブル63[[#This Row],[ほ装]],ほ装[],2,TRUE), IF(NOT(ISBLANK(テーブル63[[#This Row],[許可区分(ほ装)]])),\"D\",\"-\"))","v":"-"},{"$f":"IF(NOT(ISBLANK(テーブル63[[#This Row],[塗装]])),VLOOKUP(テーブル63[[#This Row],[塗装]],塗装[],2,TRUE), IF(NOT(ISBLANK(テーブル63[[#This Row],[許可区分（塗装）]])),\"D\",\"-\"))","v":"A"},{"$f":"IF(NOT(ISBLANK(テーブル63[[#This Row],[防水]])),VLOOKUP(テーブル63[[#This Row],[防水]],塗装[],2,TRUE), IF(NOT(ISBLANK(テーブル63[[#This Row],[許可区分（防水）]])),\"D\",\"-\"))","v":"-"},{"$f":"IF(NOT(ISBLANK(テーブル63[[#This Row],[機械器具設置]])),VLOOKUP(テーブル63[[#This Row],[機械器具設置]],塗装[],2,TRUE), IF(NOT(ISBLANK(テーブル63[[#This Row],[許可区分（機械器具）]])),\"D\",\"-\"))","v":"-"},{"$f":"IF(NOT(ISBLANK(テーブル63[[#This Row],[電気通信]])),VLOOKUP(テーブル63[[#This Row],[電気通信]],電気[],2,TRUE), IF(NOT(ISBLANK(テーブル63[[#This Row],[許可区分(電気)]])),\"D\",\"-\"))","v":"-"},{"$f":"IF(NOT(ISBLANK(テーブル63[[#This Row],[水道施設]])),VLOOKUP(テーブル63[[#This Row],[水道施設]],水道[],2,TRUE), IF(NOT(ISBLANK(テーブル63[[#This Row],[許可区分（水道施設）]])),\"D\",\"-\"))","v":"A"}]
[9,"県内","株式会社中川塗装工業","市川市南大野2丁目2番7号","中川　剛","047-303-8331","047-303-8332",null,null,"特定",667,null,null,null,null,null,null,"特定",812,"特定",742,null,null,null,null,null,null,{"$f":"IF(NOT(ISBLANK(テーブル63[[#This Row],[土木一式]])),VLOOKUP(テーブル63[[#This Row],[土木一式]],土木[],2,TRUE), IF(NOT(ISBLANK(テーブル63[[#This Row],[許可区分(土木)]])),\"D\",\"-\"))","v":"-"},{"$f":"IF(NOT(ISBLANK(テーブル63[[#This Row],[建築一式]])),VLOOKUP(テーブル63[[#This Row],[建築一式]],建築[],2,TRUE), IF(NOT(ISBLANK(テーブル63[[#This Row],[許可区分（建築）]])),\"D\",\"-\"))","v":"C"},{"$f":"IF(NOT(ISBLANK(テーブル63[[#This Row],[電気]])),VLOOKUP(テーブル63[[#This Row],[電気]],電気[],2,TRUE), IF(NOT(ISBLANK(テーブル63[[#This Row],[許可区分（電気）]])),\"D\",\"-\"))","v":"-"},{"$f":"IF(NOT(ISBLANK(テーブル63[[#This Row],[管]])),VLOOKUP(テーブル63[[#This Row],[管]],管[],2,TRUE), IF(NOT(ISBLANK(テーブル63[[#This Row],[許可区分（管）]])),\"D\",\"-\"))","v":"-"},{"$f":"IF(NOT(ISBLANK(テーブル63[[#This Row],[ほ装]])),VLOOKUP(テーブル63[[#This Row],[ほ装]],ほ装[],2,TRUE), IF(NOT(ISBLANK(テーブル63[[#This Row],[許可区分(ほ装)]])),\"D\",\"-\"))","v":"-"},{"$f":"IF(NOT(ISBLANK(テーブル63[[#This Row],[塗装]])),VLOOKUP(テーブル63[[#This Row],[塗装]],塗装[],2,TRUE), IF(NOT(ISBLANK(テーブル63[[#This Row],[許可区分（塗装）]])),\"D\",\"-\"))","v":"A"},{"$f":"IF(NOT(ISBLANK(テーブル63[[#This Row],[防水]])),VLOOKUP(テーブル63[[#This Row],[防水]],塗装[],2,TRUE), IF(NOT(ISBLANK(テーブル63[[#This Row],[許可区分（防水）]])),\"D\",\"-\"))","v":"B"},{"$f":"IF(NOT(ISBLANK(テーブル63[[#This Row],[機械器具設置]])),VLOOKUP(テーブル63[[#This Row],[機械器具設置]],塗装[],2,TRUE), IF(NOT(ISBLANK(テーブル63[[#This Row],[許可区分（機械器具）]])),\"D\",\"-\"))","v":"-"},{"$f":"IF(NOT(ISBLANK(テーブル63[[#This Row],[電気通信]])),VLOOKUP(テーブル63[[#This Row],[電気通信]],電気[],2,TRUE), IF(NOT(ISBLANK(テーブル63[[#This Row],[許可区分(電気)]])),\"D\",\"-\"))","v":"-"},{"$f":"IF(NOT(ISBLANK(テーブル63[[#This Row],[水道施設]])),VLOOKUP(テーブル63[[#This Row],[水道施設]],水道[],2,TRUE), IF(NOT(ISBLANK(テーブル63[[#This Row],[許可区分（水道施設）]])),\"D\",\"-\"))","v":"-"}]
[10,"県内","西川計測株式会社　千葉営業所","千葉市中央区中央2-9-20","本田　貴晶","043-221-7150","043-221-7152",null,null,null,null,"特定",1299,null,null,null,null,null,null,null,null,"特定",1152,"特定",1301,null,null,{"$f":"IF(NOT(ISBLANK(テーブル63[[#This Row],[土木一式]])),VLOOKUP(テーブル63[[#This Row],[土木一式]],土木[],2,TRUE), IF(NOT(ISBLANK(テーブル63[[#This Row],[許可区分(土木)]])),\"D\",\"-\"))","v":"-"},{"$f":"IF(NOT(ISBLANK(テーブル63[[#This Row],[建築一式]])),VLOOKUP(テーブル63[[#This Row],[建築一式]],建築[],2,TRUE), IF(NOT(ISBLANK(テーブル63[[#This Row],[許可区分（建築）]])),\"D\",\"-\"))","v":"-"},{"$f":"IF(NOT(ISBLANK(テーブル63[[#This Row],[電気]])),VLOOKUP(テーブル63[[#This Row],[電気]],電気[],2,TRUE), IF(NOT(ISBLANK(テーブル63[[#This Row],[許可区分（電気）]])),\"D\",\"-\"))","v":"A"},{"$f":"IF(NOT(ISBLANK(テーブル63[[#This Row],[管]])),VLOOKUP(テーブル63[[#This Row],[管]],管[],2,TRUE), IF(NOT(ISBLANK(テーブル63[[#This Row],[許可区分（管）]])),\"D\",\"-\"))","v":"-"},{"$f":"IF(NOT(ISBLANK(テーブル63[[#This Row],[ほ装]])),VLOOKUP(テーブル63[[#This Row],[ほ装]],ほ装[],2,TRUE), IF(NOT(ISBLANK(テーブル63[[#This Row],[許可区分(ほ装)]])),\"D\",\"-\"))","v":"-"},{"$f":"IF(NOT(ISBLANK(テーブル63[[#This Row],[塗装]])),VLOOKUP(テーブル63[[#This Row],[塗装]],塗装[],2,TRUE), IF(NOT(ISBLANK(テーブル63[[#This Row],[許可区分（塗装）]])),\"D\",\"-\"))","v":"-"},{"$f":"IF(NOT(ISBLANK(テーブル63[[#This Row],[防水]])),VLOOKUP(テーブル63[[#This Row],[防水]],塗装[],2,TRUE), IF(NOT(ISBLANK(テーブル63[[#This Row],[許可区分（防水）]])),\"D\",\"-\"))","v":"-"},{"$f":"IF(NOT(ISBLANK(テーブル63[[#This Row],[機械器具設置]])),VLOOKUP(テーブル63[[#This Row],[機械器具設置]],塗装[],2,TRUE), IF(NOT(ISBLANK(テーブル63[[#This Row],[許可区分（機械器具）]])),\"D\",\"-\"))","v":"A"},{"$f":"IF(NOT(ISBLANK(テーブル63[[#This Row],[電気通信]])),VLOOKUP(テーブル63[[#This Row],[電気通信]],電気[],2,TRUE), IF(NOT(ISBLANK(テーブル63[[#This Row],[許可区分(電気)]])),\"D\",\"-\"))","v":"A"},{"$f":"IF(NOT(ISBLANK(テーブル63[[#This Row],[水道施設]])),VLOOKUP(テーブル63[[#This Row],[水道施設]],水道[],2,TRUE), IF(NOT(ISBLANK(テーブル63[[#This Row],[許可区分（水道施設）]])),\"D\",\"-\"))","v":"-"}]
[11,"県内","株式会社カイホ","山武郡横芝光町北清水267","永野　貞雄","0479-82-4571","0475-82-4194",null,null,null,null,null,null,null,null,null,null,"一般",811,"一般",741,null,null,null,null,null,null,{"$f":"IF(NOT(ISBLANK(テーブル63[[#This Row],[土木一式]])),VLOOKUP(テーブル63[[#This Row],[土木一式]],土木[],2,TRUE), IF(NOT(ISBLANK(テーブル63[[#This Row],[許可区分(土木)]])),\"D\",\"-\"))","v":"-"},{"$f":"IF(NOT(ISBLANK(テーブル63[[#This Row],[建築一式]])),VLOOKUP(テーブル63[[#This Row],[建築一式]],建築[],2,TRUE), IF(NOT(ISBLANK(テーブル63[[#This Row],[許可区分（建築）]])),\"D\",\"-\"))","v":"-"},{"$f":"IF(NOT(ISBLANK(テーブル63[[#This Row],[電気]])),VLOOKUP(テーブル63[[#This Row],[電気]],電気[],2,TRUE), IF(NOT(ISBLANK(テーブル63[[#This Row],[許可区分（電気）]])),\"D\",\"-\"))","v":"-"},{"$f":"IF(NOT(ISBLANK(テーブル63[[#This Row],[管]])),VLOOKUP(テーブル63[[#This Row],[管]],管[],2,TRUE), IF(NOT(ISBLANK(テーブル63[[#This Row],[許可区分（管）]])),\"D\",\"-\"))","v":"-"},{"$f":"IF(NOT(ISBLANK(テーブル63[[#This Row],[ほ装]])),VLOOKUP(テーブル63[[#This Row],[ほ装]],ほ装[],2,TRUE), IF(NOT(ISBLANK(テーブル63[[#This Row],[許可区分(ほ装)]])),\"D\",\"-\"))","v":"-"},{"$f":"IF(NOT(ISBLANK(テーブル63[[#This Row],[塗装]])),VLOOKUP(テーブル63[[#This Row],[塗装]],塗装[],2,TRUE), IF(NOT(ISBLANK(テーブル63[[#This Row],[許可区分（塗装）]])),\"D\",\"-\"))","v":"A"},{"$f":"IF(NOT(ISBLANK(テーブル63[[#This Row],[防水]])),VLOOKUP(テーブル63[[#This Row],[防水]],塗装[],2,TRUE), IF(NOT(ISBLANK(テーブル63[[#This Row],[許可区分（防水）]])),\"D\",\"-\"))","v":"B"},{"$f":"IF(NOT(ISBLANK(テーブル63[[#This Row],[機械器具設置]])),VLOOKUP(テーブル63[[#This Row],[機械器具設置]],塗装[],2,TRUE), IF(NOT(ISBLANK(テーブル63[[#This Row],[許可区分（機械器具）]])),\"D\",\"-\"))","v":"-"},{"$f":"IF(NOT(ISBLANK(テーブル63[[#This Row],[電気通信]])),VLOOKUP(テーブル63[[#This Row],[電気通信]],電気[],2,TRUE), IF(NOT(ISBLANK(テーブル63[[#This Row],[許可区分(電気)]])),\"D\",\"-\"))","v":"-"},{"$f":"IF(NOT(ISBLANK(テーブル63[[#This Row],[水道施設]])),VLOOKUP(テーブル63[[#This Row],[水道施設]],水道[],2,TRUE), IF(NOT(ISBLANK(テーブル63[[#This Row],[許可区分（水道施設）]])),\"D\",\"-\"))","v":"-"}]
[12,"県内","鉄建建設株式会社　千葉営業所","千葉市中央区新千葉一丁目7番3号","町田　英之","043-243-3572","043-243-3184","特定",1759,"特定",1729,null,null,null,null,null,null,null,null,null,null,null,null,null,null,"特定",1161,{"$f":"IF(NOT(ISBLANK(テーブル63[[#This Row],[土木一式]])),VLOOKUP(テーブル63[[#This Row],[土木一式]],土木[],2,TRUE), IF(NOT(ISBLANK(テーブル63[[#This Row],[許可区分(土木)]])),\"D\",\"-\"))","v":"A"},{"$f":"IF(NOT(ISBLANK(テーブル63[[#This Row],[建築一式]])),VLOOKUP(テーブル63[[#This Row],[建築一式]],建築[],2,TRUE), IF(NOT(ISBLANK(テーブル63[[#This Row],[許可区分（建築）]])),\"D\",\"-\"))","v":"A"},{"$f":"IF(NOT(ISBLANK(テーブル63[[#This Row],[電気]])),VLOOKUP(テーブル63[[#This Row],[電気]],電気[],2,TRUE), IF(NOT(ISBLANK(テーブル63[[#This Row],[許可区分（電気）]])),\"D\",\"-\"))","v":"-"},{"$f":"IF(NOT(ISBLANK(テーブル63[[#This Row],[管]])),VLOOKUP(テーブル63[[#This Row],[管]],管[],2,TRUE), IF(NOT(ISBLANK(テーブル63[[#This Row],[許可区分（管）]])),\"D\",\"-\"))","v":"-"},{"$f":"IF(NOT(ISBLANK(テーブル63[[#This Row],[ほ装]])),VLOOKUP(テーブル63[[#This Row],[ほ装]],ほ装[],2,TRUE), IF(NOT(ISBLANK(テーブル63[[#This Row],[許可区分(ほ装)]])),\"D\",\"-\"))","v":"-"},{"$f":"IF(NOT(ISBLANK(テーブル63[[#This Row],[塗装]])),VLOOKUP(テーブル63[[#This Row],[塗装]],塗装[],2,TRUE), IF(NOT(ISBLANK(テーブル63[[#This Row],[許可区分（塗装）]])),\"D\",\"-\"))","v":"-"},{"$f":"IF(NOT(ISBLANK(テーブル63[[#This Row],[防水]])),VLOOKUP(テーブル63[[#This Row],[防水]],塗装[],2,TRUE), IF(NOT(ISBLANK(テーブル63[[#This Row],[許可区分（防水）]])),\"D\",\"-\"))","v":"-"},{"$f":"IF(NOT(ISBLANK(テーブル63[[#This Row],[機械器具設置]])),VLOOKUP(テーブル63[[#This Row],[機械器具設置]],塗装[],2,TRUE), IF(NOT(ISBLANK(テーブル63[[#This Row],[許可区分（機械器具）]])),\"D\",\"-\"))","v":"-"},{"$f":"IF(NOT(ISBLANK(テーブル63[[#This Row],[電気通信]])),VLOOKUP(テーブル63[[#This Row],[電気通信]],電気[],2,TRUE), IF(NOT(ISBLANK(テーブル63[[#This Row],[許可区分(電気)]])),\"D\",\"-\"))","v":"-"},{"$f":"IF(NOT(ISBLANK(テーブル63[[#This Row],[水道施設]])),VLOOKUP(テーブル63[[#This Row],[水道施設]],水道[],2,TRUE), IF(NOT(ISBLANK(テーブル63[[#This Row],[許可区分（水道施設）]])),\"D\",\"-\"))","v":"A"}]
[13,"県内","株式会社大松建設","成田市西三里塚1番地63","久古　孝幸","0476-33-6663","0476-35-5055","特定",964,"特定",1007,null,null,null,null,"特定",834,null,null,null,null,null,null,null,null,"特定",671,{"$f":"IF(NOT(ISBLANK(テーブル63[[#This Row],[土木一式]])),VLOOKUP(テーブル63[[#This Row],[土木一式]],土木[],2,TRUE), IF(NOT(ISBLANK(テーブル63[[#This Row],[許可区分(土木)]])),\"D\",\"-\"))","v":"A"},{"$f":"IF(NOT(ISBLANK(テーブル63[[#This Row],[建築一式]])),VLOOKUP(テーブル63[[#This Row],[建築一式]],建築[],2,TRUE), IF(NOT(ISBLANK(テーブル63[[#This Row],[許可区分（建築）]])),\"D\",\"-\"))","v":"A"},{"$f":"IF(NOT(ISBLANK(テーブル63[[#This Row],[電気]])),VLOOKUP(テーブル63[[#This Row],[電気]],電気[],2,TRUE), IF(NOT(ISBLANK(テーブル63[[#This Row],[許可区分（電気）]])),\"D\",\"-\"))","v":"-"},{"$f":"IF(NOT(ISBLANK(テーブル63[[#This Row],[管]])),VLOOKUP(テーブル63[[#This Row],[管]],管[],2,TRUE), IF(NOT(ISBLANK(テーブル63[[#This Row],[許可区分（管）]])),\"D\",\"-\"))","v":"-"},{"$f":"IF(NOT(ISBLANK(テーブル63[[#This Row],[ほ装]])),VLOOKUP(テーブル63[[#This Row],[ほ装]],ほ装[],2,TRUE), IF(NOT(ISBLANK(テーブル63[[#This Row],[許可区分(ほ装)]])),\"D\",\"-\"))","v":"A"},{"$f":"IF(NOT(ISBLANK(テーブル63[[#This Row],[塗装]])),VLOOKUP(テーブル63[[#This Row],[塗装]],塗装[],2,TRUE), IF(NOT(ISBLANK(テーブル63[[#This Row],[許可区分（塗装）]])),\"D\",\"-\"))","v":"-"},{"$f":"IF(NOT(ISBLANK(テーブル63[[#This Row],[防水]])),VLOOKUP(テーブル63[[#This Row],[防水]],塗装[],2,TRUE), IF(NOT(ISBLANK(テーブル63[[#This Row],[許可区分（防水）]])),\"D\",\"-\"))","v":"-"},{"$f":"IF(NOT(ISBLANK(テーブル63[[#This Row],[機械器具設置]])),VLOOKUP(テーブル63[[#This Row],[機械器具設置]],塗装[],2,TRUE), IF(NOT(ISBLANK(テーブル63[[#This Row],[許可区分（機械器具）]])),\"D\",\"-\"))","v":"-"},{"$f":"IF(NOT(ISBLANK(テーブル63[[#This Row],[電気通信]])),VLOOKUP(テーブル63[[#This Row],[電気通信]],電気[],2,TRUE), IF(NOT(ISBLANK(テーブル63[[#This Row],[許可区分(電気)]])),\"D\",\"-\"))","v":"-"},{"$f":"IF(NOT(ISBLANK(テーブル63[[#This Row],[水道施設]])),VLOOKUP(テーブル63[[#This Row],[水道施設]],水道[],2,TRUE), IF(NOT(ISBLANK(テーブル63[[#This Row],[許可区分（水道施設）]])),\"D\",\"-\"))","v":"C"}]
[14,"県内","伊藤仁塗装株式会社","千葉市中央区市場町3番4号","伊藤　伸一","043-222-7825","043-224-2486",null,null,null,null,null,null,null,null,null,null,"特定",906,"特定",777,null,null,null,null,null,null,{"$f":"IF(NOT(ISBLANK(テーブル63[[#This Row],[土木一式]])),VLOOKUP(テーブル63[[#This Row],[土木一式]],土木[],2,TRUE), IF(NOT(ISBLANK(テーブル63[[#This Row],[許可区分(土木)]])),\"D\",\"-\"))","v":"-"},{"$f":"IF(NOT(ISBLANK(テーブル63[[#This Row],[建築一式]])),VLOOKUP(テーブル63[[#This Row],[建築一式]],建築[],2,TRUE), IF(NOT(ISBLANK(テーブル63[[#This Row],[許可区分（建築）]])),\"D\",\"-\"))","v":"-"},{"$f":"IF(NOT(ISBLANK(テーブル63[[#This Row],[電気]])),VLOOKUP(テーブル63[[#This Row],[電気]],電気[],2,TRUE), IF(NOT(ISBLANK(テーブル63[[#This Row],[許可区分（電気）]])),\"D\",\"-\"))","v":"-"},{"$f":"IF(NOT(ISBLANK(テーブル63[[#This Row],[管]])),VLOOKUP(テーブル63[[#This Row],[管]],管[],2,TRUE), IF(NOT(ISBLANK(テーブル63[[#This Row],[許可区分（管）]])),\"D\",\"-\"))","v":"-"},{"$f":"IF(NOT(ISBLANK(テーブル63[[#This Row],[ほ装]])),VLOOKUP(テーブル63[[#This Row],[ほ装]],ほ装[],2,TRUE), IF(NOT(ISBLANK(テーブル63[[#This Row],[許可区分(ほ装)]])),\"D\",\"-\"))","v":"-"},{"$f":"IF(NOT(ISBLANK(テーブル63[[#This Row],[塗装]])),VLOOKUP(テーブル63[[#This Row],[塗装]],塗装[],2,TRUE), IF(NOT(ISBLANK(テーブル63[[#This Row],[許可区分（塗装）]])),\"D\",\"-\"))","v":"A"},{"$f":"IF(NOT(ISBLANK(テーブル63[[#This Row],[防水]])),VLOOKUP(テーブル63[[#This Row],[防水]],塗装[],2,TRUE), IF(NOT(ISBLANK(テーブル63[[#This Row],[許可区分（防水）]])),\"D\",\"-\"))","v":"B"},{"$f":"IF(NOT(ISBLANK(テーブル63[[#This Row],[機械器具設置]])),VLOOKUP(テーブル63[[#This Row],[機械器具設置]],塗装[],2,TRUE), IF(NOT(ISBLANK(テーブル63[[#This Row],[許可区分（機械器具）]])),\"D\",\"-\"))","v":"-"},{"$f":"IF(NOT(ISBLANK(テーブル63[[#This Row],[電気通信]])),VLOOKUP(テーブル63[[#This Row],[電気通信]],電気[],2,TRUE), IF(NOT(ISBLANK(テーブル63[[#This Row],[許可区分(電気)]])),\"D\",\"-\"))","v":"-"},{"$f":"IF(NOT(ISBLANK(テーブル63[[#This Row],[水道施設]])),VLOOKUP(テーブル63[[#This Row],[水道施設]],水道[],2,TRUE), IF(NOT(ISBLANK(テーブル63[[#This Row],[許可区分（水道施設）]])),\"D\",\"-\"))","v":"-"}]
[15,"県内","株式会社鴻池組　千葉営業所","千葉市中央区新町18番地12","五十嵐　隆夫","043-238-5901","043-238-5902","特定",1815,"特定",1894,null,null,null,null,"特定",1085,null,null,null,null,null,null,null,null,"特定",1526,{"$f":"IF(NOT(ISBLANK(テーブル63[[#This Row],[土木一式]])),VLOOKUP(テーブル63[[#This Row],[土木一式]],土木[],2,TRUE), IF(NOT(ISBLANK(テーブル63[[#This Row],[許可区分(土木)]])),\"D\",\"-\"))","v":"A"},{"$f":"IF(NOT(ISBLANK(テーブル63[[#This Row],[建築一式]])),VLOOKUP(テーブル63[[#This Row],[建築一式]],建築[],2,TRUE), IF(NOT(ISBLANK(テーブル63[[#This Row],[許可区分（建築）]])),\"D\",\"-\"))","v":"A"},{"$f":"IF(NOT(ISBLANK(テーブル63[[#This Row],[電気]])),VLOOKUP(テーブル63[[#This Row],[電気]],電気[],2,TRUE), IF(NOT(ISBLANK(テーブル63[[#This Row],[許可区分（電気）]])),\"D\",\"-\"))","v":"-"},{"$f":"IF(NOT(ISBLANK(テーブル63[[#This Row],[管]])),VLOOKUP(テーブル63[[#This Row],[管]],管[],2,TRUE), IF(NOT(ISBLANK(テーブル63[[#This Row],[許可区分（管）]])),\"D\",\"-\"))","v":"-"},{"$f":"IF(NOT(ISBLANK(テーブル63[[#This Row],[ほ装]])),VLOOKUP(テーブル63[[#This Row],[ほ装]],ほ装[],2,TRUE), IF(NOT(ISBLANK(テーブル63[[#This Row],[許可区分(ほ装)]])),\"D\",\"-\"))","v":"A"},{"$f":"IF(NOT(ISBLANK(テーブル63[[#This Row],[塗装]])),VLOOKUP(テーブル63[[#This Row],[塗装]],塗装[],2,TRUE), IF(NOT(ISBLANK(テーブル63[[#This Row],[許可区分（塗装）]])),\"D\",\"-\"))","v":"-"},{"$f":"IF(NOT(ISBLANK(テーブル63[[#This Row],[防水]])),VLOOKUP(テーブル63[[#This Row],[防水]],塗装[],2,TRUE), IF(NOT(ISBLANK(テーブル63[[#This Row],[許可区分（防水）]])),\"D\",\"-\"))","v":"-"},{"$f":"IF(NOT(ISBLANK(テーブル63[[#This Row],[機械器具設置]])),VLOOKUP(テーブル63[[#This Row],[機械器具設置]],塗装[],2,TRUE), IF(NOT(ISBLANK(テーブル63[[#This Row],[許可区分（機械器具）]])),\"D\",\"-\"))","v":"-"},{"$f":"IF(NOT(ISBLANK(テーブル63[[#This Row],[電気通信]])),VLOOKUP(テーブル63[[#This Row],[電気通信]],電気[],2,TRUE), IF(NOT(ISBLANK(テーブル63[[#This Row],[許可区分(電気)]])),\"D\",\"-\"))","v":"-"},{"$f":"IF(NOT(ISBLANK(テーブル63[[#This Row],[水道施設]])),VLOOKUP(テーブル63[[#This Row],[水道施設]],水道[],2,TRUE), IF(NOT(ISBLANK(テーブル63[[#This Row],[許可区分（水道施設）]])),\"D\",\"-\"))","v":"A"}]
[16,"県内","呉光塗装株式会社","松戸市中根長津町25","奥野　眞一","047-365-1531","047-365-4221",null,null,"特定",1113,null,null,null,null,null,null,"特定",1103,"特定",1005,null,null,null,null,null,null,{"$f":"IF(NOT(ISBLANK(テーブル63[[#This Row],[土木一式]])),VLOOKUP(テーブル63[[#This Row],[土木一式]],土木[],2,TRUE), IF(NOT(ISBLANK(テーブル63[[#This Row],[許可区分(土木)]])),\"D\",\"-\"))","v":"-"},{"$f":"IF(NOT(ISBLANK(テーブル63[[#This Row],[建築一式]])),VLOOKUP(テーブル63[[#This Row],[建築一式]],建築[],2,TRUE), IF(NOT(ISBLANK(テーブル63[[#This Row],[許可区分（建築）]])),\"D\",\"-\"))","v":"A"},{"$f":"IF(NOT(ISBLANK(テーブル63[[#This Row],[電気]])),VLOOKUP(テーブル63[[#This Row],[電気]],電気[],2,TRUE), IF(NOT(ISBLANK(テーブル63[[#This Row],[許可区分（電気）]])),\"D\",\"-\"))","v":"-"},{"$f":"IF(NOT(ISBLANK(テーブル63[[#This Row],[管]])),VLOOKUP(テーブル63[[#This Row],[管]],管[],2,TRUE), IF(NOT(ISBLANK(テーブル63[[#This Row],[許可区分（管）]])),\"D\",\"-\"))","v":"-"},{"$f":"IF(NOT(ISBLANK(テーブル63[[#This Row],[ほ装]])),VLOOKUP(テーブル63[[#This Row],[ほ装]],ほ装[],2,TRUE), IF(NOT(ISBLANK(テーブル63[[#This Row],[許可区分(ほ装)]])),\"D\",\"-\"))","v":"-"},{"$f":"IF(NOT(ISBLANK(テーブル63[[#This Row],[塗装]])),VLOOKUP(テーブル63[[#This Row],[塗装]],塗装[],2,TRUE), IF(NOT(ISBLANK(テーブル63[[#This Row],[許可区分（塗装）]])),\"D\",\"-\"))","v":"A"},{"$f":"IF(NOT(ISBLANK(テーブル63[[#This Row],[防水]])),VLOOKUP(テーブル63[[#This Row],[防水]],塗装[],2,TRUE), IF(NOT(ISBLANK(テーブル63[[#This Row],[許可区分（防水）]])),\"D\",\"-\"))","v":"A"},{"$f":"IF(NOT(ISBLANK(テーブル63[[#This Row],[機械器具設置]])),VLOOKUP(テーブル63[[#This Row],[機械器具設置]],塗装[],2,TRUE), IF(NOT(ISBLANK(テーブル63[[#This Row],[許可区分（機械器具）]])),\"D\",\"-\"))","v":"-"},{"$f":"IF(NOT(ISBLANK(テーブル63[[#This Row],[電気通信]])),VLOOKUP(テーブル63[[#This Row],[電気通信]],電気[],2,TRUE), IF(NOT(ISBLANK(テーブル63[[#This Row],[許可区分(電気)]])),\"D\",\"-\"))","v":"-"},{"$f":"IF(NOT(ISBLANK(テーブル63[[#This Row],[水道施設]])),VLOOKUP(テーブル63[[#This Row],[水道施設]],水道[],2,TRUE), IF(NOT(ISBLANK(テーブル63[[#This Row],[許可区分（水道施設）]])),\"D\",\"-\"))","v":"-"}]
[17,"県内","吉岡建設株式会社","山武郡横芝光町横芝800","吉岡　昭","0479-82-1231","0479-82-1233","特定",734,"特定",910,null,null,null,null,"特定",640,"特定",650,"特定",686,null,null,null,null,"特定",623,{"$f":"IF(NOT(ISBLANK(テーブル63[[#This Row],[土木一式]])),VLOOKUP(テーブル63[[#This Row],[土木一式]],土木[],2,TRUE), IF(NOT(ISBLANK(テーブル63[[#This Row],[許可区分(土木)]])),\"D\",\"-\"))","v":"B"},{"$f":"IF(NOT(ISBLANK(テーブル63[[#This Row],[建築一式]])),VLOOKUP(テーブル63[[#This Row],[建築一式]],建築[],2,TRUE), IF(NOT(ISBLANK(テーブル63[[#This Row],[許可区分（建築）]])),\"D\",\"-\"))","v":"A"},{"$f":"IF(NOT(ISBLANK(テーブル63[[#This Row],[電気]])),VLOOKUP(テーブル63[[#This Row],[電気]],電気[],2,TRUE), IF(NOT(ISBLANK(テーブル63[[#This Row],[許可区分（電気）]])),\"D\",\"-\"))","v":"-"},{"$f":"IF(NOT(ISBLANK(テーブル63[[#This Row],[管]])),VLOOKUP(テーブル63[[#This Row],[管]],管[],2,TRUE), IF(NOT(ISBLANK(テーブル63[[#This Row],[許可区分（管）]])),\"D\",\"-\"))","v":"-"},{"$f":"IF(NOT(ISBLANK(テーブル63[[#This Row],[ほ装]])),VLOOKUP(テーブル63[[#This Row],[ほ装]],ほ装[],2,TRUE), IF(NOT(ISBLANK(テーブル63[[#This Row],[許可区分(ほ装)]])),\"D\",\"-\"))","v":"B"},{"$f":"IF(NOT(ISBLANK(テーブル63[[#This Row],[塗装]])),VLOOKUP(テーブル63[[#This Row],[塗装]],塗装[],2,TRUE), IF(NOT(ISBLANK(テーブル63[[#This Row],[許可区分（塗装）]])),\"D\",\"-\"))","v":"C"},{"$f":"IF(NOT(ISBLANK(テーブル63[[#This Row],[防水]])),VLOOKUP(テーブル63[[#This Row],[防水]],塗装[],2,TRUE), IF(NOT(ISBLANK(テーブル63[[#This Row],[許可区分（防水）]])),\"D\",\"-\"))","v":"C"},{"$f":"IF(NOT(ISBLANK(テーブル63[[#This Row],[機械器具設置]])),VLOOKUP(テーブル63[[#This Row],[機械器具設置]],塗装[],2,TRUE), IF(NOT(ISBLANK(テーブル63[[#This Row],[許可区分（機械器具）]])),\"D\",\"-\"))","v":"-"},{"$f":"IF(NOT(ISBLANK(テーブル63[[#This Row],[電気通信]])),VLOOKUP(テーブル63[[#This Row],[電気通信]],電気[],2,TRUE), IF(NOT(ISBLANK(テーブル63[[#This Row],[許可区分(電気)]])),\"D\",\"-\"))","v":"-"},{"$f":"IF(NOT(ISBLANK(テーブル63[[#This Row],[水道施設]])),VLOOKUP(テーブル63[[#This Row],[水道施設]],水道[],2,TRUE), IF(NOT(ISBLANK(テーブル63[[#This Row],[許可区分（水道施設）]])),\"D\",\"-\"))","v":"C"}]
[18,"県内","株式会社オーヤラックス　千葉営業所","千葉市中央区松ヶ丘町19番地3","山本　直弘","043-266-6151","043-266-6154",null,null,null,null,null,null,null,null,null,null,null,null,null,null,"一般",907,null,null,null,null,{"$f":"IF(NOT(ISBLANK(テーブル63[[#This Row],[土木一式]])),VLOOKUP(テーブル63[[#This Row],[土木一式]],土木[],2,TRUE), IF(NOT(ISBLANK(テーブル63[[#This Row],[許可区分(土木)]])),\"D\",\"-\"))","v":"-"},{"$f":"IF(NOT(ISBLANK(テーブル63[[#This Row],[建築一式]])),VLOOKUP(テーブル63[[#This Row],[建築一式]],建築[],2,TRUE), IF(NOT(ISBLANK(テーブル63[[#This Row],[許可区分（建築）]])),\"D\",\"-\"))","v":"-"},{"$f":"IF(NOT(ISBLANK(テーブル63[[#This Row],[電気]])),VLOOKUP(テーブル63[[#This Row],[電気]],電気[],2,TRUE), IF(NOT(ISBLANK(テーブル63[[#This Row],[許可区分（電気）]])),\"D\",\"-\"))","v":"-"},{"$f":"IF(NOT(ISBLANK(テーブル63[[#This Row],[管]])),VLOOKUP(テーブル63[[#This Row],[管]],管[],2,TRUE), IF(NOT(ISBLANK(テーブル63[[#This Row],[許可区分（管）]])),\"D\",\"-\"))","v":"-"},{"$f":"IF(NOT(ISBLANK(テーブル63[[#This Row],[ほ装]])),VLOOKUP(テーブル63[[#This Row],[ほ装]],ほ装[],2,TRUE), IF(NOT(ISBLANK(テーブル63[[#This Row],[許可区分(ほ装)]])),\"D\",\"-\"))","v":"-"},{"$f":"IF(NOT(ISBLANK(テーブル63[[#This Row],[塗装]])),VLOOKUP(テーブル63[[#This Row],[塗装]],塗装[],2,TRUE), IF(NOT(ISBLANK(テーブル63[[#This Row],[許可区分（塗装）]])),\"D\",\"-\"))","v":"-"},{"$f":"IF(NOT(ISBLANK(テーブル63[[#This Row],[防水]])),VLOOKUP(テーブル63[[#This Row],[防水]],塗装[],2,TRUE), IF(NOT(ISBLANK(テーブル63[[#This Row],[許可区分（防水）]])),\"D\",\"-\"))","v":"-"},{"$f":"IF(NOT(ISBLANK(テーブル63[[#This Row],[機械器具設置]])),VLOOKUP(テーブル63[[#This Row],[機械器具設置]],塗装[],2,TRUE), IF(NOT(ISBLANK(テーブル63[[#This Row],[許可区分（機械器具）]])),\"D\",\"-\"))","v":"A"},{"$f":"IF(NOT(ISBLANK(テーブル63[[#This Row],[電気通信]])),VLOOKUP(テーブル63[[#This Row],[電気通信]],電気[],2,TRUE), IF(NOT(ISBLANK(テーブル63[[#This Row],[許可区分(電気)]])),\"D\",\"-\"))","v":"-"},{"$f":"IF(NOT(ISBLANK(テーブル63[[#This Row],[水道施設]])),VLOOKUP(テーブル63[[#This Row],[水道施設]],水道[],2,TRUE), IF(NOT(ISBLANK(テーブル63[[#This Row],[許可区分（水道施設）]])),\"D\",\"-\"))","v":"-"}]
[19,"県内","京葉工管株式会社","千葉市美浜区新港139番地の2","内藤　定雄","043-248-1472","043-248-1476","特定",1009,null,null,null,null,"特定",1055,"特定",808,null,null,null,null,null,null,null,null,"特定",789,{"$f":"IF(NOT(ISBLANK(テーブル63[[#This Row],[土木一式]])),VLOOKUP(テーブル63[[#This Row],[土木一式]],土木[],2,TRUE), IF(NOT(ISBLANK(テーブル63[[#This Row],[許可区分(土木)]])),\"D\",\"-\"))","v":"A"},{"$f":"IF(NOT(ISBLANK(テーブル63[[#This Row],[建築一式]])),VLOOKUP(テーブル63[[#This Row],[建築一式]],建築[],2,TRUE), IF(NOT(ISBLANK(テーブル63[[#This Row],[許可区分（建築）]])),\"D\",\"-\"))","v":"-"},{"$f":"IF(NOT(ISBLANK(テーブル63[[#This Row],[電気]])),VLOOKUP(テーブル63[[#This Row],[電気]],電気[],2,TRUE), IF(NOT(ISBLANK(テーブル63[[#This Row],[許可区分（電気）]])),\"D\",\"-\"))","v":"-"},{"$f":"IF(NOT(ISBLANK(テーブル63[[#This Row],[管]])),VLOOKUP(テーブル63[[#This Row],[管]],管[],2,TRUE), IF(NOT(ISBLANK(テーブル63[[#This Row],[許可区分（管）]])),\"D\",\"-\"))","v":"A"},{"$f":"IF(NOT(ISBLANK(テーブル63[[#This Row],[ほ装]])),VLOOKUP(テーブル63[[#This Row],[ほ装]],ほ装[],2,TRUE), IF(NOT(ISBLANK(テーブル63[[#This Row],[許可区分(ほ装)]])),\"D\",\"-\"))","v":"A"},{"$f":"IF(NOT(ISBLANK(テーブル63[[#This Row],[塗装]])),VLOOKUP(テーブル63[[#This Row],[塗装]],塗装[],2,TRUE), IF(NOT(ISBLANK(テーブル63[[#This Row],[許可区分（塗装）]])),\"D\",\"-\"))","v":"-"},{"$f":"IF(NOT(ISBLANK(テーブル63[[#This Row],[防水]])),VLOOKUP(テーブル63[[#This Row],[防水]],塗装[],2,TRUE), IF(NOT(ISBLANK(テーブル63[[#This Row],[許可区分（防水）]])),\"D\",\"-\"))","v":"-"},{"$f":"IF(NOT(ISBLANK(テーブル63[[#This Row],[機械器具設置]])),VLOOKUP(テーブル63[[#This Row],[機械器具設置]],塗装[],2,TRUE), IF(NOT(ISBLANK(テーブル63[[#This Row],[許可区分（機械器具）]])),\"D\",\"-\"))","v":"-"},{"$f":"IF(NOT(ISBLANK(テーブル63[[#This Row],[電気通信]])),VLOOKUP(テーブル63[[#This Row],[電気通信]],電気[],2,TRUE), IF(NOT(ISBLANK(テーブル63[[#This Row],[許可区分(電気)]])),\"D\",\"-\"))","v":"-"},{"$f":"IF(NOT(ISBLANK(テーブル63[[#This Row],[水道施設]])),VLOOKUP(テーブル63[[#This Row],[水道施設]],水道[],2,TRUE), IF(NOT(ISBLANK(テーブル63[[#This Row],[許可区分（水道施設）]])),\"D\",\"-\"))","v":"B"}]
[20,"県内","千葉ノーミ株式会社","成田市三里塚光ケ丘1番349","村井　昭之","0476-37-4075","0476-37-4095",null,null,null,null,null,null,null,null,null,null,null,null,null,null,null,null,null,null,null,null,{"$f":"IF(NOT(ISBLANK(テーブル63[[#This Row],[土木一式]])),VLOOKUP(テーブル63[[#This Row],[土木一式]],土木[],2,TRUE), IF(NOT(ISBLANK(テーブル63[[#This Row],[許可区分(土木)]])),\"D\",\"-\"))","v":"-"},{"$f":"IF(NOT(ISBLANK(テーブル63[[#This Row],[建築一式]])),VLOOKUP(テーブル63[[#This Row],[建築一式]],建築[],2,TRUE), IF(NOT(ISBLANK(テーブル63[[#This Row],[許可区分（建築）]])),\"D\",\"-\"))","v":"-"},{"$f":"IF(NOT(ISBLANK(テーブル63[[#This Row],[電気]])),VLOOKUP(テーブル63[[#This Row],[電気]],電気[],2,TRUE), IF(NOT(ISBLANK(テーブル63[[#This Row],[許可区分（電気）]])),\"D\",\"-\"))","v":"-"},{"$f":"IF(NOT(ISBLANK(テーブル63[[#This Row],[管]])),VLOOKUP(テーブル63[[#This Row],[管]],管[],2,TRUE), IF(NOT(ISBLANK(テーブル63[[#This Row],[許可区分（管）]])),\"D\",\"-\"))","v":"-"},{"$f":"IF(NOT(ISBLANK(テーブル63[[#This Row],[ほ装]])),VLOOKUP(テーブル63[[#This Row],[ほ装]],ほ装[],2,TRUE), IF(NOT(ISBLANK(テーブル63[[#This Row],[許可区分(ほ装)]])),\"D\",\"-\"))","v":"-"},{"$f":"IF(NOT(ISBLANK(テーブル63[[#This Row],[塗装]])),VLOOKUP(テーブル63[[#This Row],[塗装]],塗装[],2,TRUE), IF(NOT(ISBLANK(テーブル63[[#This Row],[許可区分（塗装）]])),\"D\",\"-\"))","v":"-"},{"$f":"IF(NOT(ISBLANK(テーブル63[[#This Row],[防水]])),VLOOKUP(テーブル63[[#This Row],[防水]],塗装[],2,TRUE), IF(NOT(ISBLANK(テーブル63[[#This Row],[許可区分（防水）]])),\"D\",\"-\"))","v":"-"},{"$f":"IF(NOT(ISBLANK(テーブル63[[#This Row],[機械器具設置]])),VLOOKUP(テーブル63[[#This Row],[機械器具設置]],塗装[],2,TRUE), IF(NOT(ISBLANK(テーブル63[[#This Row],[許可区分（機械器具）]])),\"D\",\"-\"))","v":"-"},{"$f":"IF(NOT(ISBLANK(テーブル63[[#This Row],[電気通信]])),VLOOKUP(テーブル63[[#This Row],[電気通信]],電気[],2,TRUE), IF(NOT(ISBLANK(テーブル63[[#This Row],[許可区分(電気)]])),\"D\",\"-\"))","v":"-"},{"$f":"IF(NOT(ISBLANK(テーブル63[[#This Row],[水道施設]])),VLOOKUP(テーブル63[[#This Row],[水道施設]],水道[],2,TRUE), IF(NOT(ISBLANK(テーブル63[[#This Row],[許可区分（水道施設）]])),\"D\",\"-\"))","v":"-"}]
[21,"県内","宮川電気通信工業株式会社","千葉市中央区院内1丁目2番1号","宮川　光生","043-225-1311","043-222-1330",null,null,null,null,"一般",697,null,null,null,null,null,null,null,null,null,null,"一般",868,null,null,{"$f":"IF(NOT(ISBLANK(テーブル63[[#This Row],[土木一式]])),VLOOKUP(テーブル63[[#This Row],[土木一式]],土木[],2,TRUE), IF(NOT(ISBLANK(テーブル63[[#This Row],[許可区分(土木)]])),\"D\",\"-\"))","v":"-"},{"$f":"IF(NOT(ISBLANK(テーブル63[[#This Row],[建築一式]])),VLOOKUP(テーブル63[[#This Row],[建築一式]],建築[],2,TRUE), IF(NOT(ISBLANK(テーブル63[[#This Row],[許可区分（建築）]])),\"D\",\"-\"))","v":"-"},{"$f":"IF(NOT(ISBLANK(テーブル63[[#This Row],[電気]])),VLOOKUP(テーブル63[[#This Row],[電気]],電気[],2,TRUE), IF(NOT(ISBLANK(テーブル63[[#This Row],[許可区分（電気）]])),\"D\",\"-\"))","v":"C"},{"$f":"IF(NOT(ISBLANK(テーブル63[[#This Row],[管]])),VLOOKUP(テーブル63[[#This Row],[管]],管[],2,TRUE), IF(NOT(ISBLANK(テーブル63[[#This Row],[許可区分（管）]])),\"D\",\"-\"))","v":"-"},{"$f":"IF(NOT(ISBLANK(テーブル63[[#This Row],[ほ装]])),VLOOKUP(テーブル63[[#This Row],[ほ装]],ほ装[],2,TRUE), IF(NOT(ISBLANK(テーブル63[[#This Row],[許可区分(ほ装)]])),\"D\",\"-\"))","v":"-"},{"$f":"IF(NOT(ISBLANK(テーブル63[[#This Row],[塗装]])),VLOOKUP(テーブル63[[#This Row],[塗装]],塗装[],2,TRUE), IF(NOT(ISBLANK(テーブル63[[#This Row],[許可区分（塗装）]])),\"D\",\"-\"))","v":"-"},{"$f":"IF(NOT(ISBLANK(テーブル63[[#This Row],[防水]])),VLOOKUP(テーブル63[[#This Row],[防水]],塗装[],2,TRUE), IF(NOT(ISBLANK(テーブル63[[#This Row],[許可区分（防水）]])),\"D\",\"-\"))","v":"-"},{"$f":"IF(NOT(ISBLANK(テーブル63[[#This Row],[機械器具設置]])),VLOOKUP(テーブル63[[#This Row],[機械器具設置]],塗装[],2,TRUE), IF(NOT(ISBLANK(テーブル63[[#This Row],[許可区分（機械器具）]])),\"D\",\"-\"))","v":"-"},{"$f":"IF(NOT(ISBLANK(テーブル63[[#This Row],[電気通信]])),VLOOKUP(テーブル63[[#This Row],[電気通信]],電気[],2,TRUE), IF(NOT(ISBLANK(テーブル63[[#This Row],[許可区分(電気)]])),\"D\",\"-\"))","v":"A"},{"$f":"IF(NOT(ISBLANK(テーブル63[[#This Row],[水道施設]])),VLOOKUP(テーブル63[[#This Row],[水道施設]],水道[],2,TRUE), IF(NOT(ISBLANK(テーブル63[[#This Row],[許可区分（水道施設）]])),\"D\",\"-\"))","v":"-"}]
[22,"県内","有限会社司建設","旭市神宮寺6723番地","林　輝司","0479-60-2387","0479-60-2385","一般",830,null,null,null,null,"一般",675,"一般",812,"一般",670,null,null,null,null,null,null,"一般",670,{"$f":"IF(NOT(ISBLANK(テーブル63[[#This Row],[土木一式]])),VLOOKUP(テーブル63[[#This Row],[土木一式]],土木[],2,TRUE), IF(NOT(ISBLANK(テーブル63[[#This Row],[許可区分(土木)]])),\"D\",\"-\"))","v":"A"},{"$f":"IF(NOT(ISBLANK(テーブル63[[#This Row],[建築一式]])),VLOOKUP(テーブル63[[#This Row],[建築一式]],建築[],2,TRUE), IF(NOT(ISBLANK(テーブル63[[#This Row],[許可区分（建築）]])),\"D\",\"-\"))","v":"-"},{"$f":"IF(NOT(ISBLANK(テーブル63[[#This Row],[電気]])),VLOOKUP(テーブル63[[#This Row],[電気]],電気[],2,TRUE), IF(NOT(ISBLANK(テーブル63[[#This Row],[許可区分（電気）]])),\"D\",\"-\"))","v":"-"},{"$f":"IF(NOT(ISBLANK(テーブル63[[#This Row],[管]])),VLOOKUP(テーブル63[[#This Row],[管]],管[],2,TRUE), IF(NOT(ISBLANK(テーブル63[[#This Row],[許可区分（管）]])),\"D\",\"-\"))","v":"B"},{"$f":"IF(NOT(ISBLANK(テーブル63[[#This Row],[ほ装]])),VLOOKUP(テーブル63[[#This Row],[ほ装]],ほ装[],2,TRUE), IF(NOT(ISBLANK(テーブル63[[#This Row],[許可区分(ほ装)]])),\"D\",\"-\"))","v":"A"},{"$f":"IF(NOT(ISBLANK(テーブル63[[#This Row],[塗装]])),VLOOKUP(テーブル63[[#This Row],[塗装]],塗装[],2,TRUE), IF(NOT(ISBLANK(テーブル63[[#This Row],[許可区分（塗装）]])),\"D\",\"-\"))","v":"C"},{"$f":"IF(NOT(ISBLANK(テーブル63[[#This Row],[防水]])),VLOOKUP(テーブル63[[#This Row],[防水]],塗装[],2,TRUE), IF(NOT(ISBLANK(テーブル63[[#This Row],[許可区分（防水）]])),\"D\",\"-\"))","v":"-"},{"$f":"IF(NOT(ISBLANK(テーブル63[[#This Row],[機械器具設置]])),VLOOKUP(テーブル63[[#This Row],[機械器具設置]],塗装[],2,TRUE), IF(NOT(ISBLANK(テーブル63[[#This Row],[許可区分（機械器具）]])),\"D\",\"-\"))","v":"-"},{"$f":"IF(NOT(ISBLANK(テーブル63[[#This Row],[電気通信]])),VLOOKUP(テーブル63[[#This Row],[電気通信]],電気[],2,TRUE), IF(NOT(ISBLANK(テーブル63[[#This Row],[許可区分(電気)]])),\"D\",\"-\"))","v":"-"},{"$f":"IF(NOT(ISBLANK(テーブル63[[#This Row],[水道施設]])),VLOOKUP(テーブル63[[#This Row],[水道施設]],水道[],2,TRUE), IF(NOT(ISBLANK(テーブル63[[#This Row],[許可区分（水道施設）]])),\"D\",\"-\"))","v":"C"}]
[23,"県内","株式会社サンエイロテック　東金営業所","東金市田間89-3","白鳥　文子","0475-53-0260","0475-53-0268","一般",715,null,null,null,null,null,null,"一般",694,"一般",931,null,null,null,null,null,null,null,null,{"$f":"IF(NOT(ISBLANK(テーブル63[[#This Row],[土木一式]])),VLOOKUP(テーブル63[[#This Row],[土木一式]],土木[],2,TRUE), IF(NOT(ISBLANK(テーブル63[[#This Row],[許可区分(土木)]])),\"D\",\"-\"))","v":"B"},{"$f":"IF(NOT(ISBLANK(テーブル63[[#This Row],[建築一式]])),VLOOKUP(テーブル63[[#This Row],[建築一式]],建築[],2,TRUE), IF(NOT(ISBLANK(テーブル63[[#This Row],[許可区分（建築）]])),\"D\",\"-\"))","v":"-"},{"$f":"IF(NOT(ISBLANK(テーブル63[[#This Row],[電気]])),VLOOKUP(テーブル63[[#This Row],[電気]],電気[],2,TRUE), IF(NOT(ISBLANK(テーブル63[[#This Row],[許可区分（電気）]])),\"D\",\"-\"))","v":"-"},{"$f":"IF(NOT(ISBLANK(テーブル63[[#This Row],[管]])),VLOOKUP(テーブル63[[#This Row],[管]],管[],2,TRUE), IF(NOT(ISBLANK(テーブル63[[#This Row],[許可区分（管）]])),\"D\",\"-\"))","v":"-"},{"$f":"IF(NOT(ISBLANK(テーブル63[[#This Row],[ほ装]])),VLOOKUP(テーブル63[[#This Row],[ほ装]],ほ装[],2,TRUE), IF(NOT(ISBLANK(テーブル63[[#This Row],[許可区分(ほ装)]])),\"D\",\"-\"))","v":"B"},{"$f":"IF(NOT(ISBLANK(テーブル63[[#This Row],[塗装]])),VLOOKUP(テーブル63[[#This Row],[塗装]],塗装[],2,TRUE), IF(NOT(ISBLANK(テーブル63[[#This Row],[許可区分（塗装）]])),\"D\",\"-\"))","v":"A"},{"$f":"IF(NOT(ISBLANK(テーブル63[[#This Row],[防水]])),VLOOKUP(テーブル63[[#This Row],[防水]],塗装[],2,TRUE), IF(NOT(ISBLANK(テーブル63[[#This Row],[許可区分（防水）]])),\"D\",\"-\"))","v":"-"},{"$f":"IF(NOT(ISBLANK(テーブル63[[#This Row],[機械器具設置]])),VLOOKUP(テーブル63[[#This Row],[機械器具設置]],塗装[],2,TRUE), IF(NOT(ISBLANK(テーブル63[[#This Row],[許可区分（機械器具）]])),\"D\",\"-\"))","v":"-"},{"$f":"IF(NOT(ISBLANK(テーブル63[[#This Row],[電気通信]])),VLOOKUP(テーブル63[[#This Row],[電気通信]],電気[],2,TRUE), IF(NOT(ISBLANK(テーブル63[[#This Row],[許可区分(電気)]])),\"D\",\"-\"))","v":"-"},{"$f":"IF(NOT(ISBLANK(テーブル63[[#This Row],[水道施設]])),VLOOKUP(テーブル63[[#This Row],[水道施設]],水道[],2,TRUE), IF(NOT(ISBLANK(テーブル63[[#This Row],[許可区分（水道施設）]])),\"D\",\"-\"))","v":"-"}]
[24,"県内","庄司工業株式会社","東金市台方2078番地","宇津木　孝次","0475-54-3451","0475-54-3455","特定",986,null,null,null,null,"特定",875,"特定",894,null,null,null,null,null,null,null,null,"特定",789,{"$f":"IF(NOT(ISBLANK(テーブル63[[#This Row],[土木一式]])),VLOOKUP(テーブル63[[#This Row],[土木一式]],土木[],2,TRUE), IF(NOT(ISBLANK(テーブル63[[#This Row],[許可区分(土木)]])),\"D\",\"-\"))","v":"A"},{"$f":"IF(NOT(ISBLANK(テーブル63[[#This Row],[建築一式]])),VLOOKUP(テーブル63[[#This Row],[建築一式]],建築[],2,TRUE), IF(NOT(ISBLANK(テーブル63[[#This Row],[許可区分（建築）]])),\"D\",\"-\"))","v":"-"},{"$f":"IF(NOT(ISBLANK(テーブル63[[#This Row],[電気]])),VLOOKUP(テーブル63[[#This Row],[電気]],電気[],2,TRUE), IF(NOT(ISBLANK(テーブル63[[#This Row],[許可区分（電気）]])),\"D\",\"-\"))","v":"-"},{"$f":"IF(NOT(ISBLANK(テーブル63[[#This Row],[管]])),VLOOKUP(テーブル63[[#This Row],[管]],管[],2,TRUE), IF(NOT(ISBLANK(テーブル63[[#This Row],[許可区分（管）]])),\"D\",\"-\"))","v":"A"},{"$f":"IF(NOT(ISBLANK(テーブル63[[#This Row],[ほ装]])),VLOOKUP(テーブル63[[#This Row],[ほ装]],ほ装[],2,TRUE), IF(NOT(ISBLANK(テーブル63[[#This Row],[許可区分(ほ装)]])),\"D\",\"-\"))","v":"A"},{"$f":"IF(NOT(ISBLANK(テーブル63[[#This Row],[塗装]])),VLOOKUP(テーブル63[[#This Row],[塗装]],塗装[],2,TRUE), IF(NOT(ISBLANK(テーブル63[[#This Row],[許可区分（塗装）]])),\"D\",\"-\"))","v":"-"},{"$f":"IF(NOT(ISBLANK(テーブル63[[#This Row],[防水]])),VLOOKUP(テーブル63[[#This Row],[防水]],塗装[],2,TRUE), IF(NOT(ISBLANK(テーブル63[[#This Row],[許可区分（防水）]])),\"D\",\"-\"))","v":"-"},{"$f":"IF(NOT(ISBLANK(テーブル63[[#This Row],[機械器具設置]])),VLOOKUP(テーブル63[[#This Row],[機械器具設置]],塗装[],2,TRUE), IF(NOT(ISBLANK(テーブル63[[#This Row],[許可区分（機械器具）]])),\"D\",\"-\"))","v":"-"},{"$f":"IF(NOT(ISBLANK(テーブル63[[#This Row],[電気通信]])),VLOOKUP(テーブル63[[#This Row],[電気通信]],電気[],2,TRUE), IF(NOT(ISBLANK(テーブル63[[#This Row],[許可区分(電気)]])),\"D\",\"-\"))","v":"-"},{"$f":"IF(NOT(ISBLANK(テーブル63[[#This Row],[水道施設]])),VLOOKUP(テーブル63[[#This Row],[水道施設]],水道[],2,TRUE), IF(NOT(ISBLANK(テーブル63[[#This Row],[許可区分（水道施設）]])),\"D\",\"-\"))","v":"B"}]
[25,"県内","若築建設株式会社　千葉支店","千葉市中央区新田町4-22","岡村　純","043-242-2245","043-243-3350","特定",1746,null,null,"特定",967,"特定",992,"特定",937,null,null,null,null,null,null,null,null,"特定",1167,{"$f":"IF(NOT(ISBLANK(テーブル63[[#This Row],[土木一式]])),VLOOKUP(テーブル63[[#This Row],[土木一式]],土木[],2,TRUE), IF(NOT(ISBLANK(テーブル63[[#This Row],[許可区分(土木)]])),\"D\",\"-\"))","v":"A"},{"$f":"IF(NOT(ISBLANK(テーブル63[[#This Row],[建築一式]])),VLOOKUP(テーブル63[[#This Row],[建築一式]],建築[],2,TRUE), IF(NOT(ISBLANK(テーブル63[[#This Row],[許可区分（建築）]])),\"D\",\"-\"))","v":"-"},{"$f":"IF(NOT(ISBLANK(テーブル63[[#This Row],[電気]])),VLOOKUP(テーブル63[[#This Row],[電気]],電気[],2,TRUE), IF(NOT(ISBLANK(テーブル63[[#This Row],[許可区分（電気）]])),\"D\",\"-\"))","v":"A"},{"$f":"IF(NOT(ISBLANK(テーブル63[[#This Row],[管]])),VLOOKUP(テーブル63[[#This Row],[管]],管[],2,TRUE), IF(NOT(ISBLANK(テーブル63[[#This Row],[許可区分（管）]])),\"D\",\"-\"))","v":"A"},{"$f":"IF(NOT(ISBLANK(テーブル63[[#This Row],[ほ装]])),VLOOKUP(テーブル63[[#This Row],[ほ装]],ほ装[],2,TRUE), IF(NOT(ISBLANK(テーブル63[[#This Row],[許可区分(ほ装)]])),\"D\",\"-\"))","v":"A"},{"$f":"IF(NOT(ISBLANK(テーブル63[[#This Row],[塗装]])),VLOOKUP(テーブル63[[#This Row],[塗装]],塗装[],2,TRUE), IF(NOT(ISBLANK(テーブル63[[#This Row],[許可区分（塗装）]])),\"D\",\"-\"))","v":"-"},{"$f":"IF(NOT(ISBLANK(テーブル63[[#This Row],[防水]])),VLOOKUP(テーブル63[[#This Row],[防水]],塗装[],2,TRUE), IF(NOT(ISBLANK(テーブル63[[#This Row],[許可区分（防水）]])),\"D\",\"-\"))","v":"-"},{"$f":"IF(NOT(ISBLANK(テーブル63[[#This Row],[機械器具設置]])),VLOOKUP(テーブル63[[#This Row],[機械器具設置]],塗装[],2,TRUE), IF(NOT(ISBLANK(テーブル63[[#This Row],[許可区分（機械器具）]])),\"D\",\"-\"))","v":"-"},{"$f":"IF(NOT(ISBLANK(テーブル63[[#This Row],[電気通信]])),VLOOKUP(テーブル63[[#This Row],[電気通信]],電気[],2,TRUE), IF(NOT(ISBLANK(テーブル63[[#This Row],[許可区分(電気)]])),\"D\",\"-\"))","v":"-"},{"$f":"IF(NOT(ISBLANK(テーブル63[[#This Row],[水道施設]])),VLOOKUP(テーブル63[[#This Row],[水道施設]],水道[],2,TRUE), IF(NOT(ISBLANK(テーブル63[[#This Row],[許可区分（水道施設）]])),\"D\",\"-\"))","v":"A"}]
[26,"県内","鈴木土建株式会社","大網白里市細草1624番地1","内山　弘通","0475-77-6111","0475-77-6115","特定",991,"特定",815,null,null,"特定",765,"特定",859,"特定",697,"特定",697,null,null,null,null,"特定",727,{"$f":"IF(NOT(ISBLANK(テーブル63[[#This Row],[土木一式]])),VLOOKUP(テーブル63[[#This Row],[土木一式]],土木[],2,TRUE), IF(NOT(ISBLANK(テーブル63[[#This Row],[許可区分(土木)]])),\"D\",\"-\"))","v":"A"},{"$f":"IF(NOT(ISBLANK(テーブル63[[#This Row],[建築一式]])),VLOOKUP(テーブル63[[#This Row],[建築一式]],建築[],2,TRUE), IF(NOT(ISBLANK(テーブル63[[#This Row],[許可区分（建築）]])),\"D\",\"-\"))","v":"A"},{"$f":"IF(NOT(ISBLANK(テーブル63[[#This Row],[電気]])),VLOOKUP(テーブル63[[#This Row],[電気]],電気[],2,TRUE), IF(NOT(ISBLANK(テーブル63[[#This Row],[許可区分（電気）]])),\"D\",\"-\"))","v":"-"},{"$f":"IF(NOT(ISBLANK(テーブル63[[#This Row],[管]])),VLOOKUP(テーブル63[[#This Row],[管]],管[],2,TRUE), IF(NOT(ISBLANK(テーブル63[[#This Row],[許可区分（管）]])),\"D\",\"-\"))","v":"A"},{"$f":"IF(NOT(ISBLANK(テーブル63[[#This Row],[ほ装]])),VLOOKUP(テーブル63[[#This Row],[ほ装]],ほ装[],2,TRUE), IF(NOT(ISBLANK(テーブル63[[#This Row],[許可区分(ほ装)]])),\"D\",\"-\"))","v":"A"},{"$f":"IF(NOT(ISBLANK(テーブル63[[#This Row],[塗装]])),VLOOKUP(テーブル63[[#This Row],[塗装]],塗装[],2,TRUE), IF(NOT(ISBLANK(テーブル63[[#This Row],[許可区分（塗装）]])),\"D\",\"-\"))","v":"C"},{"$f":"IF(NOT(ISBLANK(テーブル63[[#This Row],[防水]])),VLOOKUP(テーブル63[[#This Row],[防水]],塗装[],2,TRUE), IF(NOT(ISBLANK(テーブル63[[#This Row],[許可区分（防水）]])),\"D\",\"-\"))","v":"C"},{"$f":"IF(NOT(ISBLANK(テーブル63[[#This Row],[機械器具設置]])),VLOOKUP(テーブル63[[#This Row],[機械器具設置]],塗装[],2,TRUE), IF(NOT(ISBLANK(テーブル63[[#This Row],[許可区分（機械器具）]])),\"D\",\"-\"))","v":"-"},{"$f":"IF(NOT(ISBLANK(テーブル63[[#This Row],[電気通信]])),VLOOKUP(テーブル63[[#This Row],[電気通信]],電気[],2,TRUE), IF(NOT(ISBLANK(テーブル63[[#This Row],[許可区分(電気)]])),\"D\",\"-\"))","v":"-"},{"$f":"IF(NOT(ISBLANK(テーブル63[[#This Row],[水道施設]])),VLOOKUP(テーブル63[[#This Row],[水道施設]],水道[],2,TRUE), IF(NOT(ISBLANK(テーブル63[[#This Row],[許可区分（水道施設）]])),\"D\",\"-\"))","v":"B"}]
[27,"県内","大日本土木株式会社　千葉営業所","千葉市中央区新千葉2丁目5番14号","佐藤　孝正","043-246-1911","043-248-4467","特定",1585,"特定",1559,null,null,null,null,null,null,null,null,null,null,null,null,null,null,"特定",1292,{"$f":"IF(NOT(ISBLANK(テーブル63[[#This Row],[土木一式]])),VLOOKUP(テーブル63[[#This Row],[土木一式]],土木[],2,TRUE), IF(NOT(ISBLANK(テーブル63[[#This Row],[許可区分(土木)]])),\"D\",\"-\"))","v":"A"},{"$f":"IF(NOT(ISBLANK(テーブル63[[#This Row],[建築一式]])),VLOOKUP(テーブル63[[#This Row],[建築一式]],建築[],2,TRUE), IF(NOT(ISBLANK(テーブル63[[#This Row],[許可区分（建築）]])),\"D\",\"-\"))","v":"A"},{"$f":"IF(NOT(ISBLANK(テーブル63[[#This Row],[電気]])),VLOOKUP(テーブル63[[#This Row],[電気]],電気[],2,TRUE), IF(NOT(ISBLANK(テーブル63[[#This Row],[許可区分（電気）]])),\"D\",\"-\"))","v":"-"},{"$f":"IF(NOT(ISBLANK(テーブル63[[#This Row],[管]])),VLOOKUP(テーブル63[[#This Row],[管]],管[],2,TRUE), IF(NOT(ISBLANK(テーブル63[[#This Row],[許可区分（管）]])),\"D\",\"-\"))","v":"-"},{"$f":"IF(NOT(ISBLANK(テーブル63[[#This Row],[ほ装]])),VLOOKUP(テーブル63[[#This Row],[ほ装]],ほ装[],2,TRUE), IF(NOT(ISBLANK(テーブル63[[#This Row],[許可区分(ほ装)]])),\"D\",\"-\"))","v":"-"},{"$f":"IF(NOT(ISBLANK(テーブル63[[#This Row],[塗装]])),VLOOKUP(テーブル63[[#This Row],[塗装]],塗装[],2,TRUE), IF(NOT(ISBLANK(テーブル63[[#This Row],[許可区分（塗装）]])),\"D\",\"-\"))","v":"-"},{"$f":"IF(NOT(ISBLANK(テーブル63[[#This Row],[防水]])),VLOOKUP(テーブル63[[#This Row],[防水]],塗装[],2,TRUE), IF(NOT(ISBLANK(テーブル63[[#This Row],[許可区分（防水）]])),\"D\",\"-\"))","v":"-"},{"$f":"IF(NOT(ISBLANK(テーブル63[[#This Row],[機械器具設置]])),VLOOKUP(テーブル63[[#This Row],[機械器具設置]],塗装[],2,TRUE), IF(NOT(ISBLANK(テーブル63[[#This Row],[許可区分（機械器具）]])),\"D\",\"-\"))","v":"-"},{"$f":"IF(NOT(ISBLANK(テーブル63[[#This Row],[電気通信]])),VLOOKUP(テーブル63[[#This Row],[電気通信]],電気[],2,TRUE), IF(NOT(ISBLANK(テーブル63[[#This Row],[許可区分(電気)]])),\"D\",\"-\"))","v":"-"},{"$f":"IF(NOT(ISBLANK(テーブル63[[#This Row],[水道施設]])),VLOOKUP(テーブル63[[#This Row],[水道施設]],水道[],2,TRUE), IF(NOT(ISBLANK(テーブル63[[#This Row],[許可区分（水道施設）]])),\"D\",\"-\"))","v":"A"}]
[28,"県内","宮田塗装工業株式会社","市原市山田橋一丁目6番地4","宮田　徳太郎","0436-41-7570","0436-41-7580",null,null,"特定",682,null,null,null,null,null,null,"特定",842,"特定",768,null,null,null,null,null,null,{"$f":"IF(NOT(ISBLANK(テーブル63[[#This Row],[土木一式]])),VLOOKUP(テーブル63[[#This Row],[土木一式]],土木[],2,TRUE), IF(NOT(ISBLANK(テーブル63[[#This Row],[許可区分(土木)]])),\"D\",\"-\"))","v":"-"},{"$f":"IF(NOT(ISBLANK(テーブル63[[#This Row],[建築一式]])),VLOOKUP(テーブル63[[#This Row],[建築一式]],建築[],2,TRUE), IF(NOT(ISBLANK(テーブル63[[#This Row],[許可区分（建築）]])),\"D\",\"-\"))","v":"C"},{"$f":"IF(NOT(ISBLANK(テーブル63[[#This Row],[電気]])),VLOOKUP(テーブル63[[#This Row],[電気]],電気[],2,TRUE), IF(NOT(ISBLANK(テーブル63[[#This Row],[許可区分（電気）]])),\"D\",\"-\"))","v":"-"},{"$f":"IF(NOT(ISBLANK(テーブル63[[#This Row],[管]])),VLOOKUP(テーブル63[[#This Row],[管]],管[],2,TRUE), IF(NOT(ISBLANK(テーブル63[[#This Row],[許可区分（管）]])),\"D\",\"-\"))","v":"-"},{"$f":"IF(NOT(ISBLANK(テーブル63[[#This Row],[ほ装]])),VLOOKUP(テーブル63[[#This Row],[ほ装]],ほ装[],2,TRUE), IF(NOT(ISBLANK(テーブル63[[#This Row],[許可区分(ほ装)]])),\"D\",\"-\"))","v":"-"},{"$f":"IF(NOT(ISBLANK(テーブル63[[#This Row],[塗装]])),VLOOKUP(テーブル63[[#This Row],[塗装]],塗装[],2,TRUE), IF(NOT(ISBLANK(テーブル63[[#This Row],[許可区分（塗装）]])),\"D\",\"-\"))","v":"A"},{"$f":"IF(NOT(ISBLANK(テーブル63[[#This Row],[防水]])),VLOOKUP(テーブル63[[#This Row],[防水]],塗装[],2,TRUE), IF(NOT(ISBLANK(テーブル63[[#This Row],[許可区分（防水）]])),\"D\",\"-\"))","v":"B"},{"$f":"IF(NOT(ISBLANK(テーブル63[[#This Row],[機械器具設置]])),VLOOKUP(テーブル63[[#This Row],[機械器具設置]],塗装[],2,TRUE), IF(NOT(ISBLANK(テーブル63[[#This Row],[許可区分（機械器具）]])),\"D\",\"-\"))","v":"-"},{"$f":"IF(NOT(ISBLANK(テーブル63[[#This Row],[電気通信]])),VLOOKUP(テーブル63[[#This Row],[電気通信]],電気[],2,TRUE), IF(NOT(ISBLANK(テーブル63[[#This Row],[許可区分(電気)]])),\"D\",\"-\"))","v":"-"},{"$f":"IF(NOT(ISBLANK(テーブル63[[#This Row],[水道施設]])),VLOOKUP(テーブル63[[#This Row],[水道施設]],水道[],2,TRUE), IF(NOT(ISBLANK(テーブル63[[#This Row],[許可区分（水道施設）]])),\"D\",\"-\"))","v":"-"}]
[29,"県内","株式会社ハマダ","木更津市潮見四丁目14番地9","安藝　真一","0438-36-7721","0438-36-7734","特定",674,"特定",721,null,null,null,null,"特定",676,"特定",659,"特定",659,"特定",1153,null,null,null,null,{"$f":"IF(NOT(ISBLANK(テーブル63[[#This Row],[土木一式]])),VLOOKUP(テーブル63[[#This Row],[土木一式]],土木[],2,TRUE), IF(NOT(ISBLANK(テーブル63[[#This Row],[許可区分(土木)]])),\"D\",\"-\"))","v":"B"},{"$f":"IF(NOT(ISBLANK(テーブル63[[#This Row],[建築一式]])),VLOOKUP(テーブル63[[#This Row],[建築一式]],建築[],2,TRUE), IF(NOT(ISBLANK(テーブル63[[#This Row],[許可区分（建築）]])),\"D\",\"-\"))","v":"B"},{"$f":"IF(NOT(ISBLANK(テーブル63[[#This Row],[電気]])),VLOOKUP(テーブル63[[#This Row],[電気]],電気[],2,TRUE), IF(NOT(ISBLANK(テーブル63[[#This Row],[許可区分（電気）]])),\"D\",\"-\"))","v":"-"},{"$f":"IF(NOT(ISBLANK(テーブル63[[#This Row],[管]])),VLOOKUP(テーブル63[[#This Row],[管]],管[],2,TRUE), IF(NOT(ISBLANK(テーブル63[[#This Row],[許可区分（管）]])),\"D\",\"-\"))","v":"-"},{"$f":"IF(NOT(ISBLANK(テーブル63[[#This Row],[ほ装]])),VLOOKUP(テーブル63[[#This Row],[ほ装]],ほ装[],2,TRUE), IF(NOT(ISBLANK(テーブル63[[#This Row],[許可区分(ほ装)]])),\"D\",\"-\"))","v":"B"},{"$f":"IF(NOT(ISBLANK(テーブル63[[#This Row],[塗装]])),VLOOKUP(テーブル63[[#This Row],[塗装]],塗装[],2,TRUE), IF(NOT(ISBLANK(テーブル63[[#This Row],[許可区分（塗装）]])),\"D\",\"-\"))","v":"C"},{"$f":"IF(NOT(ISBLANK(テーブル63[[#This Row],[防水]])),VLOOKUP(テーブル63[[#This Row],[防水]],塗装[],2,TRUE), IF(NOT(ISBLANK(テーブル63[[#This Row],[許可区分（防水）]])),\"D\",\"-\"))","v":"C"},{"$f":"IF(NOT(ISBLANK(テーブル63[[#This Row],[機械器具設置]])),VLOOKUP(テーブル63[[#This Row],[機械器具設置]],塗装[],2,TRUE), IF(NOT(ISBLANK(テーブル63[[#This Row],[許可区分（機械器具）]])),\"D\",\"-\"))","v":"A"},{"$f":"IF(NOT(ISBLANK(テーブル63[[#This Row],[電気通信]])),VLOOKUP(テーブル63[[#This Row],[電気通信]],電気[],2,TRUE), IF(NOT(ISBLANK(テーブル63[[#This Row],[許可区分(電気)]])),\"D\",\"-\"))","v":"-"},{"$f":"IF(NOT(ISBLANK(テーブル63[[#This Row],[水道施設]])),VLOOKUP(テーブル63[[#This Row],[水道施設]],水道[],2,TRUE), IF(NOT(ISBLANK(テーブル63[[#This Row],[許可区分（水道施設）]])),\"D\",\"-\"))","v":"-"}]
[30,"県内","京成建設株式会社","船橋市宮本四丁目17番3号","田中　亜夫","047-435-6311","047-435-6316","特定",1342,"特定",1367,"特定",882,"特定",965,"特定",1048,null,null,"特定",885,null,null,null,null,"特定",796,{"$f":"IF(NOT(ISBLANK(テーブル63[[#This Row],[土木一式]])),VLOOKUP(テーブル63[[#This Row],[土木一式]],土木[],2,TRUE), IF(NOT(ISBLANK(テーブル63[[#This Row],[許可区分(土木)]])),\"D\",\"-\"))","v":"A"},{"$f":"IF(NOT(ISBLANK(テーブル63[[#This Row],[建築一式]])),VLOOKUP(テーブル63[[#This Row],[建築一式]],建築[],2,TRUE), IF(NOT(ISBLANK(テーブル63[[#This Row],[許可区分（建築）]])),\"D\",\"-\"))","v":"A"},{"$f":"IF(NOT(ISBLANK(テーブル63[[#This Row],[電気]])),VLOOKUP(テーブル63[[#This Row],[電気]],電気[],2,TRUE), IF(NOT(ISBLANK(テーブル63[[#This Row],[許可区分（電気）]])),\"D\",\"-\"))","v":"A"},{"$f":"IF(NOT(ISBLANK(テーブル63[[#This Row],[管]])),VLOOKUP(テーブル63[[#This Row],[管]],管[],2,TRUE), IF(NOT(ISBLANK(テーブル63[[#This Row],[許可区分（管）]])),\"D\",\"-\"))","v":"A"},{"$f":"IF(NOT(ISBLANK(テーブル63[[#This Row],[ほ装]])),VLOOKUP(テーブル63[[#This Row],[ほ装]],ほ装[],2,TRUE), IF(NOT(ISBLANK(テーブル63[[#This Row],[許可区分(ほ装)]])),\"D\",\"-\"))","v":"A"},{"$f":"IF(NOT(ISBLANK(テーブル63[[#This Row],[塗装]])),VLOOKUP(テーブル63[[#This Row],[塗装]],塗装[],2,TRUE), IF(NOT(ISBLANK(テーブル63[[#This Row],[許可区分（塗装）]])),\"D\",\"-\"))","v":"-"},{"$f":"IF(NOT(ISBLANK(テーブル63[[#This Row],[防水]])),VLOOKUP(テーブル63[[#This Row],[防水]],塗装[],2,TRUE), IF(NOT(ISBLANK(テーブル63[[#This Row],[許可区分（防水）]])),\"D\",\"-\"))","v":"A"},{"$f":"IF(NOT(ISBLANK(テーブル63[[#This Row],[機械器具設置]])),VLOOKUP(テーブル63[[#This Row],[機械器具設置]],塗装[],2,TRUE), IF(NOT(ISBLANK(テーブル63[[#This Row],[許可区分（機械器具）]])),\"D\",\"-\"))","v":"-"},{"$f":"IF(NOT(ISBLANK(テーブル63[[#This Row],[電気通信]])),VLOOKUP(テーブル63[[#This Row],[電気通信]],電気[],2,TRUE), IF(NOT(ISBLANK(テーブル63[[#This Row],[許可区分(電気)]])),\"D\",\"-\"))","v":"-"},{"$f":"IF(NOT(ISBLANK(テーブル63[[#This Row],[水道施設]])),VLOOKUP(テーブル63[[#This Row],[水道施設]],水道[],2,TRUE), IF(NOT(ISBLANK(テーブル63[[#This Row],[許可区分（水道施設）]])),\"D\",\"-\"))","v":"B"}]
[31,"県内","石井工業株式会社","香取市北2丁目6番3","石井　良典","0478-55-1511","0478-55-1460","特定",1118,"特定",1173,null,null,null,null,"特定",888,null,null,null,null,null,null,null,null,"特定",760,{"$f":"IF(NOT(ISBLANK(テーブル63[[#This Row],[土木一式]])),VLOOKUP(テーブル63[[#This Row],[土木一式]],土木[],2,TRUE), IF(NOT(ISBLANK(テーブル63[[#This Row],[許可区分(土木)]])),\"D\",\"-\"))","v":"A"},{"$f":"IF(NOT(ISBLANK(テーブル63[[#This Row],[建築一式]])),VLOOKUP(テーブル63[[#This Row],[建築一式]],建築[],2,TRUE), IF(NOT(ISBLANK(テーブル63[[#This Row],[許可区分（建築）]])),\"D\",\"-\"))","v":"A"},{"$f":"IF(NOT(ISBLANK(テーブル63[[#This Row],[電気]])),VLOOKUP(テーブル63[[#This Row],[電気]],電気[],2,TRUE), IF(NOT(ISBLANK(テーブル63[[#This Row],[許可区分（電気）]])),\"D\",\"-\"))","v":"-"},{"$f":"IF(NOT(ISBLANK(テーブル63[[#This Row],[管]])),VLOOKUP(テーブル63[[#This Row],[管]],管[],2,TRUE), IF(NOT(ISBLANK(テーブル63[[#This Row],[許可区分（管）]])),\"D\",\"-\"))","v":"-"},{"$f":"IF(NOT(ISBLANK(テーブル63[[#This Row],[ほ装]])),VLOOKUP(テーブル63[[#This Row],[ほ装]],ほ装[],2,TRUE), IF(NOT(ISBLANK(テーブル63[[#This Row],[許可区分(ほ装)]])),\"D\",\"-\"))","v":"A"},{"$f":"IF(NOT(ISBLANK(テーブル63[[#This Row],[塗装]])),VLOOKUP(テーブル63[[#This Row],[塗装]],塗装[],2,TRUE), IF(NOT(ISBLANK(テーブル63[[#This Row],[許可区分（塗装）]])),\"D\",\"-\"))","v":"-"},{"$f":"IF(NOT(ISBLANK(テーブル63[[#This Row],[防水]])),VLOOKUP(テーブル63[[#This Row],[防水]],塗装[],2,TRUE), IF(NOT(ISBLANK(テーブル63[[#This Row],[許可区分（防水）]])),\"D\",\"-\"))","v":"-"},{"$f":"IF(NOT(ISBLANK(テーブル63[[#This Row],[機械器具設置]])),VLOOKUP(テーブル63[[#This Row],[機械器具設置]],塗装[],2,TRUE), IF(NOT(ISBLANK(テーブル63[[#This Row],[許可区分（機械器具）]])),\"D\",\"-\"))","v":"-"},{"$f":"IF(NOT(ISBLANK(テーブル63[[#This Row],[電気通信]])),VLOOKUP(テーブル63[[#This Row],[電気通信]],電気[],2,TRUE), IF(NOT(ISBLANK(テーブル63[[#This Row],[許可区分(電気)]])),\"D\",\"-\"))","v":"-"},{"$f":"IF(NOT(ISBLANK(テーブル63[[#This Row],[水道施設]])),VLOOKUP(テーブル63[[#This Row],[水道施設]],水道[],2,TRUE), IF(NOT(ISBLANK(テーブル63[[#This Row],[許可区分（水道施設）]])),\"D\",\"-\"))","v":"B"}]
[32,"県内","フィデス株式会社","千葉市緑区大高町40番地15","細矢　充","043-295-1151","043-295-1212",null,null,null,null,"特定",1109,"特定",983,null,null,null,null,null,null,null,null,"一般",792,null,null,{"$f":"IF(NOT(ISBLANK(テーブル63[[#This Row],[土木一式]])),VLOOKUP(テーブル63[[#This Row],[土木一式]],土木[],2,TRUE), IF(NOT(ISBLANK(テーブル63[[#This Row],[許可区分(土木)]])),\"D\",\"-\"))","v":"-"},{"$f":"IF(NOT(ISBLANK(テーブル63[[#This Row],[建築一式]])),VLOOKUP(テーブル63[[#This Row],[建築一式]],建築[],2,TRUE), IF(NOT(ISBLANK(テーブル63[[#This Row],[許可区分（建築）]])),\"D\",\"-\"))","v":"-"},{"$f":"IF(NOT(ISBLANK(テーブル63[[#This Row],[電気]])),VLOOKUP(テーブル63[[#This Row],[電気]],電気[],2,TRUE), IF(NOT(ISBLANK(テーブル63[[#This Row],[許可区分（電気）]])),\"D\",\"-\"))","v":"A"},{"$f":"IF(NOT(ISBLANK(テーブル63[[#This Row],[管]])),VLOOKUP(テーブル63[[#This Row],[管]],管[],2,TRUE), IF(NOT(ISBLANK(テーブル63[[#This Row],[許可区分（管）]])),\"D\",\"-\"))","v":"A"},{"$f":"IF(NOT(ISBLANK(テーブル63[[#This Row],[ほ装]])),VLOOKUP(テーブル63[[#This Row],[ほ装]],ほ装[],2,TRUE), IF(NOT(ISBLANK(テーブル63[[#This Row],[許可区分(ほ装)]])),\"D\",\"-\"))","v":"-"},{"$f":"IF(NOT(ISBLANK(テーブル63[[#This Row],[塗装]])),VLOOKUP(テーブル63[[#This Row],[塗装]],塗装[],2,TRUE), IF(NOT(ISBLANK(テーブル63[[#This Row],[許可区分（塗装）]])),\"D\",\"-\"))","v":"-"},{"$f":"IF(NOT(ISBLANK(テーブル63[[#This Row],[防水]])),VLOOKUP(テーブル63[[#This Row],[防水]],塗装[],2,TRUE), IF(NOT(ISBLANK(テーブル63[[#This Row],[許可区分（防水）]])),\"D\",\"-\"))","v":"-"},{"$f":"IF(NOT(ISBLANK(テーブル63[[#This Row],[機械器具設置]])),VLOOKUP(テーブル63[[#This Row],[機械器具設置]],塗装[],2,TRUE), IF(NOT(ISBLANK(テーブル63[[#This Row],[許可区分（機械器具）]])),\"D\",\"-\"))","v":"-"},{"$f":"IF(NOT(ISBLANK(テーブル63[[#This Row],[電気通信]])),VLOOKUP(テーブル63[[#This Row],[電気通信]],電気[],2,TRUE), IF(NOT(ISBLANK(テーブル63[[#This Row],[許可区分(電気)]])),\"D\",\"-\"))","v":"B"},{"$f":"IF(NOT(ISBLANK(テーブル63[[#This Row],[水道施設]])),VLOOKUP(テーブル63[[#This Row],[水道施設]],水道[],2,TRUE), IF(NOT(ISBLANK(テーブル63[[#This Row],[許可区分（水道施設）]])),\"D\",\"-\"))","v":"-"}]
[33,"県内","荏原商事株式会社　千葉営業所","松戸市常盤平五丁目18番地1","菊池　敦","047-311-0380","047-311-0381","特定",885,null,null,"特定",1366,"特定",1172,null,null,null,null,null,null,"特定",1396,null,null,"特定",1237,{"$f":"IF(NOT(ISBLANK(テーブル63[[#This Row],[土木一式]])),VLOOKUP(テーブル63[[#This Row],[土木一式]],土木[],2,TRUE), IF(NOT(ISBLANK(テーブル63[[#This Row],[許可区分(土木)]])),\"D\",\"-\"))","v":"A"},{"$f":"IF(NOT(ISBLANK(テーブル63[[#This Row],[建築一式]])),VLOOKUP(テーブル63[[#This Row],[建築一式]],建築[],2,TRUE), IF(NOT(ISBLANK(テーブル63[[#This Row],[許可区分（建築）]])),\"D\",\"-\"))","v":"-"},{"$f":"IF(NOT(ISBLANK(テーブル63[[#This Row],[電気]])),VLOOKUP(テーブル63[[#This Row],[電気]],電気[],2,TRUE), IF(NOT(ISBLANK(テーブル63[[#This Row],[許可区分（電気）]])),\"D\",\"-\"))","v":"A"},{"$f":"IF(NOT(ISBLANK(テーブル63[[#This Row],[管]])),VLOOKUP(テーブル63[[#This Row],[管]],管[],2,TRUE), IF(NOT(ISBLANK(テーブル63[[#This Row],[許可区分（管）]])),\"D\",\"-\"))","v":"A"},{"$f":"IF(NOT(ISBLANK(テーブル63[[#This Row],[ほ装]])),VLOOKUP(テーブル63[[#This Row],[ほ装]],ほ装[],2,TRUE), IF(NOT(ISBLANK(テーブル63[[#This Row],[許可区分(ほ装)]])),\"D\",\"-\"))","v":"-"},{"$f":"IF(NOT(ISBLANK(テーブル63[[#This Row],[塗装]])),VLOOKUP(テーブル63[[#This Row],[塗装]],塗装[],2,TRUE), IF(NOT(ISBLANK(テーブル63[[#This Row],[許可区分（塗装）]])),\"D\",\"-\"))","v":"-"},{"$f":"IF(NOT(ISBLANK(テーブル63[[#This Row],[防水]])),VLOOKUP(テーブル63[[#This Row],[防水]],塗装[],2,TRUE), IF(NOT(ISBLANK(テーブル63[[#This Row],[許可区分（防水）]])),\"D\",\"-\"))","v":"-"},{"$f":"IF(NOT(ISBLANK(テーブル63[[#This Row],[機械器具設置]])),VLOOKUP(テーブル63[[#This Row],[機械器具設置]],塗装[],2,TRUE), IF(NOT(ISBLANK(テーブル63[[#This Row],[許可区分（機械器具）]])),\"D\",\"-\"))","v":"A"},{"$f":"IF(NOT(ISBLANK(テーブル63[[#This Row],[電気通信]])),VLOOKUP(テーブル63[[#This Row],[電気通信]],電気[],2,TRUE), IF(NOT(ISBLANK(テーブル63[[#This Row],[許可区分(電気)]])),\"D\",\"-\"))","v":"-"},{"$f":"IF(NOT(ISBLANK(テーブル63[[#This Row],[水道施設]])),VLOOKUP(テーブル63[[#This Row],[水道施設]],水道[],2,TRUE), IF(NOT(ISBLANK(テーブル63[[#This Row],[許可区分（水道施設）]])),\"D\",\"-\"))","v":"A"}]
[34,"県内","株式会社ヤマト　千葉支店","千葉市中央区末広四丁目8番4号","中村　孝彦","043-497-3190","043-497-3191","特定",1246,null,null,"特定",1291,"特定",1561,null,null,null,null,null,null,"特定",1205,null,null,"特定",1260,{"$f":"IF(NOT(ISBLANK(テーブル63[[#This Row],[土木一式]])),VLOOKUP(テーブル63[[#This Row],[土木一式]],土木[],2,TRUE), IF(NOT(ISBLANK(テーブル63[[#This Row],[許可区分(土木)]])),\"D\",\"-\"))","v":"A"},{"$f":"IF(NOT(ISBLANK(テーブル63[[#This Row],[建築一式]])),VLOOKUP(テーブル63[[#This Row],[建築一式]],建築[],2,TRUE), IF(NOT(ISBLANK(テーブル63[[#This Row],[許可区分（建築）]])),\"D\",\"-\"))","v":"-"},{"$f":"IF(NOT(ISBLANK(テーブル63[[#This Row],[電気]])),VLOOKUP(テーブル63[[#This Row],[電気]],電気[],2,TRUE), IF(NOT(ISBLANK(テーブル63[[#This Row],[許可区分（電気）]])),\"D\",\"-\"))","v":"A"},{"$f":"IF(NOT(ISBLANK(テーブル63[[#This Row],[管]])),VLOOKUP(テーブル63[[#This Row],[管]],管[],2,TRUE), IF(NOT(ISBLANK(テーブル63[[#This Row],[許可区分（管）]])),\"D\",\"-\"))","v":"A"},{"$f":"IF(NOT(ISBLANK(テーブル63[[#This Row],[ほ装]])),VLOOKUP(テーブル63[[#This Row],[ほ装]],ほ装[],2,TRUE), IF(NOT(ISBLANK(テーブル63[[#This Row],[許可区分(ほ装)]])),\"D\",\"-\"))","v":"-"},{"$f":"IF(NOT(ISBLANK(テーブル63[[#This Row],[塗装]])),VLOOKUP(テーブル63[[#This Row],[塗装]],塗装[],2,TRUE), IF(NOT(ISBLANK(テーブル63[[#This Row],[許可区分（塗装）]])),\"D\",\"-\"))","v":"-"},{"$f":"IF(NOT(ISBLANK(テーブル63[[#This Row],[防水]])),VLOOKUP(テーブル63[[#This Row],[防水]],塗装[],2,TRUE), IF(NOT(ISBLANK(テーブル63[[#This Row],[許可区分（防水）]])),\"D\",\"-\"))","v":"-"},{"$f":"IF(NOT(ISBLANK(テーブル63[[#This Row],[機械器具設置]])),VLOOKUP(テーブル63[[#This Row],[機械器具設置]],塗装[],2,TRUE), IF(NOT(ISBLANK(テーブル63[[#This Row],[許可区分（機械器具）]])),\"D\",\"-\"))","v":"A"},{"$f":"IF(NOT(ISBLANK(テーブル63[[#This Row],[電気通信]])),VLOOKUP(テーブル63[[#This Row],[電気通信]],電気[],2,TRUE), IF(NOT(ISBLANK(テーブル63[[#This Row],[許可区分(電気)]])),\"D\",\"-\"))","v":"-"},{"$f":"IF(NOT(ISBLANK(テーブル63[[#This Row],[水道施設]])),VLOOKUP(テーブル63[[#This Row],[水道施設]],水道[],2,TRUE), IF(NOT(ISBLANK(テーブル63[[#This Row],[許可区分（水道施設）]])),\"D\",\"-\"))","v":"A"}]
[35,"県内","株式会社安藤建設","香取郡多古町多古3545番地4","安藤　ゆみ","0479-76-5311","0479-76-5314","特定",973,null,null,null,null,"一般",692,"特定",896,null,null,null,null,null,null,null,null,"一般",692,{"$f":"IF(NOT(ISBLANK(テーブル63[[#This Row],[土木一式]])),VLOOKUP(テーブル63[[#This Row],[土木一式]],土木[],2,TRUE), IF(NOT(ISBLANK(テーブル63[[#This Row],[許可区分(土木)]])),\"D\",\"-\"))","v":"A"},{"$f":"IF(NOT(ISBLANK(テーブル63[[#This Row],[建築一式]])),VLOOKUP(テーブル63[[#This Row],[建築一式]],建築[],2,TRUE), IF(NOT(ISBLANK(テーブル63[[#This Row],[許可区分（建築）]])),\"D\",\"-\"))","v":"-"},{"$f":"IF(NOT(ISBLANK(テーブル63[[#This Row],[電気]])),VLOOKUP(テーブル63[[#This Row],[電気]],電気[],2,TRUE), IF(NOT(ISBLANK(テーブル63[[#This Row],[許可区分（電気）]])),\"D\",\"-\"))","v":"-"},{"$f":"IF(NOT(ISBLANK(テーブル63[[#This Row],[管]])),VLOOKUP(テーブル63[[#This Row],[管]],管[],2,TRUE), IF(NOT(ISBLANK(テーブル63[[#This Row],[許可区分（管）]])),\"D\",\"-\"))","v":"B"},{"$f":"IF(NOT(ISBLANK(テーブル63[[#This Row],[ほ装]])),VLOOKUP(テーブル63[[#This Row],[ほ装]],ほ装[],2,TRUE), IF(NOT(ISBLANK(テーブル63[[#This Row],[許可区分(ほ装)]])),\"D\",\"-\"))","v":"A"},{"$f":"IF(NOT(ISBLANK(テーブル63[[#This Row],[塗装]])),VLOOKUP(テーブル63[[#This Row],[塗装]],塗装[],2,TRUE), IF(NOT(ISBLANK(テーブル63[[#This Row],[許可区分（塗装）]])),\"D\",\"-\"))","v":"-"},{"$f":"IF(NOT(ISBLANK(テーブル63[[#This Row],[防水]])),VLOOKUP(テーブル63[[#This Row],[防水]],塗装[],2,TRUE), IF(NOT(ISBLANK(テーブル63[[#This Row],[許可区分（防水）]])),\"D\",\"-\"))","v":"-"},{"$f":"IF(NOT(ISBLANK(テーブル63[[#This Row],[機械器具設置]])),VLOOKUP(テーブル63[[#This Row],[機械器具設置]],塗装[],2,TRUE), IF(NOT(ISBLANK(テーブル63[[#This Row],[許可区分（機械器具）]])),\"D\",\"-\"))","v":"-"},{"$f":"IF(NOT(ISBLANK(テーブル63[[#This Row],[電気通信]])),VLOOKUP(テーブル63[[#This Row],[電気通信]],電気[],2,TRUE), IF(NOT(ISBLANK(テーブル63[[#This Row],[許可区分(電気)]])),\"D\",\"-\"))","v":"-"},{"$f":"IF(NOT(ISBLANK(テーブル63[[#This Row],[水道施設]])),VLOOKUP(テーブル63[[#This Row],[水道施設]],水道[],2,TRUE), IF(NOT(ISBLANK(テーブル63[[#This Row],[許可区分（水道施設）]])),\"D\",\"-\"))","v":"C"}]
[36,"県内","飛島建設株式会社　千葉営業所","千葉市中央区登戸一丁目26番1号","八田　貴文","043-238-8601","043-238-9581","特定",1673,"特定",1620,null,null,null,null,"特定",1052,null,null,null,null,null,null,null,null,"特定",1315,{"$f":"IF(NOT(ISBLANK(テーブル63[[#This Row],[土木一式]])),VLOOKUP(テーブル63[[#This Row],[土木一式]],土木[],2,TRUE), IF(NOT(ISBLANK(テーブル63[[#This Row],[許可区分(土木)]])),\"D\",\"-\"))","v":"A"},{"$f":"IF(NOT(ISBLANK(テーブル63[[#This Row],[建築一式]])),VLOOKUP(テーブル63[[#This Row],[建築一式]],建築[],2,TRUE), IF(NOT(ISBLANK(テーブル63[[#This Row],[許可区分（建築）]])),\"D\",\"-\"))","v":"A"},{"$f":"IF(NOT(ISBLANK(テーブル63[[#This Row],[電気]])),VLOOKUP(テーブル63[[#This Row],[電気]],電気[],2,TRUE), IF(NOT(ISBLANK(テーブル63[[#This Row],[許可区分（電気）]])),\"D\",\"-\"))","v":"-"},{"$f":"IF(NOT(ISBLANK(テーブル63[[#This Row],[管]])),VLOOKUP(テーブル63[[#This Row],[管]],管[],2,TRUE), IF(NOT(ISBLANK(テーブル63[[#This Row],[許可区分（管）]])),\"D\",\"-\"))","v":"-"},{"$f":"IF(NOT(ISBLANK(テーブル63[[#This Row],[ほ装]])),VLOOKUP(テーブル63[[#This Row],[ほ装]],ほ装[],2,TRUE), IF(NOT(ISBLANK(テーブル63[[#This Row],[許可区分(ほ装)]])),\"D\",\"-\"))","v":"A"},{"$f":"IF(NOT(ISBLANK(テーブル63[[#This Row],[塗装]])),VLOOKUP(テーブル63[[#This Row],[塗装]],塗装[],2,TRUE), IF(NOT(ISBLANK(テーブル63[[#This Row],[許可区分（塗装）]])),\"D\",\"-\"))","v":"-"},{"$f":"IF(NOT(ISBLANK(テーブル63[[#This Row],[防水]])),VLOOKUP(テーブル63[[#This Row],[防水]],塗装[],2,TRUE), IF(NOT(ISBLANK(テーブル63[[#This Row],[許可区分（防水）]])),\"D\",\"-\"))","v":"-"},{"$f":"IF(NOT(ISBLANK(テーブル63[[#This Row],[機械器具設置]])),VLOOKUP(テーブル63[[#This Row],[機械器具設置]],塗装[],2,TRUE), IF(NOT(ISBLANK(テーブル63[[#This Row],[許可区分（機械器具）]])),\"D\",\"-\"))","v":"-"},{"$f":"IF(NOT(ISBLANK(テーブル63[[#This Row],[電気通信]])),VLOOKUP(テーブル63[[#This Row],[電気通信]],電気[],2,TRUE), IF(NOT(ISBLANK(テーブル63[[#This Row],[許可区分(電気)]])),\"D\",\"-\"))","v":"-"},{"$f":"IF(NOT(ISBLANK(テーブル63[[#This Row],[水道施設]])),VLOOKUP(テーブル63[[#This Row],[水道施設]],水道[],2,TRUE), IF(NOT(ISBLANK(テーブル63[[#This Row],[許可区分（水道施設）]])),\"D\",\"-\"))","v":"A"}]
[37,"県内","髙率電設株式会社","千葉市稲毛区緑町1丁目5番8号","小川　力","043-242-1539","043-242-1884",null,null,null,null,"特定",948,null,null,null,null,null,null,null,null,null,null,null,null,null,null,{"$f":"IF(NOT(ISBLANK(テーブル63[[#This Row],[土木一式]])),VLOOKUP(テーブル63[[#This Row],[土木一式]],土木[],2,TRUE), IF(NOT(ISBLANK(テーブル63[[#This Row],[許可区分(土木)]])),\"D\",\"-\"))","v":"-"},{"$f":"IF(NOT(ISBLANK(テーブル63[[#This Row],[建築一式]])),VLOOKUP(テーブル63[[#This Row],[建築一式]],建築[],2,TRUE), IF(NOT(ISBLANK(テーブル63[[#This Row],[許可区分（建築）]])),\"D\",\"-\"))","v":"-"},{"$f":"IF(NOT(ISBLANK(テーブル63[[#This Row],[電気]])),VLOOKUP(テーブル63[[#This Row],[電気]],電気[],2,TRUE), IF(NOT(ISBLANK(テーブル63[[#This Row],[許可区分（電気）]])),\"D\",\"-\"))","v":"A"},{"$f":"IF(NOT(ISBLANK(テーブル63[[#This Row],[管]])),VLOOKUP(テーブル63[[#This Row],[管]],管[],2,TRUE), IF(NOT(ISBLANK(テーブル63[[#This Row],[許可区分（管）]])),\"D\",\"-\"))","v":"-"},{"$f":"IF(NOT(ISBLANK(テーブル63[[#This Row],[ほ装]])),VLOOKUP(テーブル63[[#This Row],[ほ装]],ほ装[],2,TRUE), IF(NOT(ISBLANK(テーブル63[[#This Row],[許可区分(ほ装)]])),\"D\",\"-\"))","v":"-"},{"$f":"IF(NOT(ISBLANK(テーブル63[[#This Row],[塗装]])),VLOOKUP(テーブル63[[#This Row],[塗装]],塗装[],2,TRUE), IF(NOT(ISBLANK(テーブル63[[#This Row],[許可区分（塗装）]])),\"D\",\"-\"))","v":"-"},{"$f":"IF(NOT(ISBLANK(テーブル63[[#This Row],[防水]])),VLOOKUP(テーブル63[[#This Row],[防水]],塗装[],2,TRUE), IF(NOT(ISBLANK(テーブル63[[#This Row],[許可区分（防水）]])),\"D\",\"-\"))","v":"-"},{"$f":"IF(NOT(ISBLANK(テーブル63[[#This Row],[機械器具設置]])),VLOOKUP(テーブル63[[#This Row],[機械器具設置]],塗装[],2,TRUE), IF(NOT(ISBLANK(テーブル63[[#This Row],[許可区分（機械器具）]])),\"D\",\"-\"))","v":"-"},{"$f":"IF(NOT(ISBLANK(テーブル63[[#This Row],[電気通信]])),VLOOKUP(テーブル63[[#This Row],[電気通信]],電気[],2,TRUE), IF(NOT(ISBLANK(テーブル63[[#This Row],[許可区分(電気)]])),\"D\",\"-\"))","v":"-"},{"$f":"IF(NOT(ISBLANK(テーブル63[[#This Row],[水道施設]])),VLOOKUP(テーブル63[[#This Row],[水道施設]],水道[],2,TRUE), IF(NOT(ISBLANK(テーブル63[[#This Row],[許可区分（水道施設）]])),\"D\",\"-\"))","v":"-"}]
[38,"県内","三峰無線株式会社　東関東支店","我孫子市本町3丁目4番33号","折原　秀夫","04-7192-7090","04-7192-7392",null,null,null,null,null,null,null,null,null,null,null,null,null,null,null,null,"特定",1009,null,null,{"$f":"IF(NOT(ISBLANK(テーブル63[[#This Row],[土木一式]])),VLOOKUP(テーブル63[[#This Row],[土木一式]],土木[],2,TRUE), IF(NOT(ISBLANK(テーブル63[[#This Row],[許可区分(土木)]])),\"D\",\"-\"))","v":"-"},{"$f":"IF(NOT(ISBLANK(テーブル63[[#This Row],[建築一式]])),VLOOKUP(テーブル63[[#This Row],[建築一式]],建築[],2,TRUE), IF(NOT(ISBLANK(テーブル63[[#This Row],[許可区分（建築）]])),\"D\",\"-\"))","v":"-"},{"$f":"IF(NOT(ISBLANK(テーブル63[[#This Row],[電気]])),VLOOKUP(テーブル63[[#This Row],[電気]],電気[],2,TRUE), IF(NOT(ISBLANK(テーブル63[[#This Row],[許可区分（電気）]])),\"D\",\"-\"))","v":"-"},{"$f":"IF(NOT(ISBLANK(テーブル63[[#This Row],[管]])),VLOOKUP(テーブル63[[#This Row],[管]],管[],2,TRUE), IF(NOT(ISBLANK(テーブル63[[#This Row],[許可区分（管）]])),\"D\",\"-\"))","v":"-"},{"$f":"IF(NOT(ISBLANK(テーブル63[[#This Row],[ほ装]])),VLOOKUP(テーブル63[[#This Row],[ほ装]],ほ装[],2,TRUE), IF(NOT(ISBLANK(テーブル63[[#This Row],[許可区分(ほ装)]])),\"D\",\"-\"))","v":"-"},{"$f":"IF(NOT(ISBLANK(テーブル63[[#This Row],[塗装]])),VLOOKUP(テーブル63[[#This Row],[塗装]],塗装[],2,TRUE), IF(NOT(ISBLANK(テーブル63[[#This Row],[許可区分（塗装）]])),\"D\",\"-\"))","v":"-"},{"$f":"IF(NOT(ISBLANK(テーブル63[[#This Row],[防水]])),VLOOKUP(テーブル63[[#This Row],[防水]],塗装[],2,TRUE), IF(NOT(ISBLANK(テーブル63[[#This Row],[許可区分（防水）]])),\"D\",\"-\"))","v":"-"},{"$f":"IF(NOT(ISBLANK(テーブル63[[#This Row],[機械器具設置]])),VLOOKUP(テーブル63[[#This Row],[機械器具設置]],塗装[],2,TRUE), IF(NOT(ISBLANK(テーブル63[[#This Row],[許可区分（機械器具）]])),\"D\",\"-\"))","v":"-"},{"$f":"IF(NOT(ISBLANK(テーブル63[[#This Row],[電気通信]])),VLOOKUP(テーブル63[[#This Row],[電気通信]],電気[],2,TRUE), IF(NOT(ISBLANK(テーブル63[[#This Row],[許可区分(電気)]])),\"D\",\"-\"))","v":"A"},{"$f":"IF(NOT(ISBLANK(テーブル63[[#This Row],[水道施設]])),VLOOKUP(テーブル63[[#This Row],[水道施設]],水道[],2,TRUE), IF(NOT(ISBLANK(テーブル63[[#This Row],[許可区分（水道施設）]])),\"D\",\"-\"))","v":"-"}]
[39,"県内","株式会社入野土木","旭市入野1367番地","宇井　和則","0479-68-3150","0479-68-4046","特定",974,"一般",724,null,null,"一般",724,"特定",871,null,null,null,null,null,null,null,null,"特定",724,{"$f":"IF(NOT(ISBLANK(テーブル63[[#This Row],[土木一式]])),VLOOKUP(テーブル63[[#This Row],[土木一式]],土木[],2,TRUE), IF(NOT(ISBLANK(テーブル63[[#This Row],[許可区分(土木)]])),\"D\",\"-\"))","v":"A"},{"$f":"IF(NOT(ISBLANK(テーブル63[[#This Row],[建築一式]])),VLOOKUP(テーブル63[[#This Row],[建築一式]],建築[],2,TRUE), IF(NOT(ISBLANK(テーブル63[[#This Row],[許可区分（建築）]])),\"D\",\"-\"))","v":"B"},{"$f":"IF(NOT(ISBLANK(テーブル63[[#This Row],[電気]])),VLOOKUP(テーブル63[[#This Row],[電気]],電気[],2,TRUE), IF(NOT(ISBLANK(テーブル63[[#This Row],[許可区分（電気）]])),\"D\",\"-\"))","v":"-"},{"$f":"IF(NOT(ISBLANK(テーブル63[[#This Row],[管]])),VLOOKUP(テーブル63[[#This Row],[管]],管[],2,TRUE), IF(NOT(ISBLANK(テーブル63[[#This Row],[許可区分（管）]])),\"D\",\"-\"))","v":"A"},{"$f":"IF(NOT(ISBLANK(テーブル63[[#This Row],[ほ装]])),VLOOKUP(テーブル63[[#This Row],[ほ装]],ほ装[],2,TRUE), IF(NOT(ISBLANK(テーブル63[[#This Row],[許可区分(ほ装)]])),\"D\",\"-\"))","v":"A"},{"$f":"IF(NOT(ISBLANK(テーブル63[[#This Row],[塗装]])),VLOOKUP(テーブル63[[#This Row],[塗装]],塗装[],2,TRUE), IF(NOT(ISBLANK(テーブル63[[#This Row],[許可区分（塗装）]])),\"D\",\"-\"))","v":"-"},{"$f":"IF(NOT(ISBLANK(テーブル63[[#This Row],[防水]])),VLOOKUP(テーブル63[[#This Row],[防水]],塗装[],2,TRUE), IF(NOT(ISBLANK(テーブル63[[#This Row],[許可区分（防水）]])),\"D\",\"-\"))","v":"-"},{"$f":"IF(NOT(ISBLANK(テーブル63[[#This Row],[機械器具設置]])),VLOOKUP(テーブル63[[#This Row],[機械器具設置]],塗装[],2,TRUE), IF(NOT(ISBLANK(テーブル63[[#This Row],[許可区分（機械器具）]])),\"D\",\"-\"))","v":"-"},{"$f":"IF(NOT(ISBLANK(テーブル63[[#This Row],[電気通信]])),VLOOKUP(テーブル63[[#This Row],[電気通信]],電気[],2,TRUE), IF(NOT(ISBLANK(テーブル63[[#This Row],[許可区分(電気)]])),\"D\",\"-\"))","v":"-"},{"$f":"IF(NOT(ISBLANK(テーブル63[[#This Row],[水道施設]])),VLOOKUP(テーブル63[[#This Row],[水道施設]],水道[],2,TRUE), IF(NOT(ISBLANK(テーブル63[[#This Row],[許可区分（水道施設）]])),\"D\",\"-\"))","v":"B"}]
[40,"県内","鈴木建設株式会社","旭市後草2364番地の3","鈴木　和彦","0479-55-3221","0479-55-2312","特定",1072,"特定",1065,null,null,"特定",835,"特定",883,null,null,null,null,null,null,null,null,"特定",786,{"$f":"IF(NOT(ISBLANK(テーブル63[[#This Row],[土木一式]])),VLOOKUP(テーブル63[[#This Row],[土木一式]],土木[],2,TRUE), IF(NOT(ISBLANK(テーブル63[[#This Row],[許可区分(土木)]])),\"D\",\"-\"))","v":"A"},{"$f":"IF(NOT(ISBLANK(テーブル63[[#This Row],[建築一式]])),VLOOKUP(テーブル63[[#This Row],[建築一式]],建築[],2,TRUE), IF(NOT(ISBLANK(テーブル63[[#This Row],[許可区分（建築）]])),\"D\",\"-\"))","v":"A"},{"$f":"IF(NOT(ISBLANK(テーブル63[[#This Row],[電気]])),VLOOKUP(テーブル63[[#This Row],[電気]],電気[],2,TRUE), IF(NOT(ISBLANK(テーブル63[[#This Row],[許可区分（電気）]])),\"D\",\"-\"))","v":"-"},{"$f":"IF(NOT(ISBLANK(テーブル63[[#This Row],[管]])),VLOOKUP(テーブル63[[#This Row],[管]],管[],2,TRUE), IF(NOT(ISBLANK(テーブル63[[#This Row],[許可区分（管）]])),\"D\",\"-\"))","v":"A"},{"$f":"IF(NOT(ISBLANK(テーブル63[[#This Row],[ほ装]])),VLOOKUP(テーブル63[[#This Row],[ほ装]],ほ装[],2,TRUE), IF(NOT(ISBLANK(テーブル63[[#This Row],[許可区分(ほ装)]])),\"D\",\"-\"))","v":"A"},{"$f":"IF(NOT(ISBLANK(テーブル63[[#This Row],[塗装]])),VLOOKUP(テーブル63[[#This Row],[塗装]],塗装[],2,TRUE), IF(NOT(ISBLANK(テーブル63[[#This Row],[許可区分（塗装）]])),\"D\",\"-\"))","v":"-"},{"$f":"IF(NOT(ISBLANK(テーブル63[[#This Row],[防水]])),VLOOKUP(テーブル63[[#This Row],[防水]],塗装[],2,TRUE), IF(NOT(ISBLANK(テーブル63[[#This Row],[許可区分（防水）]])),\"D\",\"-\"))","v":"-"},{"$f":"IF(NOT(ISBLANK(テーブル63[[#This Row],[機械器具設置]])),VLOOKUP(テーブル63[[#This Row],[機械器具設置]],塗装[],2,TRUE), IF(NOT(ISBLANK(テーブル63[[#This Row],[許可区分（機械器具）]])),\"D\",\"-\"))","v":"-"},{"$f":"IF(NOT(ISBLANK(テーブル63[[#This Row],[電気通信]])),VLOOKUP(テーブル63[[#This Row],[電気通信]],電気[],2,TRUE), IF(NOT(ISBLANK(テーブル63[[#This Row],[許可区分(電気)]])),\"D\",\"-\"))","v":"-"},{"$f":"IF(NOT(ISBLANK(テーブル63[[#This Row],[水道施設]])),VLOOKUP(テーブル63[[#This Row],[水道施設]],水道[],2,TRUE), IF(NOT(ISBLANK(テーブル63[[#This Row],[許可区分（水道施設）]])),\"D\",\"-\"))","v":"B"}]
[41,"県内","東芝プラントシステム株式会社　東関東営業出張所","千葉市美浜区中瀬2丁目6番地1","成田　洋生","043-297-8050","043-297-8051",null,null,null,null,"特定",1874,null,null,null,null,null,null,null,null,null,null,"特定",1233,null,null,{"$f":"IF(NOT(ISBLANK(テーブル63[[#This Row],[土木一式]])),VLOOKUP(テーブル63[[#This Row],[土木一式]],土木[],2,TRUE), IF(NOT(ISBLANK(テーブル63[[#This Row],[許可区分(土木)]])),\"D\",\"-\"))","v":"-"},{"$f":"IF(NOT(ISBLANK(テーブル63[[#This Row],[建築一式]])),VLOOKUP(テーブル63[[#This Row],[建築一式]],建築[],2,TRUE), IF(NOT(ISBLANK(テーブル63[[#This Row],[許可区分（建築）]])),\"D\",\"-\"))","v":"-"},{"$f":"IF(NOT(ISBLANK(テーブル63[[#This Row],[電気]])),VLOOKUP(テーブル63[[#This Row],[電気]],電気[],2,TRUE), IF(NOT(ISBLANK(テーブル63[[#This Row],[許可区分（電気）]])),\"D\",\"-\"))","v":"A"},{"$f":"IF(NOT(ISBLANK(テーブル63[[#This Row],[管]])),VLOOKUP(テーブル63[[#This Row],[管]],管[],2,TRUE), IF(NOT(ISBLANK(テーブル63[[#This Row],[許可区分（管）]])),\"D\",\"-\"))","v":"-"},{"$f":"IF(NOT(ISBLANK(テーブル63[[#This Row],[ほ装]])),VLOOKUP(テーブル63[[#This Row],[ほ装]],ほ装[],2,TRUE), IF(NOT(ISBLANK(テーブル63[[#This Row],[許可区分(ほ装)]])),\"D\",\"-\"))","v":"-"},{"$f":"IF(NOT(ISBLANK(テーブル63[[#This Row],[塗装]])),VLOOKUP(テーブル63[[#This Row],[塗装]],塗装[],2,TRUE), IF(NOT(ISBLANK(テーブル63[[#This Row],[許可区分（塗装）]])),\"D\",\"-\"))","v":"-"},{"$f":"IF(NOT(ISBLANK(テーブル63[[#This Row],[防水]])),VLOOKUP(テーブル63[[#This Row],[防水]],塗装[],2,TRUE), IF(NOT(ISBLANK(テーブル63[[#This Row],[許可区分（防水）]])),\"D\",\"-\"))","v":"-"},{"$f":"IF(NOT(ISBLANK(テーブル63[[#This Row],[機械器具設置]])),VLOOKUP(テーブル63[[#This Row],[機械器具設置]],塗装[],2,TRUE), IF(NOT(ISBLANK(テーブル63[[#This Row],[許可区分（機械器具）]])),\"D\",\"-\"))","v":"-"},{"$f":"IF(NOT(ISBLANK(テーブル63[[#This Row],[電気通信]])),VLOOKUP(テーブル63[[#This Row],[電気通信]],電気[],2,TRUE), IF(NOT(ISBLANK(テーブル63[[#This Row],[許可区分(電気)]])),\"D\",\"-\"))","v":"A"},{"$f":"IF(NOT(ISBLANK(テーブル63[[#This Row],[水道施設]])),VLOOKUP(テーブル63[[#This Row],[水道施設]],水道[],2,TRUE), IF(NOT(ISBLANK(テーブル63[[#This Row],[許可区分（水道施設）]])),\"D\",\"-\"))","v":"-"}]
[42,"県内","藤英建設株式会社","旭市二の6292-4","藤代　剛志","0479-63-5878","0479-63-5992","特定",915,"特定",775,null,null,null,null,"特定",804,null,null,null,null,null,null,null,null,"特定",710,{"$f":"IF(NOT(ISBLANK(テーブル63[[#This Row],[土木一式]])),VLOOKUP(テーブル63[[#This Row],[土木一式]],土木[],2,TRUE), IF(NOT(ISBLANK(テーブル63[[#This Row],[許可区分(土木)]])),\"D\",\"-\"))","v":"A"},{"$f":"IF(NOT(ISBLANK(テーブル63[[#This Row],[建築一式]])),VLOOKUP(テーブル63[[#This Row],[建築一式]],建築[],2,TRUE), IF(NOT(ISBLANK(テーブル63[[#This Row],[許可区分（建築）]])),\"D\",\"-\"))","v":"B"},{"$f":"IF(NOT(ISBLANK(テーブル63[[#This Row],[電気]])),VLOOKUP(テーブル63[[#This Row],[電気]],電気[],2,TRUE), IF(NOT(ISBLANK(テーブル63[[#This Row],[許可区分（電気）]])),\"D\",\"-\"))","v":"-"},{"$f":"IF(NOT(ISBLANK(テーブル63[[#This Row],[管]])),VLOOKUP(テーブル63[[#This Row],[管]],管[],2,TRUE), IF(NOT(ISBLANK(テーブル63[[#This Row],[許可区分（管）]])),\"D\",\"-\"))","v":"-"},{"$f":"IF(NOT(ISBLANK(テーブル63[[#This Row],[ほ装]])),VLOOKUP(テーブル63[[#This Row],[ほ装]],ほ装[],2,TRUE), IF(NOT(ISBLANK(テーブル63[[#This Row],[許可区分(ほ装)]])),\"D\",\"-\"))","v":"A"},{"$f":"IF(NOT(ISBLANK(テーブル63[[#This Row],[塗装]])),VLOOKUP(テーブル63[[#This Row],[塗装]],塗装[],2,TRUE), IF(NOT(ISBLANK(テーブル63[[#This Row],[許可区分（塗装）]])),\"D\",\"-\"))","v":"-"},{"$f":"IF(NOT(ISBLANK(テーブル63[[#This Row],[防水]])),VLOOKUP(テーブル63[[#This Row],[防水]],塗装[],2,TRUE), IF(NOT(ISBLANK(テーブル63[[#This Row],[許可区分（防水）]])),\"D\",\"-\"))","v":"-"},{"$f":"IF(NOT(ISBLANK(テーブル63[[#This Row],[機械器具設置]])),VLOOKUP(テーブル63[[#This Row],[機械器具設置]],塗装[],2,TRUE), IF(NOT(ISBLANK(テーブル63[[#This Row],[許可区分（機械器具）]])),\"D\",\"-\"))","v":"-"},{"$f":"IF(NOT(ISBLANK(テーブル63[[#This Row],[電気通信]])),VLOOKUP(テーブル63[[#This Row],[電気通信]],電気[],2,TRUE), IF(NOT(ISBLANK(テーブル63[[#This Row],[許可区分(電気)]])),\"D\",\"-\"))","v":"-"},{"$f":"IF(NOT(ISBLANK(テーブル63[[#This Row],[水道施設]])),VLOOKUP(テーブル63[[#This Row],[水道施設]],水道[],2,TRUE), IF(NOT(ISBLANK(テーブル63[[#This Row],[許可区分（水道施設）]])),\"D\",\"-\"))","v":"B"}]
[43,"県内","有限会社西川塗装店","千葉市若葉区愛生町26番地3","西川　昇","043-284-0808","043-284-0080",null,null,"特定",801,null,null,null,null,null,null,"特定",961,"特定",819,null,null,null,null,null,null,{"$f":"IF(NOT(ISBLANK(テーブル63[[#This Row],[土木一式]])),VLOOKUP(テーブル63[[#This Row],[土木一式]],土木[],2,TRUE), IF(NOT(ISBLANK(テーブル63[[#This Row],[許可区分(土木)]])),\"D\",\"-\"))","v":"-"},{"$f":"IF(NOT(ISBLANK(テーブル63[[#This Row],[建築一式]])),VLOOKUP(テーブル63[[#This Row],[建築一式]],建築[],2,TRUE), IF(NOT(ISBLANK(テーブル63[[#This Row],[許可区分（建築）]])),\"D\",\"-\"))","v":"A"},{"$f":"IF(NOT(ISBLANK(テーブル63[[#This Row],[電気]])),VLOOKUP(テーブル63[[#This Row],[電気]],電気[],2,TRUE), IF(NOT(ISBLANK(テーブル63[[#This Row],[許可区分（電気）]])),\"D\",\"-\"))","v":"-"},{"$f":"IF(NOT(ISBLANK(テーブル63[[#This Row],[管]])),VLOOKUP(テーブル63[[#This Row],[管]],管[],2,TRUE), IF(NOT(ISBLANK(テーブル63[[#This Row],[許可区分（管）]])),\"D\",\"-\"))","v":"-"},{"$f":"IF(NOT(ISBLANK(テーブル63[[#This Row],[ほ装]])),VLOOKUP(テーブル63[[#This Row],[ほ装]],ほ装[],2,TRUE), IF(NOT(ISBLANK(テーブル63[[#This Row],[許可区分(ほ装)]])),\"D\",\"-\"))","v":"-"},{"$f":"IF(NOT(ISBLANK(テーブル63[[#This Row],[塗装]])),VLOOKUP(テーブル63[[#This Row],[塗装]],塗装[],2,TRUE), IF(NOT(ISBLANK(テーブル63[[#This Row],[許可区分（塗装）]])),\"D\",\"-\"))","v":"A"},{"$f":"IF(NOT(ISBLANK(テーブル63[[#This Row],[防水]])),VLOOKUP(テーブル63[[#This Row],[防水]],塗装[],2,TRUE), IF(NOT(ISBLANK(テーブル63[[#This Row],[許可区分（防水）]])),\"D\",\"-\"))","v":"A"},{"$f":"IF(NOT(ISBLANK(テーブル63[[#This Row],[機械器具設置]])),VLOOKUP(テーブル63[[#This Row],[機械器具設置]],塗装[],2,TRUE), IF(NOT(ISBLANK(テーブル63[[#This Row],[許可区分（機械器具）]])),\"D\",\"-\"))","v":"-"},{"$f":"IF(NOT(ISBLANK(テーブル63[[#This Row],[電気通信]])),VLOOKUP(テーブル63[[#This Row],[電気通信]],電気[],2,TRUE), IF(NOT(ISBLANK(テーブル63[[#This Row],[許可区分(電気)]])),\"D\",\"-\"))","v":"-"},{"$f":"IF(NOT(ISBLANK(テーブル63[[#This Row],[水道施設]])),VLOOKUP(テーブル63[[#This Row],[水道施設]],水道[],2,TRUE), IF(NOT(ISBLANK(テーブル63[[#This Row],[許可区分（水道施設）]])),\"D\",\"-\"))","v":"-"}]
[44,"県内","東芝インフラテクノサービス株式会社　東関東支店","千葉市美浜区中瀬2丁目6番地1　WBGマリブイースト24階","髙橋　義人","043-299-1024","043-297-6420",null,null,null,null,"特定",1365,null,null,null,null,null,null,null,null,null,null,"特定",1016,null,null,{"$f":"IF(NOT(ISBLANK(テーブル63[[#This Row],[土木一式]])),VLOOKUP(テーブル63[[#This Row],[土木一式]],土木[],2,TRUE), IF(NOT(ISBLANK(テーブル63[[#This Row],[許可区分(土木)]])),\"D\",\"-\"))","v":"-"},{"$f":"IF(NOT(ISBLANK(テーブル63[[#This Row],[建築一式]])),VLOOKUP(テーブル63[[#This Row],[建築一式]],建築[],2,TRUE), IF(NOT(ISBLANK(テーブル63[[#This Row],[許可区分（建築）]])),\"D\",\"-\"))","v":"-"},{"$f":"IF(NOT(ISBLANK(テーブル63[[#This Row],[電気]])),VLOOKUP(テーブル63[[#This Row],[電気]],電気[],2,TRUE), IF(NOT(ISBLANK(テーブル63[[#This Row],[許可区分（電気）]])),\"D\",\"-\"))","v":"A"},{"$f":"IF(NOT(ISBLANK(テーブル63[[#This Row],[管]])),VLOOKUP(テーブル63[[#This Row],[管]],管[],2,TRUE), IF(NOT(ISBLANK(テーブル63[[#This Row],[許可区分（管）]])),\"D\",\"-\"))","v":"-"},{"$f":"IF(NOT(ISBLANK(テーブル63[[#This Row],[ほ装]])),VLOOKUP(テーブル63[[#This Row],[ほ装]],ほ装[],2,TRUE), IF(NOT(ISBLANK(テーブル63[[#This Row],[許可区分(ほ装)]])),\"D\",\"-\"))","v":"-"},{"$f":"IF(NOT(ISBLANK(テーブル63[[#This Row],[塗装]])),VLOOKUP(テーブル63[[#This Row],[塗装]],塗装[],2,TRUE), IF(NOT(ISBLANK(テーブル63[[#This Row],[許可区分（塗装）]])),\"D\",\"-\"))","v":"-"},{"$f":"IF(NOT(ISBLANK(テーブル63[[#This Row],[防水]])),VLOOKUP(テーブル63[[#This Row],[防水]],塗装[],2,TRUE), IF(NOT(ISBLANK(テーブル63[[#This Row],[許可区分（防水）]])),\"D\",\"-\"))","v":"-"},{"$f":"IF(NOT(ISBLANK(テーブル63[[#This Row],[機械器具設置]])),VLOOKUP(テーブル63[[#This Row],[機械器具設置]],塗装[],2,TRUE), IF(NOT(ISBLANK(テーブル63[[#This Row],[許可区分（機械器具）]])),\"D\",\"-\"))","v":"-"},{"$f":"IF(NOT(ISBLANK(テーブル63[[#This Row],[電気通信]])),VLOOKUP(テーブル63[[#This Row],[電気通信]],電気[],2,TRUE), IF(NOT(ISBLANK(テーブル63[[#This Row],[許可区分(電気)]])),\"D\",\"-\"))","v":"A"},{"$f":"IF(NOT(ISBLANK(テーブル63[[#This Row],[水道施設]])),VLOOKUP(テーブル63[[#This Row],[水道施設]],水道[],2,TRUE), IF(NOT(ISBLANK(テーブル63[[#This Row],[許可区分（水道施設）]])),\"D\",\"-\"))","v":"-"}]
[45,"県内","メタウォーター株式会社　千葉営業所","千葉市中央区問屋町1番35号","伊藤　克美","043-379-4847","043-379-4581",null,null,null,null,"特定",1647,null,null,null,null,null,null,null,null,"特定",1590,"特定",1407,"特定",1456,{"$f":"IF(NOT(ISBLANK(テーブル63[[#This Row],[土木一式]])),VLOOKUP(テーブル63[[#This Row],[土木一式]],土木[],2,TRUE), IF(NOT(ISBLANK(テーブル63[[#This Row],[許可区分(土木)]])),\"D\",\"-\"))","v":"-"},{"$f":"IF(NOT(ISBLANK(テーブル63[[#This Row],[建築一式]])),VLOOKUP(テーブル63[[#This Row],[建築一式]],建築[],2,TRUE), IF(NOT(ISBLANK(テーブル63[[#This Row],[許可区分（建築）]])),\"D\",\"-\"))","v":"-"},{"$f":"IF(NOT(ISBLANK(テーブル63[[#This Row],[電気]])),VLOOKUP(テーブル63[[#This Row],[電気]],電気[],2,TRUE), IF(NOT(ISBLANK(テーブル63[[#This Row],[許可区分（電気）]])),\"D\",\"-\"))","v":"A"},{"$f":"IF(NOT(ISBLANK(テーブル63[[#This Row],[管]])),VLOOKUP(テーブル63[[#This Row],[管]],管[],2,TRUE), IF(NOT(ISBLANK(テーブル63[[#This Row],[許可区分（管）]])),\"D\",\"-\"))","v":"-"},{"$f":"IF(NOT(ISBLANK(テーブル63[[#This Row],[ほ装]])),VLOOKUP(テーブル63[[#This Row],[ほ装]],ほ装[],2,TRUE), IF(NOT(ISBLANK(テーブル63[[#This Row],[許可区分(ほ装)]])),\"D\",\"-\"))","v":"-"},{"$f":"IF(NOT(ISBLANK(テーブル63[[#This Row],[塗装]])),VLOOKUP(テーブル63[[#This Row],[塗装]],塗装[],2,TRUE), IF(NOT(ISBLANK(テーブル63[[#This Row],[許可区分（塗装）]])),\"D\",\"-\"))","v":"-"},{"$f":"IF(NOT(ISBLANK(テーブル63[[#This Row],[防水]])),VLOOKUP(テーブル63[[#This Row],[防水]],塗装[],2,TRUE), IF(NOT(ISBLANK(テーブル63[[#This Row],[許可区分（防水）]])),\"D\",\"-\"))","v":"-"},{"$f":"IF(NOT(ISBLANK(テーブル63[[#This Row],[機械器具設置]])),VLOOKUP(テーブル63[[#This Row],[機械器具設置]],塗装[],2,TRUE), IF(NOT(ISBLANK(テーブル63[[#This Row],[許可区分（機械器具）]])),\"D\",\"-\"))","v":"A"},{"$f":"IF(NOT(ISBLANK(テーブル63[[#This Row],[電気通信]])),VLOOKUP(テーブル63[[#This Row],[電気通信]],電気[],2,TRUE), IF(NOT(ISBLANK(テーブル63[[#This Row],[許可区分(電気)]])),\"D\",\"-\"))","v":"A"},{"$f":"IF(NOT(ISBLANK(テーブル63[[#This Row],[水道施設]])),VLOOKUP(テーブル63[[#This Row],[水道施設]],水道[],2,TRUE), IF(NOT(ISBLANK(テーブル63[[#This Row],[許可区分（水道施設）]])),\"D\",\"-\"))","v":"A"}]
[46,"県内","株式会社大崎コンピュータエンヂニアリング　千葉支店","千葉市中央区問屋町1番35号","上田　剛史","043-246-3685","043-246-3682",null,null,null,null,"特定",1024,"一般",770,null,null,null,null,null,null,null,null,"特定",1098,null,null,{"$f":"IF(NOT(ISBLANK(テーブル63[[#This Row],[土木一式]])),VLOOKUP(テーブル63[[#This Row],[土木一式]],土木[],2,TRUE), IF(NOT(ISBLANK(テーブル63[[#This Row],[許可区分(土木)]])),\"D\",\"-\"))","v":"-"},{"$f":"IF(NOT(ISBLANK(テーブル63[[#This Row],[建築一式]])),VLOOKUP(テーブル63[[#This Row],[建築一式]],建築[],2,TRUE), IF(NOT(ISBLANK(テーブル63[[#This Row],[許可区分（建築）]])),\"D\",\"-\"))","v":"-"},{"$f":"IF(NOT(ISBLANK(テーブル63[[#This Row],[電気]])),VLOOKUP(テーブル63[[#This Row],[電気]],電気[],2,TRUE), IF(NOT(ISBLANK(テーブル63[[#This Row],[許可区分（電気）]])),\"D\",\"-\"))","v":"A"},{"$f":"IF(NOT(ISBLANK(テーブル63[[#This Row],[管]])),VLOOKUP(テーブル63[[#This Row],[管]],管[],2,TRUE), IF(NOT(ISBLANK(テーブル63[[#This Row],[許可区分（管）]])),\"D\",\"-\"))","v":"A"},{"$f":"IF(NOT(ISBLANK(テーブル63[[#This Row],[ほ装]])),VLOOKUP(テーブル63[[#This Row],[ほ装]],ほ装[],2,TRUE), IF(NOT(ISBLANK(テーブル63[[#This Row],[許可区分(ほ装)]])),\"D\",\"-\"))","v":"-"},{"$f":"IF(NOT(ISBLANK(テーブル63[[#This Row],[塗装]])),VLOOKUP(テーブル63[[#This Row],[塗装]],塗装[],2,TRUE), IF(NOT(ISBLANK(テーブル63[[#This Row],[許可区分（塗装）]])),\"D\",\"-\"))","v":"-"},{"$f":"IF(NOT(ISBLANK(テーブル63[[#This Row],[防水]])),VLOOKUP(テーブル63[[#This Row],[防水]],塗装[],2,TRUE), IF(NOT(ISBLANK(テーブル63[[#This Row],[許可区分（防水）]])),\"D\",\"-\"))","v":"-"},{"$f":"IF(NOT(ISBLANK(テーブル63[[#This Row],[機械器具設置]])),VLOOKUP(テーブル63[[#This Row],[機械器具設置]],塗装[],2,TRUE), IF(NOT(ISBLANK(テーブル63[[#This Row],[許可区分（機械器具）]])),\"D\",\"-\"))","v":"-"},{"$f":"IF(NOT(ISBLANK(テーブル63[[#This Row],[電気通信]])),VLOOKUP(テーブル63[[#This Row],[電気通信]],電気[],2,TRUE), IF(NOT(ISBLANK(テーブル63[[#This Row],[許可区分(電気)]])),\"D\",\"-\"))","v":"A"},{"$f":"IF(NOT(ISBLANK(テーブル63[[#This Row],[水道施設]])),VLOOKUP(テーブル63[[#This Row],[水道施設]],水道[],2,TRUE), IF(NOT(ISBLANK(テーブル63[[#This Row],[許可区分（水道施設）]])),\"D\",\"-\"))","v":"-"}]
[47,"県内","東芝インフラシステムズ株式会社　東関東支店","千葉市美浜区中瀬二丁目6番地1　WBGマリブイースト24階","柏崎　智史","043-299-1009","043-299-1035",null,null,null,null,"特定",1783,null,null,null,null,null,null,null,null,null,null,"特定",1577,null,null,{"$f":"IF(NOT(ISBLANK(テーブル63[[#This Row],[土木一式]])),VLOOKUP(テーブル63[[#This Row],[土木一式]],土木[],2,TRUE), IF(NOT(ISBLANK(テーブル63[[#This Row],[許可区分(土木)]])),\"D\",\"-\"))","v":"-"},{"$f":"IF(NOT(ISBLANK(テーブル63[[#This Row],[建築一式]])),VLOOKUP(テーブル63[[#This Row],[建築一式]],建築[],2,TRUE), IF(NOT(ISBLANK(テーブル63[[#This Row],[許可区分（建築）]])),\"D\",\"-\"))","v":"-"},{"$f":"IF(NOT(ISBLANK(テーブル63[[#This Row],[電気]])),VLOOKUP(テーブル63[[#This Row],[電気]],電気[],2,TRUE), IF(NOT(ISBLANK(テーブル63[[#This Row],[許可区分（電気）]])),\"D\",\"-\"))","v":"A"},{"$f":"IF(NOT(ISBLANK(テーブル63[[#This Row],[管]])),VLOOKUP(テーブル63[[#This Row],[管]],管[],2,TRUE), IF(NOT(ISBLANK(テーブル63[[#This Row],[許可区分（管）]])),\"D\",\"-\"))","v":"-"},{"$f":"IF(NOT(ISBLANK(テーブル63[[#This Row],[ほ装]])),VLOOKUP(テーブル63[[#This Row],[ほ装]],ほ装[],2,TRUE), IF(NOT(ISBLANK(テーブル63[[#This Row],[許可区分(ほ装)]])),\"D\",\"-\"))","v":"-"},{"$f":"IF(NOT(ISBLANK(テーブル63[[#This Row],[塗装]])),VLOOKUP(テーブル63[[#This Row],[塗装]],塗装[],2,TRUE), IF(NOT(ISBLANK(テーブル63[[#This Row],[許可区分（塗装）]])),\"D\",\"-\"))","v":"-"},{"$f":"IF(NOT(ISBLANK(テーブル63[[#This Row],[防水]])),VLOOKUP(テーブル63[[#This Row],[防水]],塗装[],2,TRUE), IF(NOT(ISBLANK(テーブル63[[#This Row],[許可区分（防水）]])),\"D\",\"-\"))","v":"-"},{"$f":"IF(NOT(ISBLANK(テーブル63[[#This Row],[機械器具設置]])),VLOOKUP(テーブル63[[#This Row],[機械器具設置]],塗装[],2,TRUE), IF(NOT(ISBLANK(テーブル63[[#This Row],[許可区分（機械器具）]])),\"D\",\"-\"))","v":"-"},{"$f":"IF(NOT(ISBLANK(テーブル63[[#This Row],[電気通信]])),VLOOKUP(テーブル63[[#This Row],[電気通信]],電気[],2,TRUE), IF(NOT(ISBLANK(テーブル63[[#This Row],[許可区分(電気)]])),\"D\",\"-\"))","v":"A"},{"$f":"IF(NOT(ISBLANK(テーブル63[[#This Row],[水道施設]])),VLOOKUP(テーブル63[[#This Row],[水道施設]],水道[],2,TRUE), IF(NOT(ISBLANK(テーブル63[[#This Row],[許可区分（水道施設）]])),\"D\",\"-\"))","v":"-"}]
[48,"県内","新菱冷熱工業株式会社　千葉支店","千葉市中央区弁天1丁目15番3号","瀧口　恒太","043-287-8291","043-287-8292",null,null,null,null,null,null,"特定",1941,null,null,null,null,null,null,null,null,null,null,null,null,{"$f":"IF(NOT(ISBLANK(テーブル63[[#This Row],[土木一式]])),VLOOKUP(テーブル63[[#This Row],[土木一式]],土木[],2,TRUE), IF(NOT(ISBLANK(テーブル63[[#This Row],[許可区分(土木)]])),\"D\",\"-\"))","v":"-"},{"$f":"IF(NOT(ISBLANK(テーブル63[[#This Row],[建築一式]])),VLOOKUP(テーブル63[[#This Row],[建築一式]],建築[],2,TRUE), IF(NOT(ISBLANK(テーブル63[[#This Row],[許可区分（建築）]])),\"D\",\"-\"))","v":"-"},{"$f":"IF(NOT(ISBLANK(テーブル63[[#This Row],[電気]])),VLOOKUP(テーブル63[[#This Row],[電気]],電気[],2,TRUE), IF(NOT(ISBLANK(テーブル63[[#This Row],[許可区分（電気）]])),\"D\",\"-\"))","v":"-"},{"$f":"IF(NOT(ISBLANK(テーブル63[[#This Row],[管]])),VLOOKUP(テーブル63[[#This Row],[管]],管[],2,TRUE), IF(NOT(ISBLANK(テーブル63[[#This Row],[許可区分（管）]])),\"D\",\"-\"))","v":"A"},{"$f":"IF(NOT(ISBLANK(テーブル63[[#This Row],[ほ装]])),VLOOKUP(テーブル63[[#This Row],[ほ装]],ほ装[],2,TRUE), IF(NOT(ISBLANK(テーブル63[[#This Row],[許可区分(ほ装)]])),\"D\",\"-\"))","v":"-"},{"$f":"IF(NOT(ISBLANK(テーブル63[[#This Row],[塗装]])),VLOOKUP(テーブル63[[#This Row],[塗装]],塗装[],2,TRUE), IF(NOT(ISBLANK(テーブル63[[#This Row],[許可区分（塗装）]])),\"D\",\"-\"))","v":"-"},{"$f":"IF(NOT(ISBLANK(テーブル63[[#This Row],[防水]])),VLOOKUP(テーブル63[[#This Row],[防水]],塗装[],2,TRUE), IF(NOT(ISBLANK(テーブル63[[#This Row],[許可区分（防水）]])),\"D\",\"-\"))","v":"-"},{"$f":"IF(NOT(ISBLANK(テーブル63[[#This Row],[機械器具設置]])),VLOOKUP(テーブル63[[#This Row],[機械器具設置]],塗装[],2,TRUE), IF(NOT(ISBLANK(テーブル63[[#This Row],[許可区分（機械器具）]])),\"D\",\"-\"))","v":"-"},{"$f":"IF(NOT(ISBLANK(テーブル63[[#This Row],[電気通信]])),VLOOKUP(テーブル63[[#This Row],[電気通信]],電気[],2,TRUE), IF(NOT(ISBLANK(テーブル63[[#This Row],[許可区分(電気)]])),\"D\",\"-\"))","v":"-"},{"$f":"IF(NOT(ISBLANK(テーブル63[[#This Row],[水道施設]])),VLOOKUP(テーブル63[[#This Row],[水道施設]],水道[],2,TRUE), IF(NOT(ISBLANK(テーブル63[[#This Row],[許可区分（水道施設）]])),\"D\",\"-\"))","v":"-"}]
[49,"県内","株式会社ナリコー","成田市三里塚光ケ丘1番地1331","加瀨　敏雄","0476-35-5321","0476-35-5360","特定",1184,"特定",1196,"一般",826,"特定",884,"特定",1001,"特定",886,"特定",946,null,null,null,null,"特定",958,{"$f":"IF(NOT(ISBLANK(テーブル63[[#This Row],[土木一式]])),VLOOKUP(テーブル63[[#This Row],[土木一式]],土木[],2,TRUE), IF(NOT(ISBLANK(テーブル63[[#This Row],[許可区分(土木)]])),\"D\",\"-\"))","v":"A"},{"$f":"IF(NOT(ISBLANK(テーブル63[[#This Row],[建築一式]])),VLOOKUP(テーブル63[[#This Row],[建築一式]],建築[],2,TRUE), IF(NOT(ISBLANK(テーブル63[[#This Row],[許可区分（建築）]])),\"D\",\"-\"))","v":"A"},{"$f":"IF(NOT(ISBLANK(テーブル63[[#This Row],[電気]])),VLOOKUP(テーブル63[[#This Row],[電気]],電気[],2,TRUE), IF(NOT(ISBLANK(テーブル63[[#This Row],[許可区分（電気）]])),\"D\",\"-\"))","v":"A"},{"$f":"IF(NOT(ISBLANK(テーブル63[[#This Row],[管]])),VLOOKUP(テーブル63[[#This Row],[管]],管[],2,TRUE), IF(NOT(ISBLANK(テーブル63[[#This Row],[許可区分（管）]])),\"D\",\"-\"))","v":"A"},{"$f":"IF(NOT(ISBLANK(テーブル63[[#This Row],[ほ装]])),VLOOKUP(テーブル63[[#This Row],[ほ装]],ほ装[],2,TRUE), IF(NOT(ISBLANK(テーブル63[[#This Row],[許可区分(ほ装)]])),\"D\",\"-\"))","v":"A"},{"$f":"IF(NOT(ISBLANK(テーブル63[[#This Row],[塗装]])),VLOOKUP(テーブル63[[#This Row],[塗装]],塗装[],2,TRUE), IF(NOT(ISBLANK(テーブル63[[#This Row],[許可区分（塗装）]])),\"D\",\"-\"))","v":"A"},{"$f":"IF(NOT(ISBLANK(テーブル63[[#This Row],[防水]])),VLOOKUP(テーブル63[[#This Row],[防水]],塗装[],2,TRUE), IF(NOT(ISBLANK(テーブル63[[#This Row],[許可区分（防水）]])),\"D\",\"-\"))","v":"A"},{"$f":"IF(NOT(ISBLANK(テーブル63[[#This Row],[機械器具設置]])),VLOOKUP(テーブル63[[#This Row],[機械器具設置]],塗装[],2,TRUE), IF(NOT(ISBLANK(テーブル63[[#This Row],[許可区分（機械器具）]])),\"D\",\"-\"))","v":"-"},{"$f":"IF(NOT(ISBLANK(テーブル63[[#This Row],[電気通信]])),VLOOKUP(テーブル63[[#This Row],[電気通信]],電気[],2,TRUE), IF(NOT(ISBLANK(テーブル63[[#This Row],[許可区分(電気)]])),\"D\",\"-\"))","v":"-"},{"$f":"IF(NOT(ISBLANK(テーブル63[[#This Row],[水道施設]])),VLOOKUP(テーブル63[[#This Row],[水道施設]],水道[],2,TRUE), IF(NOT(ISBLANK(テーブル63[[#This Row],[許可区分（水道施設）]])),\"D\",\"-\"))","v":"A"}]
[50,"県内","坪井工業株式会社　千葉支店","千葉市中央区登戸一丁目9番1号","小宅　茂生","043-245-2700","043-245-4469","特定",1342,"特定",1451,null,null,null,null,"特定",870,"特定",939,"特定",809,null,null,null,null,"特定",913,{"$f":"IF(NOT(ISBLANK(テーブル63[[#This Row],[土木一式]])),VLOOKUP(テーブル63[[#This Row],[土木一式]],土木[],2,TRUE), IF(NOT(ISBLANK(テーブル63[[#This Row],[許可区分(土木)]])),\"D\",\"-\"))","v":"A"},{"$f":"IF(NOT(ISBLANK(テーブル63[[#This Row],[建築一式]])),VLOOKUP(テーブル63[[#This Row],[建築一式]],建築[],2,TRUE), IF(NOT(ISBLANK(テーブル63[[#This Row],[許可区分（建築）]])),\"D\",\"-\"))","v":"A"},{"$f":"IF(NOT(ISBLANK(テーブル63[[#This Row],[電気]])),VLOOKUP(テーブル63[[#This Row],[電気]],電気[],2,TRUE), IF(NOT(ISBLANK(テーブル63[[#This Row],[許可区分（電気）]])),\"D\",\"-\"))","v":"-"},{"$f":"IF(NOT(ISBLANK(テーブル63[[#This Row],[管]])),VLOOKUP(テーブル63[[#This Row],[管]],管[],2,TRUE), IF(NOT(ISBLANK(テーブル63[[#This Row],[許可区分（管）]])),\"D\",\"-\"))","v":"-"},{"$f":"IF(NOT(ISBLANK(テーブル63[[#This Row],[ほ装]])),VLOOKUP(テーブル63[[#This Row],[ほ装]],ほ装[],2,TRUE), IF(NOT(ISBLANK(テーブル63[[#This Row],[許可区分(ほ装)]])),\"D\",\"-\"))","v":"A"},{"$f":"IF(NOT(ISBLANK(テーブル63[[#This Row],[塗装]])),VLOOKUP(テーブル63[[#This Row],[塗装]],塗装[],2,TRUE), IF(NOT(ISBLANK(テーブル63[[#This Row],[許可区分（塗装）]])),\"D\",\"-\"))","v":"A"},{"$f":"IF(NOT(ISBLANK(テーブル63[[#This Row],[防水]])),VLOOKUP(テーブル63[[#This Row],[防水]],塗装[],2,TRUE), IF(NOT(ISBLANK(テーブル63[[#This Row],[許可区分（防水）]])),\"D\",\"-\"))","v":"A"},{"$f":"IF(NOT(ISBLANK(テーブル63[[#This Row],[機械器具設置]])),VLOOKUP(テーブル63[[#This Row],[機械器具設置]],塗装[],2,TRUE), IF(NOT(ISBLANK(テーブル63[[#This Row],[許可区分（機械器具）]])),\"D\",\"-\"))","v":"-"},{"$f":"IF(NOT(ISBLANK(テーブル63[[#This Row],[電気通信]])),VLOOKUP(テーブル63[[#This Row],[電気通信]],電気[],2,TRUE), IF(NOT(ISBLANK(テーブル63[[#This Row],[許可区分(電気)]])),\"D\",\"-\"))","v":"-"},{"$f":"IF(NOT(ISBLANK(テーブル63[[#This Row],[水道施設]])),VLOOKUP(テーブル63[[#This Row],[水道施設]],水道[],2,TRUE), IF(NOT(ISBLANK(テーブル63[[#This Row],[許可区分（水道施設）]])),\"D\",\"-\"))","v":"A"}]
[51,"県内","上松工業株式会社","千葉市花見川区幕張町1-7675-32","歳田　文彦","043-271-8150","043-273-3866",null,null,null,null,null,null,null,null,null,null,null,null,"一般",834,null,null,null,null,null,null,{"$f":"IF(NOT(ISBLANK(テーブル63[[#This Row],[土木一式]])),VLOOKUP(テーブル63[[#This Row],[土木一式]],土木[],2,TRUE), IF(NOT(ISBLANK(テーブル63[[#This Row],[許可区分(土木)]])),\"D\",\"-\"))","v":"-"},{"$f":"IF(NOT(ISBLANK(テーブル63[[#This Row],[建築一式]])),VLOOKUP(テーブル63[[#This Row],[建築一式]],建築[],2,TRUE), IF(NOT(ISBLANK(テーブル63[[#This Row],[許可区分（建築）]])),\"D\",\"-\"))","v":"-"},{"$f":"IF(NOT(ISBLANK(テーブル63[[#This Row],[電気]])),VLOOKUP(テーブル63[[#This Row],[電気]],電気[],2,TRUE), IF(NOT(ISBLANK(テーブル63[[#This Row],[許可区分（電気）]])),\"D\",\"-\"))","v":"-"},{"$f":"IF(NOT(ISBLANK(テーブル63[[#This Row],[管]])),VLOOKUP(テーブル63[[#This Row],[管]],管[],2,TRUE), IF(NOT(ISBLANK(テーブル63[[#This Row],[許可区分（管）]])),\"D\",\"-\"))","v":"-"},{"$f":"IF(NOT(ISBLANK(テーブル63[[#This Row],[ほ装]])),VLOOKUP(テーブル63[[#This Row],[ほ装]],ほ装[],2,TRUE), IF(NOT(ISBLANK(テーブル63[[#This Row],[許可区分(ほ装)]])),\"D\",\"-\"))","v":"-"},{"$f":"IF(NOT(ISBLANK(テーブル63[[#This Row],[塗装]])),VLOOKUP(テーブル63[[#This Row],[塗装]],塗装[],2,TRUE), IF(NOT(ISBLANK(テーブル63[[#This Row],[許可区分（塗装）]])),\"D\",\"-\"))","v":"-"},{"$f":"IF(NOT(ISBLANK(テーブル63[[#This Row],[防水]])),VLOOKUP(テーブル63[[#This Row],[防水]],塗装[],2,TRUE), IF(NOT(ISBLANK(テーブル63[[#This Row],[許可区分（防水）]])),\"D\",\"-\"))","v":"A"},{"$f":"IF(NOT(ISBLANK(テーブル63[[#This Row],[機械器具設置]])),VLOOKUP(テーブル63[[#This Row],[機械器具設置]],塗装[],2,TRUE), IF(NOT(ISBLANK(テーブル63[[#This Row],[許可区分（機械器具）]])),\"D\",\"-\"))","v":"-"},{"$f":"IF(NOT(ISBLANK(テーブル63[[#This Row],[電気通信]])),VLOOKUP(テーブル63[[#This Row],[電気通信]],電気[],2,TRUE), IF(NOT(ISBLANK(テーブル63[[#This Row],[許可区分(電気)]])),\"D\",\"-\"))","v":"-"},{"$f":"IF(NOT(ISBLANK(テーブル63[[#This Row],[水道施設]])),VLOOKUP(テーブル63[[#This Row],[水道施設]],水道[],2,TRUE), IF(NOT(ISBLANK(テーブル63[[#This Row],[許可区分（水道施設）]])),\"D\",\"-\"))","v":"-"}]
[52,"県内","株式会社千代田組","山武市沖渡682番地10","萩原　節","0475-77-8311","0475-77-8322","特定",694,null,null,null,null,null,null,"一般",679,null,null,null,null,null,null,null,null,"一般",565,{"$f":"IF(NOT(ISBLANK(テーブル63[[#This Row],[土木一式]])),VLOOKUP(テーブル63[[#This Row],[土木一式]],土木[],2,TRUE), IF(NOT(ISBLANK(テーブル63[[#This Row],[許可区分(土木)]])),\"D\",\"-\"))","v":"B"},{"$f":"IF(NOT(ISBLANK(テーブル63[[#This Row],[建築一式]])),VLOOKUP(テーブル63[[#This Row],[建築一式]],建築[],2,TRUE), IF(NOT(ISBLANK(テーブル63[[#This Row],[許可区分（建築）]])),\"D\",\"-\"))","v":"-"},{"$f":"IF(NOT(ISBLANK(テーブル63[[#This Row],[電気]])),VLOOKUP(テーブル63[[#This Row],[電気]],電気[],2,TRUE), IF(NOT(ISBLANK(テーブル63[[#This Row],[許可区分（電気）]])),\"D\",\"-\"))","v":"-"},{"$f":"IF(NOT(ISBLANK(テーブル63[[#This Row],[管]])),VLOOKUP(テーブル63[[#This Row],[管]],管[],2,TRUE), IF(NOT(ISBLANK(テーブル63[[#This Row],[許可区分（管）]])),\"D\",\"-\"))","v":"-"},{"$f":"IF(NOT(ISBLANK(テーブル63[[#This Row],[ほ装]])),VLOOKUP(テーブル63[[#This Row],[ほ装]],ほ装[],2,TRUE), IF(NOT(ISBLANK(テーブル63[[#This Row],[許可区分(ほ装)]])),\"D\",\"-\"))","v":"B"},{"$f":"IF(NOT(ISBLANK(テーブル63[[#This Row],[塗装]])),VLOOKUP(テーブル63[[#This Row],[塗装]],塗装[],2,TRUE), IF(NOT(ISBLANK(テーブル63[[#This Row],[許可区分（塗装）]])),\"D\",\"-\"))","v":"-"},{"$f":"IF(NOT(ISBLANK(テーブル63[[#This Row],[防水]])),VLOOKUP(テーブル63[[#This Row],[防水]],塗装[],2,TRUE), IF(NOT(ISBLANK(テーブル63[[#This Row],[許可区分（防水）]])),\"D\",\"-\"))","v":"-"},{"$f":"IF(NOT(ISBLANK(テーブル63[[#This Row],[機械器具設置]])),VLOOKUP(テーブル63[[#This Row],[機械器具設置]],塗装[],2,TRUE), IF(NOT(ISBLANK(テーブル63[[#This Row],[許可区分（機械器具）]])),\"D\",\"-\"))","v":"-"},{"$f":"IF(NOT(ISBLANK(テーブル63[[#This Row],[電気通信]])),VLOOKUP(テーブル63[[#This Row],[電気通信]],電気[],2,TRUE), IF(NOT(ISBLANK(テーブル63[[#This Row],[許可区分(電気)]])),\"D\",\"-\"))","v":"-"},{"$f":"IF(NOT(ISBLANK(テーブル63[[#This Row],[水道施設]])),VLOOKUP(テーブル63[[#This Row],[水道施設]],水道[],2,TRUE), IF(NOT(ISBLANK(テーブル63[[#This Row],[許可区分（水道施設）]])),\"D\",\"-\"))","v":"D"}]
[53,"県内","萩原土建株式会社","山武郡芝山町大里1553番地の3","萩原　仁","0479-78-1131","0479-78-0646","特定",1112,"特定",739,null,null,"特定",739,"特定",999,"特定",739,"特定",739,null,null,null,null,"特定",767,{"$f":"IF(NOT(ISBLANK(テーブル63[[#This Row],[土木一式]])),VLOOKUP(テーブル63[[#This Row],[土木一式]],土木[],2,TRUE), IF(NOT(ISBLANK(テーブル63[[#This Row],[許可区分(土木)]])),\"D\",\"-\"))","v":"A"},{"$f":"IF(NOT(ISBLANK(テーブル63[[#This Row],[建築一式]])),VLOOKUP(テーブル63[[#This Row],[建築一式]],建築[],2,TRUE), IF(NOT(ISBLANK(テーブル63[[#This Row],[許可区分（建築）]])),\"D\",\"-\"))","v":"B"},{"$f":"IF(NOT(ISBLANK(テーブル63[[#This Row],[電気]])),VLOOKUP(テーブル63[[#This Row],[電気]],電気[],2,TRUE), IF(NOT(ISBLANK(テーブル63[[#This Row],[許可区分（電気）]])),\"D\",\"-\"))","v":"-"},{"$f":"IF(NOT(ISBLANK(テーブル63[[#This Row],[管]])),VLOOKUP(テーブル63[[#This Row],[管]],管[],2,TRUE), IF(NOT(ISBLANK(テーブル63[[#This Row],[許可区分（管）]])),\"D\",\"-\"))","v":"A"},{"$f":"IF(NOT(ISBLANK(テーブル63[[#This Row],[ほ装]])),VLOOKUP(テーブル63[[#This Row],[ほ装]],ほ装[],2,TRUE), IF(NOT(ISBLANK(テーブル63[[#This Row],[許可区分(ほ装)]])),\"D\",\"-\"))","v":"A"},{"$f":"IF(NOT(ISBLANK(テーブル63[[#This Row],[塗装]])),VLOOKUP(テーブル63[[#This Row],[塗装]],塗装[],2,TRUE), IF(NOT(ISBLANK(テーブル63[[#This Row],[許可区分（塗装）]])),\"D\",\"-\"))","v":"B"},{"$f":"IF(NOT(ISBLANK(テーブル63[[#This Row],[防水]])),VLOOKUP(テーブル63[[#This Row],[防水]],塗装[],2,TRUE), IF(NOT(ISBLANK(テーブル63[[#This Row],[許可区分（防水）]])),\"D\",\"-\"))","v":"B"},{"$f":"IF(NOT(ISBLANK(テーブル63[[#This Row],[機械器具設置]])),VLOOKUP(テーブル63[[#This Row],[機械器具設置]],塗装[],2,TRUE), IF(NOT(ISBLANK(テーブル63[[#This Row],[許可区分（機械器具）]])),\"D\",\"-\"))","v":"-"},{"$f":"IF(NOT(ISBLANK(テーブル63[[#This Row],[電気通信]])),VLOOKUP(テーブル63[[#This Row],[電気通信]],電気[],2,TRUE), IF(NOT(ISBLANK(テーブル63[[#This Row],[許可区分(電気)]])),\"D\",\"-\"))","v":"-"},{"$f":"IF(NOT(ISBLANK(テーブル63[[#This Row],[水道施設]])),VLOOKUP(テーブル63[[#This Row],[水道施設]],水道[],2,TRUE), IF(NOT(ISBLANK(テーブル63[[#This Row],[許可区分（水道施設）]])),\"D\",\"-\"))","v":"B"}]
[54,"県内","株式会社淺沼組　千葉営業所","千葉市中央区新町3番地13　日本生命千葉駅前ビル","菊地　宏幸","043-241-9063","043-246-6317","特定",1577,"特定",1816,null,null,null,null,"特定",1057,"特定",1027,"特定",1193,null,null,null,null,"特定",1311,{"$f":"IF(NOT(ISBLANK(テーブル63[[#This Row],[土木一式]])),VLOOKUP(テーブル63[[#This Row],[土木一式]],土木[],2,TRUE), IF(NOT(ISBLANK(テーブル63[[#This Row],[許可区分(土木)]])),\"D\",\"-\"))","v":"A"},{"$f":"IF(NOT(ISBLANK(テーブル63[[#This Row],[建築一式]])),VLOOKUP(テーブル63[[#This Row],[建築一式]],建築[],2,TRUE), IF(NOT(ISBLANK(テーブル63[[#This Row],[許可区分（建築）]])),\"D\",\"-\"))","v":"A"},{"$f":"IF(NOT(ISBLANK(テーブル63[[#This Row],[電気]])),VLOOKUP(テーブル63[[#This Row],[電気]],電気[],2,TRUE), IF(NOT(ISBLANK(テーブル63[[#This Row],[許可区分（電気）]])),\"D\",\"-\"))","v":"-"},{"$f":"IF(NOT(ISBLANK(テーブル63[[#This Row],[管]])),VLOOKUP(テーブル63[[#This Row],[管]],管[],2,TRUE), IF(NOT(ISBLANK(テーブル63[[#This Row],[許可区分（管）]])),\"D\",\"-\"))","v":"-"},{"$f":"IF(NOT(ISBLANK(テーブル63[[#This Row],[ほ装]])),VLOOKUP(テーブル63[[#This Row],[ほ装]],ほ装[],2,TRUE), IF(NOT(ISBLANK(テーブル63[[#This Row],[許可区分(ほ装)]])),\"D\",\"-\"))","v":"A"},{"$f":"IF(NOT(ISBLANK(テーブル63[[#This Row],[塗装]])),VLOOKUP(テーブル63[[#This Row],[塗装]],塗装[],2,TRUE), IF(NOT(ISBLANK(テーブル63[[#This Row],[許可区分（塗装）]])),\"D\",\"-\"))","v":"A"},{"$f":"IF(NOT(ISBLANK(テーブル63[[#This Row],[防水]])),VLOOKUP(テーブル63[[#This Row],[防水]],塗装[],2,TRUE), IF(NOT(ISBLANK(テーブル63[[#This Row],[許可区分（防水）]])),\"D\",\"-\"))","v":"A"},{"$f":"IF(NOT(ISBLANK(テーブル63[[#This Row],[機械器具設置]])),VLOOKUP(テーブル63[[#This Row],[機械器具設置]],塗装[],2,TRUE), IF(NOT(ISBLANK(テーブル63[[#This Row],[許可区分（機械器具）]])),\"D\",\"-\"))","v":"-"},{"$f":"IF(NOT(ISBLANK(テーブル63[[#This Row],[電気通信]])),VLOOKUP(テーブル63[[#This Row],[電気通信]],電気[],2,TRUE), IF(NOT(ISBLANK(テーブル63[[#This Row],[許可区分(電気)]])),\"D\",\"-\"))","v":"-"},{"$f":"IF(NOT(ISBLANK(テーブル63[[#This Row],[水道施設]])),VLOOKUP(テーブル63[[#This Row],[水道施設]],水道[],2,TRUE), IF(NOT(ISBLANK(テーブル63[[#This Row],[許可区分（水道施設）]])),\"D\",\"-\"))","v":"A"}]
[55,"県内","戸田建設株式会社　千葉支店","千葉市中央区本千葉町15番1号","近藤　修介","043-307-8583","043-221-6262","特定",1947,"特定",1966,"特定",1357,"特定",1410,"特定",1262,"特定",1138,"特定",1143,null,null,null,null,"特定",1555,{"$f":"IF(NOT(ISBLANK(テーブル63[[#This Row],[土木一式]])),VLOOKUP(テーブル63[[#This Row],[土木一式]],土木[],2,TRUE), IF(NOT(ISBLANK(テーブル63[[#This Row],[許可区分(土木)]])),\"D\",\"-\"))","v":"A"},{"$f":"IF(NOT(ISBLANK(テーブル63[[#This Row],[建築一式]])),VLOOKUP(テーブル63[[#This Row],[建築一式]],建築[],2,TRUE), IF(NOT(ISBLANK(テーブル63[[#This Row],[許可区分（建築）]])),\"D\",\"-\"))","v":"A"},{"$f":"IF(NOT(ISBLANK(テーブル63[[#This Row],[電気]])),VLOOKUP(テーブル63[[#This Row],[電気]],電気[],2,TRUE), IF(NOT(ISBLANK(テーブル63[[#This Row],[許可区分（電気）]])),\"D\",\"-\"))","v":"A"},{"$f":"IF(NOT(ISBLANK(テーブル63[[#This Row],[管]])),VLOOKUP(テーブル63[[#This Row],[管]],管[],2,TRUE), IF(NOT(ISBLANK(テーブル63[[#This Row],[許可区分（管）]])),\"D\",\"-\"))","v":"A"},{"$f":"IF(NOT(ISBLANK(テーブル63[[#This Row],[ほ装]])),VLOOKUP(テーブル63[[#This Row],[ほ装]],ほ装[],2,TRUE), IF(NOT(ISBLANK(テーブル63[[#This Row],[許可区分(ほ装)]])),\"D\",\"-\"))","v":"A"},{"$f":"IF(NOT(ISBLANK(テーブル63[[#This Row],[塗装]])),VLOOKUP(テーブル63[[#This Row],[塗装]],塗装[],2,TRUE), IF(NOT(ISBLANK(テーブル63[[#This Row],[許可区分（塗装）]])),\"D\",\"-\"))","v":"A"},{"$f":"IF(NOT(ISBLANK(テーブル63[[#This Row],[防水]])),VLOOKUP(テーブル63[[#This Row],[防水]],塗装[],2,TRUE), IF(NOT(ISBLANK(テーブル63[[#This Row],[許可区分（防水）]])),\"D\",\"-\"))","v":"A"},{"$f":"IF(NOT(ISBLANK(テーブル63[[#This Row],[機械器具設置]])),VLOOKUP(テーブル63[[#This Row],[機械器具設置]],塗装[],2,TRUE), IF(NOT(ISBLANK(テーブル63[[#This Row],[許可区分（機械器具）]])),\"D\",\"-\"))","v":"-"},{"$f":"IF(NOT(ISBLANK(テーブル63[[#This Row],[電気通信]])),VLOOKUP(テーブル63[[#This Row],[電気通信]],電気[],2,TRUE), IF(NOT(ISBLANK(テーブル63[[#This Row],[許可区分(電気)]])),\"D\",\"-\"))","v":"-"},{"$f":"IF(NOT(ISBLANK(テーブル63[[#This Row],[水道施設]])),VLOOKUP(テーブル63[[#This Row],[水道施設]],水道[],2,TRUE), IF(NOT(ISBLANK(テーブル63[[#This Row],[許可区分（水道施設）]])),\"D\",\"-\"))","v":"A"}]
[56,"県内","株式会社進日本工業","千葉市美浜区中瀬2丁目6番地1　WBGマリブウエスト20F","臼倉　大介","043-441-4794","043-441-4925","特定",1067,null,null,null,null,"特定",1118,"特定",818,null,null,null,null,null,null,null,null,"特定",930,{"$f":"IF(NOT(ISBLANK(テーブル63[[#This Row],[土木一式]])),VLOOKUP(テーブル63[[#This Row],[土木一式]],土木[],2,TRUE), IF(NOT(ISBLANK(テーブル63[[#This Row],[許可区分(土木)]])),\"D\",\"-\"))","v":"A"},{"$f":"IF(NOT(ISBLANK(テーブル63[[#This Row],[建築一式]])),VLOOKUP(テーブル63[[#This Row],[建築一式]],建築[],2,TRUE), IF(NOT(ISBLANK(テーブル63[[#This Row],[許可区分（建築）]])),\"D\",\"-\"))","v":"-"},{"$f":"IF(NOT(ISBLANK(テーブル63[[#This Row],[電気]])),VLOOKUP(テーブル63[[#This Row],[電気]],電気[],2,TRUE), IF(NOT(ISBLANK(テーブル63[[#This Row],[許可区分（電気）]])),\"D\",\"-\"))","v":"-"},{"$f":"IF(NOT(ISBLANK(テーブル63[[#This Row],[管]])),VLOOKUP(テーブル63[[#This Row],[管]],管[],2,TRUE), IF(NOT(ISBLANK(テーブル63[[#This Row],[許可区分（管）]])),\"D\",\"-\"))","v":"A"},{"$f":"IF(NOT(ISBLANK(テーブル63[[#This Row],[ほ装]])),VLOOKUP(テーブル63[[#This Row],[ほ装]],ほ装[],2,TRUE), IF(NOT(ISBLANK(テーブル63[[#This Row],[許可区分(ほ装)]])),\"D\",\"-\"))","v":"A"},{"$f":"IF(NOT(ISBLANK(テーブル63[[#This Row],[塗装]])),VLOOKUP(テーブル63[[#This Row],[塗装]],塗装[],2,TRUE), IF(NOT(ISBLANK(テーブル63[[#This Row],[許可区分（塗装）]])),\"D\",\"-\"))","v":"-"},{"$f":"IF(NOT(ISBLANK(テーブル63[[#This Row],[防水]])),VLOOKUP(テーブル63[[#This Row],[防水]],塗装[],2,TRUE), IF(NOT(ISBLANK(テーブル63[[#This Row],[許可区分（防水）]])),\"D\",\"-\"))","v":"-"},{"$f":"IF(NOT(ISBLANK(テーブル63[[#This Row],[機械器具設置]])),VLOOKUP(テーブル63[[#This Row],[機械器具設置]],塗装[],2,TRUE), IF(NOT(ISBLANK(テーブル63[[#This Row],[許可区分（機械器具）]])),\"D\",\"-\"))","v":"-"},{"$f":"IF(NOT(ISBLANK(テーブル63[[#This Row],[電気通信]])),VLOOKUP(テーブル63[[#This Row],[電気通信]],電気[],2,TRUE), IF(NOT(ISBLANK(テーブル63[[#This Row],[許可区分(電気)]])),\"D\",\"-\"))","v":"-"},{"$f":"IF(NOT(ISBLANK(テーブル63[[#This Row],[水道施設]])),VLOOKUP(テーブル63[[#This Row],[水道施設]],水道[],2,TRUE), IF(NOT(ISBLANK(テーブル63[[#This Row],[許可区分（水道施設）]])),\"D\",\"-\"))","v":"A"}]
[57,"県内","株式会社明電舎　東関東支店","千葉市花見川区幕張本郷一丁目2番24号","金子　真一","043-273-6125","043-273-6128","特定",965,"特定",1020,"特定",1801,"特定",1121,null,null,null,null,null,null,"特定",1237,"特定",1364,"特定",1267,{"$f":"IF(NOT(ISBLANK(テーブル63[[#This Row],[土木一式]])),VLOOKUP(テーブル63[[#This Row],[土木一式]],土木[],2,TRUE), IF(NOT(ISBLANK(テーブル63[[#This Row],[許可区分(土木)]])),\"D\",\"-\"))","v":"A"},{"$f":"IF(NOT(ISBLANK(テーブル63[[#This Row],[建築一式]])),VLOOKUP(テーブル63[[#This Row],[建築一式]],建築[],2,TRUE), IF(NOT(ISBLANK(テーブル63[[#This Row],[許可区分（建築）]])),\"D\",\"-\"))","v":"A"},{"$f":"IF(NOT(ISBLANK(テーブル63[[#This Row],[電気]])),VLOOKUP(テーブル63[[#This Row],[電気]],電気[],2,TRUE), IF(NOT(ISBLANK(テーブル63[[#This Row],[許可区分（電気）]])),\"D\",\"-\"))","v":"A"},{"$f":"IF(NOT(ISBLANK(テーブル63[[#This Row],[管]])),VLOOKUP(テーブル63[[#This Row],[管]],管[],2,TRUE), IF(NOT(ISBLANK(テーブル63[[#This Row],[許可区分（管）]])),\"D\",\"-\"))","v":"A"},{"$f":"IF(NOT(ISBLANK(テーブル63[[#This Row],[ほ装]])),VLOOKUP(テーブル63[[#This Row],[ほ装]],ほ装[],2,TRUE), IF(NOT(ISBLANK(テーブル63[[#This Row],[許可区分(ほ装)]])),\"D\",\"-\"))","v":"-"},{"$f":"IF(NOT(ISBLANK(テーブル63[[#This Row],[塗装]])),VLOOKUP(テーブル63[[#This Row],[塗装]],塗装[],2,TRUE), IF(NOT(ISBLANK(テーブル63[[#This Row],[許可区分（塗装）]])),\"D\",\"-\"))","v":"-"},{"$f":"IF(NOT(ISBLANK(テーブル63[[#This Row],[防水]])),VLOOKUP(テーブル63[[#This Row],[防水]],塗装[],2,TRUE), IF(NOT(ISBLANK(テーブル63[[#This Row],[許可区分（防水）]])),\"D\",\"-\"))","v":"-"},{"$f":"IF(NOT(ISBLANK(テーブル63[[#This Row],[機械器具設置]])),VLOOKUP(テーブル63[[#This Row],[機械器具設置]],塗装[],2,TRUE), IF(NOT(ISBLANK(テーブル63[[#This Row],[許可区分（機械器具）]])),\"D\",\"-\"))","v":"A"},{"$f":"IF(NOT(ISBLANK(テーブル63[[#This Row],[電気通信]])),VLOOKUP(テーブル63[[#This Row],[電気通信]],電気[],2,TRUE), IF(NOT(ISBLANK(テーブル63[[#This Row],[許可区分(電気)]])),\"D\",\"-\"))","v":"A"},{"$f":"IF(NOT(ISBLANK(テーブル63[[#This Row],[水道施設]])),VLOOKUP(テーブル63[[#This Row],[水道施設]],水道[],2,TRUE), IF(NOT(ISBLANK(テーブル63[[#This Row],[許可区分（水道施設）]])),\"D\",\"-\"))","v":"A"}]
[58,"県内","株式会社錢高組　千葉支店","千葉市中央区中央三丁目9番16号","鷲頭　陽二郎","043-382-8181","043-382-8186",null,null,"特定",1677,null,null,null,null,null,null,null,null,null,null,null,null,null,null,null,null,{"$f":"IF(NOT(ISBLANK(テーブル63[[#This Row],[土木一式]])),VLOOKUP(テーブル63[[#This Row],[土木一式]],土木[],2,TRUE), IF(NOT(ISBLANK(テーブル63[[#This Row],[許可区分(土木)]])),\"D\",\"-\"))","v":"-"},{"$f":"IF(NOT(ISBLANK(テーブル63[[#This Row],[建築一式]])),VLOOKUP(テーブル63[[#This Row],[建築一式]],建築[],2,TRUE), IF(NOT(ISBLANK(テーブル63[[#This Row],[許可区分（建築）]])),\"D\",\"-\"))","v":"A"},{"$f":"IF(NOT(ISBLANK(テーブル63[[#This Row],[電気]])),VLOOKUP(テーブル63[[#This Row],[電気]],電気[],2,TRUE), IF(NOT(ISBLANK(テーブル63[[#This Row],[許可区分（電気）]])),\"D\",\"-\"))","v":"-"},{"$f":"IF(NOT(ISBLANK(テーブル63[[#This Row],[管]])),VLOOKUP(テーブル63[[#This Row],[管]],管[],2,TRUE), IF(NOT(ISBLANK(テーブル63[[#This Row],[許可区分（管）]])),\"D\",\"-\"))","v":"-"},{"$f":"IF(NOT(ISBLANK(テーブル63[[#This Row],[ほ装]])),VLOOKUP(テーブル63[[#This Row],[ほ装]],ほ装[],2,TRUE), IF(NOT(ISBLANK(テーブル63[[#This Row],[許可区分(ほ装)]])),\"D\",\"-\"))","v":"-"},{"$f":"IF(NOT(ISBLANK(テーブル63[[#This Row],[塗装]])),VLOOKUP(テーブル63[[#This Row],[塗装]],塗装[],2,TRUE), IF(NOT(ISBLANK(テーブル63[[#This Row],[許可区分（塗装）]])),\"D\",\"-\"))","v":"-"},{"$f":"IF(NOT(ISBLANK(テーブル63[[#This Row],[防水]])),VLOOKUP(テーブル63[[#This Row],[防水]],塗装[],2,TRUE), IF(NOT(ISBLANK(テーブル63[[#This Row],[許可区分（防水）]])),\"D\",\"-\"))","v":"-"},{"$f":"IF(NOT(ISBLANK(テーブル63[[#This Row],[機械器具設置]])),VLOOKUP(テーブル63[[#This Row],[機械器具設置]],塗装[],2,TRUE), IF(NOT(ISBLANK(テーブル63[[#This Row],[許可区分（機械器具）]])),\"D\",\"-\"))","v":"-"},{"$f":"IF(NOT(ISBLANK(テーブル63[[#This Row],[電気通信]])),VLOOKUP(テーブル63[[#This Row],[電気通信]],電気[],2,TRUE), IF(NOT(ISBLANK(テーブル63[[#This Row],[許可区分(電気)]])),\"D\",\"-\"))","v":"-"},{"$f":"IF(NOT(ISBLANK(テーブル63[[#This Row],[水道施設]])),VLOOKUP(テーブル63[[#This Row],[水道施設]],水道[],2,TRUE), IF(NOT(ISBLANK(テーブル63[[#This Row],[許可区分（水道施設）]])),\"D\",\"-\"))","v":"-"}]
[59,"県内","株式会社瀬谷塗装工業","千葉市緑区あすみが丘1丁目30番地1","瀬谷　英樹","043-294-0225","043-294-3012",null,null,null,null,null,null,null,null,null,null,"一般",760,"一般",676,null,null,null,null,null,null,{"$f":"IF(NOT(ISBLANK(テーブル63[[#This Row],[土木一式]])),VLOOKUP(テーブル63[[#This Row],[土木一式]],土木[],2,TRUE), IF(NOT(ISBLANK(テーブル63[[#This Row],[許可区分(土木)]])),\"D\",\"-\"))","v":"-"},{"$f":"IF(NOT(ISBLANK(テーブル63[[#This Row],[建築一式]])),VLOOKUP(テーブル63[[#This Row],[建築一式]],建築[],2,TRUE), IF(NOT(ISBLANK(テーブル63[[#This Row],[許可区分（建築）]])),\"D\",\"-\"))","v":"-"},{"$f":"IF(NOT(ISBLANK(テーブル63[[#This Row],[電気]])),VLOOKUP(テーブル63[[#This Row],[電気]],電気[],2,TRUE), IF(NOT(ISBLANK(テーブル63[[#This Row],[許可区分（電気）]])),\"D\",\"-\"))","v":"-"},{"$f":"IF(NOT(ISBLANK(テーブル63[[#This Row],[管]])),VLOOKUP(テーブル63[[#This Row],[管]],管[],2,TRUE), IF(NOT(ISBLANK(テーブル63[[#This Row],[許可区分（管）]])),\"D\",\"-\"))","v":"-"},{"$f":"IF(NOT(ISBLANK(テーブル63[[#This Row],[ほ装]])),VLOOKUP(テーブル63[[#This Row],[ほ装]],ほ装[],2,TRUE), IF(NOT(ISBLANK(テーブル63[[#This Row],[許可区分(ほ装)]])),\"D\",\"-\"))","v":"-"},{"$f":"IF(NOT(ISBLANK(テーブル63[[#This Row],[塗装]])),VLOOKUP(テーブル63[[#This Row],[塗装]],塗装[],2,TRUE), IF(NOT(ISBLANK(テーブル63[[#This Row],[許可区分（塗装）]])),\"D\",\"-\"))","v":"B"},{"$f":"IF(NOT(ISBLANK(テーブル63[[#This Row],[防水]])),VLOOKUP(テーブル63[[#This Row],[防水]],塗装[],2,TRUE), IF(NOT(ISBLANK(テーブル63[[#This Row],[許可区分（防水）]])),\"D\",\"-\"))","v":"C"},{"$f":"IF(NOT(ISBLANK(テーブル63[[#This Row],[機械器具設置]])),VLOOKUP(テーブル63[[#This Row],[機械器具設置]],塗装[],2,TRUE), IF(NOT(ISBLANK(テーブル63[[#This Row],[許可区分（機械器具）]])),\"D\",\"-\"))","v":"-"},{"$f":"IF(NOT(ISBLANK(テーブル63[[#This Row],[電気通信]])),VLOOKUP(テーブル63[[#This Row],[電気通信]],電気[],2,TRUE), IF(NOT(ISBLANK(テーブル63[[#This Row],[許可区分(電気)]])),\"D\",\"-\"))","v":"-"},{"$f":"IF(NOT(ISBLANK(テーブル63[[#This Row],[水道施設]])),VLOOKUP(テーブル63[[#This Row],[水道施設]],水道[],2,TRUE), IF(NOT(ISBLANK(テーブル63[[#This Row],[許可区分（水道施設）]])),\"D\",\"-\"))","v":"-"}]
[60,"県内","株式会社ハマダ　千葉事業所","市原市出津西1-1-41","帽田　晶義","0436-24-6777","0436-24-7150","特定",1305,null,null,null,null,null,null,"特定",957,null,null,null,null,"特定",1122,null,null,"特定",1109,{"$f":"IF(NOT(ISBLANK(テーブル63[[#This Row],[土木一式]])),VLOOKUP(テーブル63[[#This Row],[土木一式]],土木[],2,TRUE), IF(NOT(ISBLANK(テーブル63[[#This Row],[許可区分(土木)]])),\"D\",\"-\"))","v":"A"},{"$f":"IF(NOT(ISBLANK(テーブル63[[#This Row],[建築一式]])),VLOOKUP(テーブル63[[#This Row],[建築一式]],建築[],2,TRUE), IF(NOT(ISBLANK(テーブル63[[#This Row],[許可区分（建築）]])),\"D\",\"-\"))","v":"-"},{"$f":"IF(NOT(ISBLANK(テーブル63[[#This Row],[電気]])),VLOOKUP(テーブル63[[#This Row],[電気]],電気[],2,TRUE), IF(NOT(ISBLANK(テーブル63[[#This Row],[許可区分（電気）]])),\"D\",\"-\"))","v":"-"},{"$f":"IF(NOT(ISBLANK(テーブル63[[#This Row],[管]])),VLOOKUP(テーブル63[[#This Row],[管]],管[],2,TRUE), IF(NOT(ISBLANK(テーブル63[[#This Row],[許可区分（管）]])),\"D\",\"-\"))","v":"-"},{"$f":"IF(NOT(ISBLANK(テーブル63[[#This Row],[ほ装]])),VLOOKUP(テーブル63[[#This Row],[ほ装]],ほ装[],2,TRUE), IF(NOT(ISBLANK(テーブル63[[#This Row],[許可区分(ほ装)]])),\"D\",\"-\"))","v":"A"},{"$f":"IF(NOT(ISBLANK(テーブル63[[#This Row],[塗装]])),VLOOKUP(テーブル63[[#This Row],[塗装]],塗装[],2,TRUE), IF(NOT(ISBLANK(テーブル63[[#This Row],[許可区分（塗装）]])),\"D\",\"-\"))","v":"-"},{"$f":"IF(NOT(ISBLANK(テーブル63[[#This Row],[防水]])),VLOOKUP(テーブル63[[#This Row],[防水]],塗装[],2,TRUE), IF(NOT(ISBLANK(テーブル63[[#This Row],[許可区分（防水）]])),\"D\",\"-\"))","v":"-"},{"$f":"IF(NOT(ISBLANK(テーブル63[[#This Row],[機械器具設置]])),VLOOKUP(テーブル63[[#This Row],[機械器具設置]],塗装[],2,TRUE), IF(NOT(ISBLANK(テーブル63[[#This Row],[許可区分（機械器具）]])),\"D\",\"-\"))","v":"A"},{"$f":"IF(NOT(ISBLANK(テーブル63[[#This Row],[電気通信]])),VLOOKUP(テーブル63[[#This Row],[電気通信]],電気[],2,TRUE), IF(NOT(ISBLANK(テーブル63[[#This Row],[許可区分(電気)]])),\"D\",\"-\"))","v":"-"},{"$f":"IF(NOT(ISBLANK(テーブル63[[#This Row],[水道施設]])),VLOOKUP(テーブル63[[#This Row],[水道施設]],水道[],2,TRUE), IF(NOT(ISBLANK(テーブル63[[#This Row],[許可区分（水道施設）]])),\"D\",\"-\"))","v":"A"}]
[61,"県内","株式会社増田電気工業所","千葉市若葉区都賀5丁目21番20号","増田　健","043-231-5531","043-233-2831",null,null,null,null,"特定",867,null,null,null,null,null,null,null,null,null,null,null,null,null,null,{"$f":"IF(NOT(ISBLANK(テーブル63[[#This Row],[土木一式]])),VLOOKUP(テーブル63[[#This Row],[土木一式]],土木[],2,TRUE), IF(NOT(ISBLANK(テーブル63[[#This Row],[許可区分(土木)]])),\"D\",\"-\"))","v":"-"},{"$f":"IF(NOT(ISBLANK(テーブル63[[#This Row],[建築一式]])),VLOOKUP(テーブル63[[#This Row],[建築一式]],建築[],2,TRUE), IF(NOT(ISBLANK(テーブル63[[#This Row],[許可区分（建築）]])),\"D\",\"-\"))","v":"-"},{"$f":"IF(NOT(ISBLANK(テーブル63[[#This Row],[電気]])),VLOOKUP(テーブル63[[#This Row],[電気]],電気[],2,TRUE), IF(NOT(ISBLANK(テーブル63[[#This Row],[許可区分（電気）]])),\"D\",\"-\"))","v":"A"},{"$f":"IF(NOT(ISBLANK(テーブル63[[#This Row],[管]])),VLOOKUP(テーブル63[[#This Row],[管]],管[],2,TRUE), IF(NOT(ISBLANK(テーブル63[[#This Row],[許可区分（管）]])),\"D\",\"-\"))","v":"-"},{"$f":"IF(NOT(ISBLANK(テーブル63[[#This Row],[ほ装]])),VLOOKUP(テーブル63[[#This Row],[ほ装]],ほ装[],2,TRUE), IF(NOT(ISBLANK(テーブル63[[#This Row],[許可区分(ほ装)]])),\"D\",\"-\"))","v":"-"},{"$f":"IF(NOT(ISBLANK(テーブル63[[#This Row],[塗装]])),VLOOKUP(テーブル63[[#This Row],[塗装]],塗装[],2,TRUE), IF(NOT(ISBLANK(テーブル63[[#This Row],[許可区分（塗装）]])),\"D\",\"-\"))","v":"-"},{"$f":"IF(NOT(ISBLANK(テーブル63[[#This Row],[防水]])),VLOOKUP(テーブル63[[#This Row],[防水]],塗装[],2,TRUE), IF(NOT(ISBLANK(テーブル63[[#This Row],[許可区分（防水）]])),\"D\",\"-\"))","v":"-"},{"$f":"IF(NOT(ISBLANK(テーブル63[[#This Row],[機械器具設置]])),VLOOKUP(テーブル63[[#This Row],[機械器具設置]],塗装[],2,TRUE), IF(NOT(ISBLANK(テーブル63[[#This Row],[許可区分（機械器具）]])),\"D\",\"-\"))","v":"-"},{"$f":"IF(NOT(ISBLANK(テーブル63[[#This Row],[電気通信]])),VLOOKUP(テーブル63[[#This Row],[電気通信]],電気[],2,TRUE), IF(NOT(ISBLANK(テーブル63[[#This Row],[許可区分(電気)]])),\"D\",\"-\"))","v":"-"},{"$f":"IF(NOT(ISBLANK(テーブル63[[#This Row],[水道施設]])),VLOOKUP(テーブル63[[#This Row],[水道施設]],水道[],2,TRUE), IF(NOT(ISBLANK(テーブル63[[#This Row],[許可区分（水道施設）]])),\"D\",\"-\"))","v":"-"}]
[62,"県内","株式会社オーエンス　成田支店","成田市赤坂二丁目1番14号","鍔本　元治","0476-26-3259","0476-26-3277",null,null,"特定",680,"特定",849,"特定",858,null,null,null,null,null,null,null,null,null,null,null,null,{"$f":"IF(NOT(ISBLANK(テーブル63[[#This Row],[土木一式]])),VLOOKUP(テーブル63[[#This Row],[土木一式]],土木[],2,TRUE), IF(NOT(ISBLANK(テーブル63[[#This Row],[許可区分(土木)]])),\"D\",\"-\"))","v":"-"},{"$f":"IF(NOT(ISBLANK(テーブル63[[#This Row],[建築一式]])),VLOOKUP(テーブル63[[#This Row],[建築一式]],建築[],2,TRUE), IF(NOT(ISBLANK(テーブル63[[#This Row],[許可区分（建築）]])),\"D\",\"-\"))","v":"C"},{"$f":"IF(NOT(ISBLANK(テーブル63[[#This Row],[電気]])),VLOOKUP(テーブル63[[#This Row],[電気]],電気[],2,TRUE), IF(NOT(ISBLANK(テーブル63[[#This Row],[許可区分（電気）]])),\"D\",\"-\"))","v":"A"},{"$f":"IF(NOT(ISBLANK(テーブル63[[#This Row],[管]])),VLOOKUP(テーブル63[[#This Row],[管]],管[],2,TRUE), IF(NOT(ISBLANK(テーブル63[[#This Row],[許可区分（管）]])),\"D\",\"-\"))","v":"A"},{"$f":"IF(NOT(ISBLANK(テーブル63[[#This Row],[ほ装]])),VLOOKUP(テーブル63[[#This Row],[ほ装]],ほ装[],2,TRUE), IF(NOT(ISBLANK(テーブル63[[#This Row],[許可区分(ほ装)]])),\"D\",\"-\"))","v":"-"},{"$f":"IF(NOT(ISBLANK(テーブル63[[#This Row],[塗装]])),VLOOKUP(テーブル63[[#This Row],[塗装]],塗装[],2,TRUE), IF(NOT(ISBLANK(テーブル63[[#This Row],[許可区分（塗装）]])),\"D\",\"-\"))","v":"-"},{"$f":"IF(NOT(ISBLANK(テーブル63[[#This Row],[防水]])),VLOOKUP(テーブル63[[#This Row],[防水]],塗装[],2,TRUE), IF(NOT(ISBLANK(テーブル63[[#This Row],[許可区分（防水）]])),\"D\",\"-\"))","v":"-"},{"$f":"IF(NOT(ISBLANK(テーブル63[[#This Row],[機械器具設置]])),VLOOKUP(テーブル63[[#This Row],[機械器具設置]],塗装[],2,TRUE), IF(NOT(ISBLANK(テーブル63[[#This Row],[許可区分（機械器具）]])),\"D\",\"-\"))","v":"-"},{"$f":"IF(NOT(ISBLANK(テーブル63[[#This Row],[電気通信]])),VLOOKUP(テーブル63[[#This Row],[電気通信]],電気[],2,TRUE), IF(NOT(ISBLANK(テーブル63[[#This Row],[許可区分(電気)]])),\"D\",\"-\"))","v":"-"},{"$f":"IF(NOT(ISBLANK(テーブル63[[#This Row],[水道施設]])),VLOOKUP(テーブル63[[#This Row],[水道施設]],水道[],2,TRUE), IF(NOT(ISBLANK(テーブル63[[#This Row],[許可区分（水道施設）]])),\"D\",\"-\"))","v":"-"}]
[63,"県内","大和リース株式会社　千葉支店","千葉市中央区弁天1丁目5番1号","塚田　憲輝","043-331-6180","043-331-6181",null,null,"特定",1854,null,null,null,null,null,null,null,null,null,null,null,null,null,null,null,null,{"$f":"IF(NOT(ISBLANK(テーブル63[[#This Row],[土木一式]])),VLOOKUP(テーブル63[[#This Row],[土木一式]],土木[],2,TRUE), IF(NOT(ISBLANK(テーブル63[[#This Row],[許可区分(土木)]])),\"D\",\"-\"))","v":"-"},{"$f":"IF(NOT(ISBLANK(テーブル63[[#This Row],[建築一式]])),VLOOKUP(テーブル63[[#This Row],[建築一式]],建築[],2,TRUE), IF(NOT(ISBLANK(テーブル63[[#This Row],[許可区分（建築）]])),\"D\",\"-\"))","v":"A"},{"$f":"IF(NOT(ISBLANK(テーブル63[[#This Row],[電気]])),VLOOKUP(テーブル63[[#This Row],[電気]],電気[],2,TRUE), IF(NOT(ISBLANK(テーブル63[[#This Row],[許可区分（電気）]])),\"D\",\"-\"))","v":"-"},{"$f":"IF(NOT(ISBLANK(テーブル63[[#This Row],[管]])),VLOOKUP(テーブル63[[#This Row],[管]],管[],2,TRUE), IF(NOT(ISBLANK(テーブル63[[#This Row],[許可区分（管）]])),\"D\",\"-\"))","v":"-"},{"$f":"IF(NOT(ISBLANK(テーブル63[[#This Row],[ほ装]])),VLOOKUP(テーブル63[[#This Row],[ほ装]],ほ装[],2,TRUE), IF(NOT(ISBLANK(テーブル63[[#This Row],[許可区分(ほ装)]])),\"D\",\"-\"))","v":"-"},{"$f":"IF(NOT(ISBLANK(テーブル63[[#This Row],[塗装]])),VLOOKUP(テーブル63[[#This Row],[塗装]],塗装[],2,TRUE), IF(NOT(ISBLANK(テーブル63[[#This Row],[許可区分（塗装）]])),\"D\",\"-\"))","v":"-"},{"$f":"IF(NOT(ISBLANK(テーブル63[[#This Row],[防水]])),VLOOKUP(テーブル63[[#This Row],[防水]],塗装[],2,TRUE), IF(NOT(ISBLANK(テーブル63[[#This Row],[許可区分（防水）]])),\"D\",\"-\"))","v":"-"},{"$f":"IF(NOT(ISBLANK(テーブル63[[#This Row],[機械器具設置]])),VLOOKUP(テーブル63[[#This Row],[機械器具設置]],塗装[],2,TRUE), IF(NOT(ISBLANK(テーブル63[[#This Row],[許可区分（機械器具）]])),\"D\",\"-\"))","v":"-"},{"$f":"IF(NOT(ISBLANK(テーブル63[[#This Row],[電気通信]])),VLOOKUP(テーブル63[[#This Row],[電気通信]],電気[],2,TRUE), IF(NOT(ISBLANK(テーブル63[[#This Row],[許可区分(電気)]])),\"D\",\"-\"))","v":"-"},{"$f":"IF(NOT(ISBLANK(テーブル63[[#This Row],[水道施設]])),VLOOKUP(テーブル63[[#This Row],[水道施設]],水道[],2,TRUE), IF(NOT(ISBLANK(テーブル63[[#This Row],[許可区分（水道施設）]])),\"D\",\"-\"))","v":"-"}]
[64,"県内","株式会社ナカムラ","山武郡横芝光町横芝2073-8","中村　隆裕","0479-82-0208","0479-82-4823",null,null,null,null,null,null,null,null,null,null,"一般",736,"一般",666,null,null,null,null,null,null,{"$f":"IF(NOT(ISBLANK(テーブル63[[#This Row],[土木一式]])),VLOOKUP(テーブル63[[#This Row],[土木一式]],土木[],2,TRUE), IF(NOT(ISBLANK(テーブル63[[#This Row],[許可区分(土木)]])),\"D\",\"-\"))","v":"-"},{"$f":"IF(NOT(ISBLANK(テーブル63[[#This Row],[建築一式]])),VLOOKUP(テーブル63[[#This Row],[建築一式]],建築[],2,TRUE), IF(NOT(ISBLANK(テーブル63[[#This Row],[許可区分（建築）]])),\"D\",\"-\"))","v":"-"},{"$f":"IF(NOT(ISBLANK(テーブル63[[#This Row],[電気]])),VLOOKUP(テーブル63[[#This Row],[電気]],電気[],2,TRUE), IF(NOT(ISBLANK(テーブル63[[#This Row],[許可区分（電気）]])),\"D\",\"-\"))","v":"-"},{"$f":"IF(NOT(ISBLANK(テーブル63[[#This Row],[管]])),VLOOKUP(テーブル63[[#This Row],[管]],管[],2,TRUE), IF(NOT(ISBLANK(テーブル63[[#This Row],[許可区分（管）]])),\"D\",\"-\"))","v":"-"},{"$f":"IF(NOT(ISBLANK(テーブル63[[#This Row],[ほ装]])),VLOOKUP(テーブル63[[#This Row],[ほ装]],ほ装[],2,TRUE), IF(NOT(ISBLANK(テーブル63[[#This Row],[許可区分(ほ装)]])),\"D\",\"-\"))","v":"-"},{"$f":"IF(NOT(ISBLANK(テーブル63[[#This Row],[塗装]])),VLOOKUP(テーブル63[[#This Row],[塗装]],塗装[],2,TRUE), IF(NOT(ISBLANK(テーブル63[[#This Row],[許可区分（塗装）]])),\"D\",\"-\"))","v":"B"},{"$f":"IF(NOT(ISBLANK(テーブル63[[#This Row],[防水]])),VLOOKUP(テーブル63[[#This Row],[防水]],塗装[],2,TRUE), IF(NOT(ISBLANK(テーブル63[[#This Row],[許可区分（防水）]])),\"D\",\"-\"))","v":"C"},{"$f":"IF(NOT(ISBLANK(テーブル63[[#This Row],[機械器具設置]])),VLOOKUP(テーブル63[[#This Row],[機械器具設置]],塗装[],2,TRUE), IF(NOT(ISBLANK(テーブル63[[#This Row],[許可区分（機械器具）]])),\"D\",\"-\"))","v":"-"},{"$f":"IF(NOT(ISBLANK(テーブル63[[#This Row],[電気通信]])),VLOOKUP(テーブル63[[#This Row],[電気通信]],電気[],2,TRUE), IF(NOT(ISBLANK(テーブル63[[#This Row],[許可区分(電気)]])),\"D\",\"-\"))","v":"-"},{"$f":"IF(NOT(ISBLANK(テーブル63[[#This Row],[水道施設]])),VLOOKUP(テーブル63[[#This Row],[水道施設]],水道[],2,TRUE), IF(NOT(ISBLANK(テーブル63[[#This Row],[許可区分（水道施設）]])),\"D\",\"-\"))","v":"-"}]
[65,"県内","株式会社石井興業","山武郡芝山町大里974","石井　典子","0479-78-0026","0479-78-1421","特定",919,"特定",796,null,null,"一般",751,"一般",858,null,null,null,null,null,null,null,null,null,null,{"$f":"IF(NOT(ISBLANK(テーブル63[[#This Row],[土木一式]])),VLOOKUP(テーブル63[[#This Row],[土木一式]],土木[],2,TRUE), IF(NOT(ISBLANK(テーブル63[[#This Row],[許可区分(土木)]])),\"D\",\"-\"))","v":"A"},{"$f":"IF(NOT(ISBLANK(テーブル63[[#This Row],[建築一式]])),VLOOKUP(テーブル63[[#This Row],[建築一式]],建築[],2,TRUE), IF(NOT(ISBLANK(テーブル63[[#This Row],[許可区分（建築）]])),\"D\",\"-\"))","v":"B"},{"$f":"IF(NOT(ISBLANK(テーブル63[[#This Row],[電気]])),VLOOKUP(テーブル63[[#This Row],[電気]],電気[],2,TRUE), IF(NOT(ISBLANK(テーブル63[[#This Row],[許可区分（電気）]])),\"D\",\"-\"))","v":"-"},{"$f":"IF(NOT(ISBLANK(テーブル63[[#This Row],[管]])),VLOOKUP(テーブル63[[#This Row],[管]],管[],2,TRUE), IF(NOT(ISBLANK(テーブル63[[#This Row],[許可区分（管）]])),\"D\",\"-\"))","v":"A"},{"$f":"IF(NOT(ISBLANK(テーブル63[[#This Row],[ほ装]])),VLOOKUP(テーブル63[[#This Row],[ほ装]],ほ装[],2,TRUE), IF(NOT(ISBLANK(テーブル63[[#This Row],[許可区分(ほ装)]])),\"D\",\"-\"))","v":"A"},{"$f":"IF(NOT(ISBLANK(テーブル63[[#This Row],[塗装]])),VLOOKUP(テーブル63[[#This Row],[塗装]],塗装[],2,TRUE), IF(NOT(ISBLANK(テーブル63[[#This Row],[許可区分（塗装）]])),\"D\",\"-\"))","v":"-"},{"$f":"IF(NOT(ISBLANK(テーブル63[[#This Row],[防水]])),VLOOKUP(テーブル63[[#This Row],[防水]],塗装[],2,TRUE), IF(NOT(ISBLANK(テーブル63[[#This Row],[許可区分（防水）]])),\"D\",\"-\"))","v":"-"},{"$f":"IF(NOT(ISBLANK(テーブル63[[#This Row],[機械器具設置]])),VLOOKUP(テーブル63[[#This Row],[機械器具設置]],塗装[],2,TRUE), IF(NOT(ISBLANK(テーブル63[[#This Row],[許可区分（機械器具）]])),\"D\",\"-\"))","v":"-"},{"$f":"IF(NOT(ISBLANK(テーブル63[[#This Row],[電気通信]])),VLOOKUP(テーブル63[[#This Row],[電気通信]],電気[],2,TRUE), IF(NOT(ISBLANK(テーブル63[[#This Row],[許可区分(電気)]])),\"D\",\"-\"))","v":"-"},{"$f":"IF(NOT(ISBLANK(テーブル63[[#This Row],[水道施設]])),VLOOKUP(テーブル63[[#This Row],[水道施設]],水道[],2,TRUE), IF(NOT(ISBLANK(テーブル63[[#This Row],[許可区分（水道施設）]])),\"D\",\"-\"))","v":"-"}]
[66,"県内","株式会社エス・アイ・シー","千葉市中央区問屋町1-35","花田　真児","043-301-8822","043-301-8839",null,null,null,null,"特定",988,null,null,null,null,null,null,null,null,null,null,"特定",806,null,null,{"$f":"IF(NOT(ISBLANK(テーブル63[[#This Row],[土木一式]])),VLOOKUP(テーブル63[[#This Row],[土木一式]],土木[],2,TRUE), IF(NOT(ISBLANK(テーブル63[[#This Row],[許可区分(土木)]])),\"D\",\"-\"))","v":"-"},{"$f":"IF(NOT(ISBLANK(テーブル63[[#This Row],[建築一式]])),VLOOKUP(テーブル63[[#This Row],[建築一式]],建築[],2,TRUE), IF(NOT(ISBLANK(テーブル63[[#This Row],[許可区分（建築）]])),\"D\",\"-\"))","v":"-"},{"$f":"IF(NOT(ISBLANK(テーブル63[[#This Row],[電気]])),VLOOKUP(テーブル63[[#This Row],[電気]],電気[],2,TRUE), IF(NOT(ISBLANK(テーブル63[[#This Row],[許可区分（電気）]])),\"D\",\"-\"))","v":"A"},{"$f":"IF(NOT(ISBLANK(テーブル63[[#This Row],[管]])),VLOOKUP(テーブル63[[#This Row],[管]],管[],2,TRUE), IF(NOT(ISBLANK(テーブル63[[#This Row],[許可区分（管）]])),\"D\",\"-\"))","v":"-"},{"$f":"IF(NOT(ISBLANK(テーブル63[[#This Row],[ほ装]])),VLOOKUP(テーブル63[[#This Row],[ほ装]],ほ装[],2,TRUE), IF(NOT(ISBLANK(テーブル63[[#This Row],[許可区分(ほ装)]])),\"D\",\"-\"))","v":"-"},{"$f":"IF(NOT(ISBLANK(テーブル63[[#This Row],[塗装]])),VLOOKUP(テーブル63[[#This Row],[塗装]],塗装[],2,TRUE), IF(NOT(ISBLANK(テーブル63[[#This Row],[許可区分（塗装）]])),\"D\",\"-\"))","v":"-"},{"$f":"IF(NOT(ISBLANK(テーブル63[[#This Row],[防水]])),VLOOKUP(テーブル63[[#This Row],[防水]],塗装[],2,TRUE), IF(NOT(ISBLANK(テーブル63[[#This Row],[許可区分（防水）]])),\"D\",\"-\"))","v":"-"},{"$f":"IF(NOT(ISBLANK(テーブル63[[#This Row],[機械器具設置]])),VLOOKUP(テーブル63[[#This Row],[機械器具設置]],塗装[],2,TRUE), IF(NOT(ISBLANK(テーブル63[[#This Row],[許可区分（機械器具）]])),\"D\",\"-\"))","v":"-"},{"$f":"IF(NOT(ISBLANK(テーブル63[[#This Row],[電気通信]])),VLOOKUP(テーブル63[[#This Row],[電気通信]],電気[],2,TRUE), IF(NOT(ISBLANK(テーブル63[[#This Row],[許可区分(電気)]])),\"D\",\"-\"))","v":"A"},{"$f":"IF(NOT(ISBLANK(テーブル63[[#This Row],[水道施設]])),VLOOKUP(テーブル63[[#This Row],[水道施設]],水道[],2,TRUE), IF(NOT(ISBLANK(テーブル63[[#This Row],[許可区分（水道施設）]])),\"D\",\"-\"))","v":"-"}]
[67,"県内","平和防災株式会社","千葉市稲毛区長沼原町774番地2","佐藤　宣人","043-257-4330","043-257-8597",null,null,null,null,"一般",688,null,null,null,null,null,null,null,null,null,null,"一般",751,null,null,{"$f":"IF(NOT(ISBLANK(テーブル63[[#This Row],[土木一式]])),VLOOKUP(テーブル63[[#This Row],[土木一式]],土木[],2,TRUE), IF(NOT(ISBLANK(テーブル63[[#This Row],[許可区分(土木)]])),\"D\",\"-\"))","v":"-"},{"$f":"IF(NOT(ISBLANK(テーブル63[[#This Row],[建築一式]])),VLOOKUP(テーブル63[[#This Row],[建築一式]],建築[],2,TRUE), IF(NOT(ISBLANK(テーブル63[[#This Row],[許可区分（建築）]])),\"D\",\"-\"))","v":"-"},{"$f":"IF(NOT(ISBLANK(テーブル63[[#This Row],[電気]])),VLOOKUP(テーブル63[[#This Row],[電気]],電気[],2,TRUE), IF(NOT(ISBLANK(テーブル63[[#This Row],[許可区分（電気）]])),\"D\",\"-\"))","v":"C"},{"$f":"IF(NOT(ISBLANK(テーブル63[[#This Row],[管]])),VLOOKUP(テーブル63[[#This Row],[管]],管[],2,TRUE), IF(NOT(ISBLANK(テーブル63[[#This Row],[許可区分（管）]])),\"D\",\"-\"))","v":"-"},{"$f":"IF(NOT(ISBLANK(テーブル63[[#This Row],[ほ装]])),VLOOKUP(テーブル63[[#This Row],[ほ装]],ほ装[],2,TRUE), IF(NOT(ISBLANK(テーブル63[[#This Row],[許可区分(ほ装)]])),\"D\",\"-\"))","v":"-"},{"$f":"IF(NOT(ISBLANK(テーブル63[[#This Row],[塗装]])),VLOOKUP(テーブル63[[#This Row],[塗装]],塗装[],2,TRUE), IF(NOT(ISBLANK(テーブル63[[#This Row],[許可区分（塗装）]])),\"D\",\"-\"))","v":"-"},{"$f":"IF(NOT(ISBLANK(テーブル63[[#This Row],[防水]])),VLOOKUP(テーブル63[[#This Row],[防水]],塗装[],2,TRUE), IF(NOT(ISBLANK(テーブル63[[#This Row],[許可区分（防水）]])),\"D\",\"-\"))","v":"-"},{"$f":"IF(NOT(ISBLANK(テーブル63[[#This Row],[機械器具設置]])),VLOOKUP(テーブル63[[#This Row],[機械器具設置]],塗装[],2,TRUE), IF(NOT(ISBLANK(テーブル63[[#This Row],[許可区分（機械器具）]])),\"D\",\"-\"))","v":"-"},{"$f":"IF(NOT(ISBLANK(テーブル63[[#This Row],[電気通信]])),VLOOKUP(テーブル63[[#This Row],[電気通信]],電気[],2,TRUE), IF(NOT(ISBLANK(テーブル63[[#This Row],[許可区分(電気)]])),\"D\",\"-\"))","v":"B"},{"$f":"IF(NOT(ISBLANK(テーブル63[[#This Row],[水道施設]])),VLOOKUP(テーブル63[[#This Row],[水道施設]],水道[],2,TRUE), IF(NOT(ISBLANK(テーブル63[[#This Row],[許可区分（水道施設）]])),\"D\",\"-\"))","v":"-"}]
[68,"県内","冨田電機工業株式会社","千葉市若葉区小倉町882-20","冨田　一郎","043-231-3415","043-232-3261",null,null,null,null,"特定",932,"一般",704,null,null,null,null,null,null,"特定",849,"特定",704,null,null,{"$f":"IF(NOT(ISBLANK(テーブル63[[#This Row],[土木一式]])),VLOOKUP(テーブル63[[#This Row],[土木一式]],土木[],2,TRUE), IF(NOT(ISBLANK(テーブル63[[#This Row],[許可区分(土木)]])),\"D\",\"-\"))","v":"-"},{"$f":"IF(NOT(ISBLANK(テーブル63[[#This Row],[建築一式]])),VLOOKUP(テーブル63[[#This Row],[建築一式]],建築[],2,TRUE), IF(NOT(ISBLANK(テーブル63[[#This Row],[許可区分（建築）]])),\"D\",\"-\"))","v":"-"},{"$f":"IF(NOT(ISBLANK(テーブル63[[#This Row],[電気]])),VLOOKUP(テーブル63[[#This Row],[電気]],電気[],2,TRUE), IF(NOT(ISBLANK(テーブル63[[#This Row],[許可区分（電気）]])),\"D\",\"-\"))","v":"A"},{"$f":"IF(NOT(ISBLANK(テーブル63[[#This Row],[管]])),VLOOKUP(テーブル63[[#This Row],[管]],管[],2,TRUE), IF(NOT(ISBLANK(テーブル63[[#This Row],[許可区分（管）]])),\"D\",\"-\"))","v":"A"},{"$f":"IF(NOT(ISBLANK(テーブル63[[#This Row],[ほ装]])),VLOOKUP(テーブル63[[#This Row],[ほ装]],ほ装[],2,TRUE), IF(NOT(ISBLANK(テーブル63[[#This Row],[許可区分(ほ装)]])),\"D\",\"-\"))","v":"-"},{"$f":"IF(NOT(ISBLANK(テーブル63[[#This Row],[塗装]])),VLOOKUP(テーブル63[[#This Row],[塗装]],塗装[],2,TRUE), IF(NOT(ISBLANK(テーブル63[[#This Row],[許可区分（塗装）]])),\"D\",\"-\"))","v":"-"},{"$f":"IF(NOT(ISBLANK(テーブル63[[#This Row],[防水]])),VLOOKUP(テーブル63[[#This Row],[防水]],塗装[],2,TRUE), IF(NOT(ISBLANK(テーブル63[[#This Row],[許可区分（防水）]])),\"D\",\"-\"))","v":"-"},{"$f":"IF(NOT(ISBLANK(テーブル63[[#This Row],[機械器具設置]])),VLOOKUP(テーブル63[[#This Row],[機械器具設置]],塗装[],2,TRUE), IF(NOT(ISBLANK(テーブル63[[#This Row],[許可区分（機械器具）]])),\"D\",\"-\"))","v":"A"},{"$f":"IF(NOT(ISBLANK(テーブル63[[#This Row],[電気通信]])),VLOOKUP(テーブル63[[#This Row],[電気通信]],電気[],2,TRUE), IF(NOT(ISBLANK(テーブル63[[#This Row],[許可区分(電気)]])),\"D\",\"-\"))","v":"B"},{"$f":"IF(NOT(ISBLANK(テーブル63[[#This Row],[水道施設]])),VLOOKUP(テーブル63[[#This Row],[水道施設]],水道[],2,TRUE), IF(NOT(ISBLANK(テーブル63[[#This Row],[許可区分（水道施設）]])),\"D\",\"-\"))","v":"-"}]
[69,"県内","株式会社平野電設","成田市松崎264","平野　伸一","0476-26-8263","0476-26-9355",null,null,null,null,"特定",896,null,null,null,null,null,null,null,null,null,null,null,null,null,null,{"$f":"IF(NOT(ISBLANK(テーブル63[[#This Row],[土木一式]])),VLOOKUP(テーブル63[[#This Row],[土木一式]],土木[],2,TRUE), IF(NOT(ISBLANK(テーブル63[[#This Row],[許可区分(土木)]])),\"D\",\"-\"))","v":"-"},{"$f":"IF(NOT(ISBLANK(テーブル63[[#This Row],[建築一式]])),VLOOKUP(テーブル63[[#This Row],[建築一式]],建築[],2,TRUE), IF(NOT(ISBLANK(テーブル63[[#This Row],[許可区分（建築）]])),\"D\",\"-\"))","v":"-"},{"$f":"IF(NOT(ISBLANK(テーブル63[[#This Row],[電気]])),VLOOKUP(テーブル63[[#This Row],[電気]],電気[],2,TRUE), IF(NOT(ISBLANK(テーブル63[[#This Row],[許可区分（電気）]])),\"D\",\"-\"))","v":"A"},{"$f":"IF(NOT(ISBLANK(テーブル63[[#This Row],[管]])),VLOOKUP(テーブル63[[#This Row],[管]],管[],2,TRUE), IF(NOT(ISBLANK(テーブル63[[#This Row],[許可区分（管）]])),\"D\",\"-\"))","v":"-"},{"$f":"IF(NOT(ISBLANK(テーブル63[[#This Row],[ほ装]])),VLOOKUP(テーブル63[[#This Row],[ほ装]],ほ装[],2,TRUE), IF(NOT(ISBLANK(テーブル63[[#This Row],[許可区分(ほ装)]])),\"D\",\"-\"))","v":"-"},{"$f":"IF(NOT(ISBLANK(テーブル63[[#This Row],[塗装]])),VLOOKUP(テーブル63[[#This Row],[塗装]],塗装[],2,TRUE), IF(NOT(ISBLANK(テーブル63[[#This Row],[許可区分（塗装）]])),\"D\",\"-\"))","v":"-"},{"$f":"IF(NOT(ISBLANK(テーブル63[[#This Row],[防水]])),VLOOKUP(テーブル63[[#This Row],[防水]],塗装[],2,TRUE), IF(NOT(ISBLANK(テーブル63[[#This Row],[許可区分（防水）]])),\"D\",\"-\"))","v":"-"},{"$f":"IF(NOT(ISBLANK(テーブル63[[#This Row],[機械器具設置]])),VLOOKUP(テーブル63[[#This Row],[機械器具設置]],塗装[],2,TRUE), IF(NOT(ISBLANK(テーブル63[[#This Row],[許可区分（機械器具）]])),\"D\",\"-\"))","v":"-"},{"$f":"IF(NOT(ISBLANK(テーブル63[[#This Row],[電気通信]])),VLOOKUP(テーブル63[[#This Row],[電気通信]],電気[],2,TRUE), IF(NOT(ISBLANK(テーブル63[[#This Row],[許可区分(電気)]])),\"D\",\"-\"))","v":"-"},{"$f":"IF(NOT(ISBLANK(テーブル63[[#This Row],[水道施設]])),VLOOKUP(テーブル63[[#This Row],[水道施設]],水道[],2,TRUE), IF(NOT(ISBLANK(テーブル63[[#This Row],[許可区分（水道施設）]])),\"D\",\"-\"))","v":"-"}]
[70,"県内","古谷建設株式会社","山武郡横芝光町栗山3195番地1","古谷　秀一","0479-82-3311","0479-82-3314","特定",1182,"特定",1255,null,null,"特定",845,"特定",1044,null,null,null,null,null,null,null,null,"特定",787,{"$f":"IF(NOT(ISBLANK(テーブル63[[#This Row],[土木一式]])),VLOOKUP(テーブル63[[#This Row],[土木一式]],土木[],2,TRUE), IF(NOT(ISBLANK(テーブル63[[#This Row],[許可区分(土木)]])),\"D\",\"-\"))","v":"A"},{"$f":"IF(NOT(ISBLANK(テーブル63[[#This Row],[建築一式]])),VLOOKUP(テーブル63[[#This Row],[建築一式]],建築[],2,TRUE), IF(NOT(ISBLANK(テーブル63[[#This Row],[許可区分（建築）]])),\"D\",\"-\"))","v":"A"},{"$f":"IF(NOT(ISBLANK(テーブル63[[#This Row],[電気]])),VLOOKUP(テーブル63[[#This Row],[電気]],電気[],2,TRUE), IF(NOT(ISBLANK(テーブル63[[#This Row],[許可区分（電気）]])),\"D\",\"-\"))","v":"-"},{"$f":"IF(NOT(ISBLANK(テーブル63[[#This Row],[管]])),VLOOKUP(テーブル63[[#This Row],[管]],管[],2,TRUE), IF(NOT(ISBLANK(テーブル63[[#This Row],[許可区分（管）]])),\"D\",\"-\"))","v":"A"},{"$f":"IF(NOT(ISBLANK(テーブル63[[#This Row],[ほ装]])),VLOOKUP(テーブル63[[#This Row],[ほ装]],ほ装[],2,TRUE), IF(NOT(ISBLANK(テーブル63[[#This Row],[許可区分(ほ装)]])),\"D\",\"-\"))","v":"A"},{"$f":"IF(NOT(ISBLANK(テーブル63[[#This Row],[塗装]])),VLOOKUP(テーブル63[[#This Row],[塗装]],塗装[],2,TRUE), IF(NOT(ISBLANK(テーブル63[[#This Row],[許可区分（塗装）]])),\"D\",\"-\"))","v":"-"},{"$f":"IF(NOT(ISBLANK(テーブル63[[#This Row],[防水]])),VLOOKUP(テーブル63[[#This Row],[防水]],塗装[],2,TRUE), IF(NOT(ISBLANK(テーブル63[[#This Row],[許可区分（防水）]])),\"D\",\"-\"))","v":"-"},{"$f":"IF(NOT(ISBLANK(テーブル63[[#This Row],[機械器具設置]])),VLOOKUP(テーブル63[[#This Row],[機械器具設置]],塗装[],2,TRUE), IF(NOT(ISBLANK(テーブル63[[#This Row],[許可区分（機械器具）]])),\"D\",\"-\"))","v":"-"},{"$f":"IF(NOT(ISBLANK(テーブル63[[#This Row],[電気通信]])),VLOOKUP(テーブル63[[#This Row],[電気通信]],電気[],2,TRUE), IF(NOT(ISBLANK(テーブル63[[#This Row],[許可区分(電気)]])),\"D\",\"-\"))","v":"-"},{"$f":"IF(NOT(ISBLANK(テーブル63[[#This Row],[水道施設]])),VLOOKUP(テーブル63[[#This Row],[水道施設]],水道[],2,TRUE), IF(NOT(ISBLANK(テーブル63[[#This Row],[許可区分（水道施設）]])),\"D\",\"-\"))","v":"B"}]
[71,"県内","株式会社安藤・間　千葉営業所","千葉市中央区富士見1丁目15番9号","梅原　康弘","043-201-2051","043-201-2052","特定",1944,"特定",1960,null,null,null,null,"特定",1301,"特定",1236,"特定",1234,null,null,null,null,"特定",1481,{"$f":"IF(NOT(ISBLANK(テーブル63[[#This Row],[土木一式]])),VLOOKUP(テーブル63[[#This Row],[土木一式]],土木[],2,TRUE), IF(NOT(ISBLANK(テーブル63[[#This Row],[許可区分(土木)]])),\"D\",\"-\"))","v":"A"},{"$f":"IF(NOT(ISBLANK(テーブル63[[#This Row],[建築一式]])),VLOOKUP(テーブル63[[#This Row],[建築一式]],建築[],2,TRUE), IF(NOT(ISBLANK(テーブル63[[#This Row],[許可区分（建築）]])),\"D\",\"-\"))","v":"A"},{"$f":"IF(NOT(ISBLANK(テーブル63[[#This Row],[電気]])),VLOOKUP(テーブル63[[#This Row],[電気]],電気[],2,TRUE), IF(NOT(ISBLANK(テーブル63[[#This Row],[許可区分（電気）]])),\"D\",\"-\"))","v":"-"},{"$f":"IF(NOT(ISBLANK(テーブル63[[#This Row],[管]])),VLOOKUP(テーブル63[[#This Row],[管]],管[],2,TRUE), IF(NOT(ISBLANK(テーブル63[[#This Row],[許可区分（管）]])),\"D\",\"-\"))","v":"-"},{"$f":"IF(NOT(ISBLANK(テーブル63[[#This Row],[ほ装]])),VLOOKUP(テーブル63[[#This Row],[ほ装]],ほ装[],2,TRUE), IF(NOT(ISBLANK(テーブル63[[#This Row],[許可区分(ほ装)]])),\"D\",\"-\"))","v":"A"},{"$f":"IF(NOT(ISBLANK(テーブル63[[#This Row],[塗装]])),VLOOKUP(テーブル63[[#This Row],[塗装]],塗装[],2,TRUE), IF(NOT(ISBLANK(テーブル63[[#This Row],[許可区分（塗装）]])),\"D\",\"-\"))","v":"A"},{"$f":"IF(NOT(ISBLANK(テーブル63[[#This Row],[防水]])),VLOOKUP(テーブル63[[#This Row],[防水]],塗装[],2,TRUE), IF(NOT(ISBLANK(テーブル63[[#This Row],[許可区分（防水）]])),\"D\",\"-\"))","v":"A"},{"$f":"IF(NOT(ISBLANK(テーブル63[[#This Row],[機械器具設置]])),VLOOKUP(テーブル63[[#This Row],[機械器具設置]],塗装[],2,TRUE), IF(NOT(ISBLANK(テーブル63[[#This Row],[許可区分（機械器具）]])),\"D\",\"-\"))","v":"-"},{"$f":"IF(NOT(ISBLANK(テーブル63[[#This Row],[電気通信]])),VLOOKUP(テーブル63[[#This Row],[電気通信]],電気[],2,TRUE), IF(NOT(ISBLANK(テーブル63[[#This Row],[許可区分(電気)]])),\"D\",\"-\"))","v":"-"},{"$f":"IF(NOT(ISBLANK(テーブル63[[#This Row],[水道施設]])),VLOOKUP(テーブル63[[#This Row],[水道施設]],水道[],2,TRUE), IF(NOT(ISBLANK(テーブル63[[#This Row],[許可区分（水道施設）]])),\"D\",\"-\"))","v":"A"}]
[72,"県内","株式会社森山塗工","松戸市南花島3丁目51番地8","森山　直幸","047-362-0656","047-361-2602",null,null,"特定",686,null,null,null,null,null,null,"特定",862,"特定",771,null,null,null,null,null,null,{"$f":"IF(NOT(ISBLANK(テーブル63[[#This Row],[土木一式]])),VLOOKUP(テーブル63[[#This Row],[土木一式]],土木[],2,TRUE), IF(NOT(ISBLANK(テーブル63[[#This Row],[許可区分(土木)]])),\"D\",\"-\"))","v":"-"},{"$f":"IF(NOT(ISBLANK(テーブル63[[#This Row],[建築一式]])),VLOOKUP(テーブル63[[#This Row],[建築一式]],建築[],2,TRUE), IF(NOT(ISBLANK(テーブル63[[#This Row],[許可区分（建築）]])),\"D\",\"-\"))","v":"C"},{"$f":"IF(NOT(ISBLANK(テーブル63[[#This Row],[電気]])),VLOOKUP(テーブル63[[#This Row],[電気]],電気[],2,TRUE), IF(NOT(ISBLANK(テーブル63[[#This Row],[許可区分（電気）]])),\"D\",\"-\"))","v":"-"},{"$f":"IF(NOT(ISBLANK(テーブル63[[#This Row],[管]])),VLOOKUP(テーブル63[[#This Row],[管]],管[],2,TRUE), IF(NOT(ISBLANK(テーブル63[[#This Row],[許可区分（管）]])),\"D\",\"-\"))","v":"-"},{"$f":"IF(NOT(ISBLANK(テーブル63[[#This Row],[ほ装]])),VLOOKUP(テーブル63[[#This Row],[ほ装]],ほ装[],2,TRUE), IF(NOT(ISBLANK(テーブル63[[#This Row],[許可区分(ほ装)]])),\"D\",\"-\"))","v":"-"},{"$f":"IF(NOT(ISBLANK(テーブル63[[#This Row],[塗装]])),VLOOKUP(テーブル63[[#This Row],[塗装]],塗装[],2,TRUE), IF(NOT(ISBLANK(テーブル63[[#This Row],[許可区分（塗装）]])),\"D\",\"-\"))","v":"A"},{"$f":"IF(NOT(ISBLANK(テーブル63[[#This Row],[防水]])),VLOOKUP(テーブル63[[#This Row],[防水]],塗装[],2,TRUE), IF(NOT(ISBLANK(テーブル63[[#This Row],[許可区分（防水）]])),\"D\",\"-\"))","v":"B"},{"$f":"IF(NOT(ISBLANK(テーブル63[[#This Row],[機械器具設置]])),VLOOKUP(テーブル63[[#This Row],[機械器具設置]],塗装[],2,TRUE), IF(NOT(ISBLANK(テーブル63[[#This Row],[許可区分（機械器具）]])),\"D\",\"-\"))","v":"-"},{"$f":"IF(NOT(ISBLANK(テーブル63[[#This Row],[電気通信]])),VLOOKUP(テーブル63[[#This Row],[電気通信]],電気[],2,TRUE), IF(NOT(ISBLANK(テーブル63[[#This Row],[許可区分(電気)]])),\"D\",\"-\"))","v":"-"},{"$f":"IF(NOT(ISBLANK(テーブル63[[#This Row],[水道施設]])),VLOOKUP(テーブル63[[#This Row],[水道施設]],水道[],2,TRUE), IF(NOT(ISBLANK(テーブル63[[#This Row],[許可区分（水道施設）]])),\"D\",\"-\"))","v":"-"}]
[73,"県内","有村建設株式会社","佐倉市新臼井田6-13","有村　大","043-487-3115","043-487-3534","特定",909,null,null,null,null,"特定",776,"特定",890,"特定",682,null,null,null,null,null,null,"特定",682,{"$f":"IF(NOT(ISBLANK(テーブル63[[#This Row],[土木一式]])),VLOOKUP(テーブル63[[#This Row],[土木一式]],土木[],2,TRUE), IF(NOT(ISBLANK(テーブル63[[#This Row],[許可区分(土木)]])),\"D\",\"-\"))","v":"A"},{"$f":"IF(NOT(ISBLANK(テーブル63[[#This Row],[建築一式]])),VLOOKUP(テーブル63[[#This Row],[建築一式]],建築[],2,TRUE), IF(NOT(ISBLANK(テーブル63[[#This Row],[許可区分（建築）]])),\"D\",\"-\"))","v":"-"},{"$f":"IF(NOT(ISBLANK(テーブル63[[#This Row],[電気]])),VLOOKUP(テーブル63[[#This Row],[電気]],電気[],2,TRUE), IF(NOT(ISBLANK(テーブル63[[#This Row],[許可区分（電気）]])),\"D\",\"-\"))","v":"-"},{"$f":"IF(NOT(ISBLANK(テーブル63[[#This Row],[管]])),VLOOKUP(テーブル63[[#This Row],[管]],管[],2,TRUE), IF(NOT(ISBLANK(テーブル63[[#This Row],[許可区分（管）]])),\"D\",\"-\"))","v":"A"},{"$f":"IF(NOT(ISBLANK(テーブル63[[#This Row],[ほ装]])),VLOOKUP(テーブル63[[#This Row],[ほ装]],ほ装[],2,TRUE), IF(NOT(ISBLANK(テーブル63[[#This Row],[許可区分(ほ装)]])),\"D\",\"-\"))","v":"A"},{"$f":"IF(NOT(ISBLANK(テーブル63[[#This Row],[塗装]])),VLOOKUP(テーブル63[[#This Row],[塗装]],塗装[],2,TRUE), IF(NOT(ISBLANK(テーブル63[[#This Row],[許可区分（塗装）]])),\"D\",\"-\"))","v":"C"},{"$f":"IF(NOT(ISBLANK(テーブル63[[#This Row],[防水]])),VLOOKUP(テーブル63[[#This Row],[防水]],塗装[],2,TRUE), IF(NOT(ISBLANK(テーブル63[[#This Row],[許可区分（防水）]])),\"D\",\"-\"))","v":"-"},{"$f":"IF(NOT(ISBLANK(テーブル63[[#This Row],[機械器具設置]])),VLOOKUP(テーブル63[[#This Row],[機械器具設置]],塗装[],2,TRUE), IF(NOT(ISBLANK(テーブル63[[#This Row],[許可区分（機械器具）]])),\"D\",\"-\"))","v":"-"},{"$f":"IF(NOT(ISBLANK(テーブル63[[#This Row],[電気通信]])),VLOOKUP(テーブル63[[#This Row],[電気通信]],電気[],2,TRUE), IF(NOT(ISBLANK(テーブル63[[#This Row],[許可区分(電気)]])),\"D\",\"-\"))","v":"-"},{"$f":"IF(NOT(ISBLANK(テーブル63[[#This Row],[水道施設]])),VLOOKUP(テーブル63[[#This Row],[水道施設]],水道[],2,TRUE), IF(NOT(ISBLANK(テーブル63[[#This Row],[許可区分（水道施設）]])),\"D\",\"-\"))","v":"C"}]
[74,"県内","竹内建設株式会社","印西市原1-1-5","竹内　義政","0476-40-0033","0476-85-3313","特定",1019,"特定",877,null,null,"特定",815,"特定",840,"特定",833,"特定",685,null,null,null,null,"特定",685,{"$f":"IF(NOT(ISBLANK(テーブル63[[#This Row],[土木一式]])),VLOOKUP(テーブル63[[#This Row],[土木一式]],土木[],2,TRUE), IF(NOT(ISBLANK(テーブル63[[#This Row],[許可区分(土木)]])),\"D\",\"-\"))","v":"A"},{"$f":"IF(NOT(ISBLANK(テーブル63[[#This Row],[建築一式]])),VLOOKUP(テーブル63[[#This Row],[建築一式]],建築[],2,TRUE), IF(NOT(ISBLANK(テーブル63[[#This Row],[許可区分（建築）]])),\"D\",\"-\"))","v":"A"},{"$f":"IF(NOT(ISBLANK(テーブル63[[#This Row],[電気]])),VLOOKUP(テーブル63[[#This Row],[電気]],電気[],2,TRUE), IF(NOT(ISBLANK(テーブル63[[#This Row],[許可区分（電気）]])),\"D\",\"-\"))","v":"-"},{"$f":"IF(NOT(ISBLANK(テーブル63[[#This Row],[管]])),VLOOKUP(テーブル63[[#This Row],[管]],管[],2,TRUE), IF(NOT(ISBLANK(テーブル63[[#This Row],[許可区分（管）]])),\"D\",\"-\"))","v":"A"},{"$f":"IF(NOT(ISBLANK(テーブル63[[#This Row],[ほ装]])),VLOOKUP(テーブル63[[#This Row],[ほ装]],ほ装[],2,TRUE), IF(NOT(ISBLANK(テーブル63[[#This Row],[許可区分(ほ装)]])),\"D\",\"-\"))","v":"A"},{"$f":"IF(NOT(ISBLANK(テーブル63[[#This Row],[塗装]])),VLOOKUP(テーブル63[[#This Row],[塗装]],塗装[],2,TRUE), IF(NOT(ISBLANK(テーブル63[[#This Row],[許可区分（塗装）]])),\"D\",\"-\"))","v":"A"},{"$f":"IF(NOT(ISBLANK(テーブル63[[#This Row],[防水]])),VLOOKUP(テーブル63[[#This Row],[防水]],塗装[],2,TRUE), IF(NOT(ISBLANK(テーブル63[[#This Row],[許可区分（防水）]])),\"D\",\"-\"))","v":"C"},{"$f":"IF(NOT(ISBLANK(テーブル63[[#This Row],[機械器具設置]])),VLOOKUP(テーブル63[[#This Row],[機械器具設置]],塗装[],2,TRUE), IF(NOT(ISBLANK(テーブル63[[#This Row],[許可区分（機械器具）]])),\"D\",\"-\"))","v":"-"},{"$f":"IF(NOT(ISBLANK(テーブル63[[#This Row],[電気通信]])),VLOOKUP(テーブル63[[#This Row],[電気通信]],電気[],2,TRUE), IF(NOT(ISBLANK(テーブル63[[#This Row],[許可区分(電気)]])),\"D\",\"-\"))","v":"-"},{"$f":"IF(NOT(ISBLANK(テーブル63[[#This Row],[水道施設]])),VLOOKUP(テーブル63[[#This Row],[水道施設]],水道[],2,TRUE), IF(NOT(ISBLANK(テーブル63[[#This Row],[許可区分（水道施設）]])),\"D\",\"-\"))","v":"C"}]
[75,"県内","株式会社祐伸建設","旭市入野1300","菅谷　延行","0479-68-2804","0479-68-2918","特定",884,"一般",653,null,null,"一般",722,"特定",818,null,null,null,null,null,null,null,null,null,null,{"$f":"IF(NOT(ISBLANK(テーブル63[[#This Row],[土木一式]])),VLOOKUP(テーブル63[[#This Row],[土木一式]],土木[],2,TRUE), IF(NOT(ISBLANK(テーブル63[[#This Row],[許可区分(土木)]])),\"D\",\"-\"))","v":"A"},{"$f":"IF(NOT(ISBLANK(テーブル63[[#This Row],[建築一式]])),VLOOKUP(テーブル63[[#This Row],[建築一式]],建築[],2,TRUE), IF(NOT(ISBLANK(テーブル63[[#This Row],[許可区分（建築）]])),\"D\",\"-\"))","v":"C"},{"$f":"IF(NOT(ISBLANK(テーブル63[[#This Row],[電気]])),VLOOKUP(テーブル63[[#This Row],[電気]],電気[],2,TRUE), IF(NOT(ISBLANK(テーブル63[[#This Row],[許可区分（電気）]])),\"D\",\"-\"))","v":"-"},{"$f":"IF(NOT(ISBLANK(テーブル63[[#This Row],[管]])),VLOOKUP(テーブル63[[#This Row],[管]],管[],2,TRUE), IF(NOT(ISBLANK(テーブル63[[#This Row],[許可区分（管）]])),\"D\",\"-\"))","v":"A"},{"$f":"IF(NOT(ISBLANK(テーブル63[[#This Row],[ほ装]])),VLOOKUP(テーブル63[[#This Row],[ほ装]],ほ装[],2,TRUE), IF(NOT(ISBLANK(テーブル63[[#This Row],[許可区分(ほ装)]])),\"D\",\"-\"))","v":"A"},{"$f":"IF(NOT(ISBLANK(テーブル63[[#This Row],[塗装]])),VLOOKUP(テーブル63[[#This Row],[塗装]],塗装[],2,TRUE), IF(NOT(ISBLANK(テーブル63[[#This Row],[許可区分（塗装）]])),\"D\",\"-\"))","v":"-"},{"$f":"IF(NOT(ISBLANK(テーブル63[[#This Row],[防水]])),VLOOKUP(テーブル63[[#This Row],[防水]],塗装[],2,TRUE), IF(NOT(ISBLANK(テーブル63[[#This Row],[許可区分（防水）]])),\"D\",\"-\"))","v":"-"},{"$f":"IF(NOT(ISBLANK(テーブル63[[#This Row],[機械器具設置]])),VLOOKUP(テーブル63[[#This Row],[機械器具設置]],塗装[],2,TRUE), IF(NOT(ISBLANK(テーブル63[[#This Row],[許可区分（機械器具）]])),\"D\",\"-\"))","v":"-"},{"$f":"IF(NOT(ISBLANK(テーブル63[[#This Row],[電気通信]])),VLOOKUP(テーブル63[[#This Row],[電気通信]],電気[],2,TRUE), IF(NOT(ISBLANK(テーブル63[[#This Row],[許可区分(電気)]])),\"D\",\"-\"))","v":"-"},{"$f":"IF(NOT(ISBLANK(テーブル63[[#This Row],[水道施設]])),VLOOKUP(テーブル63[[#This Row],[水道施設]],水道[],2,TRUE), IF(NOT(ISBLANK(テーブル63[[#This Row],[許可区分（水道施設）]])),\"D\",\"-\"))","v":"-"}]
[76,"県内","シンフォニアエンジニアリング株式会社　千葉営業所","船橋市豊富町631-12","南條　幸男","047-457-5023","047-457-5024",null,null,null,null,"特定",1303,null,null,null,null,null,null,null,null,"一般",996,null,null,null,null,{"$f":"IF(NOT(ISBLANK(テーブル63[[#This Row],[土木一式]])),VLOOKUP(テーブル63[[#This Row],[土木一式]],土木[],2,TRUE), IF(NOT(ISBLANK(テーブル63[[#This Row],[許可区分(土木)]])),\"D\",\"-\"))","v":"-"},{"$f":"IF(NOT(ISBLANK(テーブル63[[#This Row],[建築一式]])),VLOOKUP(テーブル63[[#This Row],[建築一式]],建築[],2,TRUE), IF(NOT(ISBLANK(テーブル63[[#This Row],[許可区分（建築）]])),\"D\",\"-\"))","v":"-"},{"$f":"IF(NOT(ISBLANK(テーブル63[[#This Row],[電気]])),VLOOKUP(テーブル63[[#This Row],[電気]],電気[],2,TRUE), IF(NOT(ISBLANK(テーブル63[[#This Row],[許可区分（電気）]])),\"D\",\"-\"))","v":"A"},{"$f":"IF(NOT(ISBLANK(テーブル63[[#This Row],[管]])),VLOOKUP(テーブル63[[#This Row],[管]],管[],2,TRUE), IF(NOT(ISBLANK(テーブル63[[#This Row],[許可区分（管）]])),\"D\",\"-\"))","v":"-"},{"$f":"IF(NOT(ISBLANK(テーブル63[[#This Row],[ほ装]])),VLOOKUP(テーブル63[[#This Row],[ほ装]],ほ装[],2,TRUE), IF(NOT(ISBLANK(テーブル63[[#This Row],[許可区分(ほ装)]])),\"D\",\"-\"))","v":"-"},{"$f":"IF(NOT(ISBLANK(テーブル63[[#This Row],[塗装]])),VLOOKUP(テーブル63[[#This Row],[塗装]],塗装[],2,TRUE), IF(NOT(ISBLANK(テーブル63[[#This Row],[許可区分（塗装）]])),\"D\",\"-\"))","v":"-"},{"$f":"IF(NOT(ISBLANK(テーブル63[[#This Row],[防水]])),VLOOKUP(テーブル63[[#This Row],[防水]],塗装[],2,TRUE), IF(NOT(ISBLANK(テーブル63[[#This Row],[許可区分（防水）]])),\"D\",\"-\"))","v":"-"},{"$f":"IF(NOT(ISBLANK(テーブル63[[#This Row],[機械器具設置]])),VLOOKUP(テーブル63[[#This Row],[機械器具設置]],塗装[],2,TRUE), IF(NOT(ISBLANK(テーブル63[[#This Row],[許可区分（機械器具）]])),\"D\",\"-\"))","v":"A"},{"$f":"IF(NOT(ISBLANK(テーブル63[[#This Row],[電気通信]])),VLOOKUP(テーブル63[[#This Row],[電気通信]],電気[],2,TRUE), IF(NOT(ISBLANK(テーブル63[[#This Row],[許可区分(電気)]])),\"D\",\"-\"))","v":"-"},{"$f":"IF(NOT(ISBLANK(テーブル63[[#This Row],[水道施設]])),VLOOKUP(テーブル63[[#This Row],[水道施設]],水道[],2,TRUE), IF(NOT(ISBLANK(テーブル63[[#This Row],[許可区分（水道施設）]])),\"D\",\"-\"))","v":"-"}]
[77,"県内","鎌形建設株式会社","香取郡多古町多古591番地","鎌形　憲一","0479-76-2225","0479-76-2260","特定",979,"特定",1133,null,null,"特定",773,"特定",851,"特定",781,"特定",748,null,null,null,null,"特定",706,{"$f":"IF(NOT(ISBLANK(テーブル63[[#This Row],[土木一式]])),VLOOKUP(テーブル63[[#This Row],[土木一式]],土木[],2,TRUE), IF(NOT(ISBLANK(テーブル63[[#This Row],[許可区分(土木)]])),\"D\",\"-\"))","v":"A"},{"$f":"IF(NOT(ISBLANK(テーブル63[[#This Row],[建築一式]])),VLOOKUP(テーブル63[[#This Row],[建築一式]],建築[],2,TRUE), IF(NOT(ISBLANK(テーブル63[[#This Row],[許可区分（建築）]])),\"D\",\"-\"))","v":"A"},{"$f":"IF(NOT(ISBLANK(テーブル63[[#This Row],[電気]])),VLOOKUP(テーブル63[[#This Row],[電気]],電気[],2,TRUE), IF(NOT(ISBLANK(テーブル63[[#This Row],[許可区分（電気）]])),\"D\",\"-\"))","v":"-"},{"$f":"IF(NOT(ISBLANK(テーブル63[[#This Row],[管]])),VLOOKUP(テーブル63[[#This Row],[管]],管[],2,TRUE), IF(NOT(ISBLANK(テーブル63[[#This Row],[許可区分（管）]])),\"D\",\"-\"))","v":"A"},{"$f":"IF(NOT(ISBLANK(テーブル63[[#This Row],[ほ装]])),VLOOKUP(テーブル63[[#This Row],[ほ装]],ほ装[],2,TRUE), IF(NOT(ISBLANK(テーブル63[[#This Row],[許可区分(ほ装)]])),\"D\",\"-\"))","v":"A"},{"$f":"IF(NOT(ISBLANK(テーブル63[[#This Row],[塗装]])),VLOOKUP(テーブル63[[#This Row],[塗装]],塗装[],2,TRUE), IF(NOT(ISBLANK(テーブル63[[#This Row],[許可区分（塗装）]])),\"D\",\"-\"))","v":"B"},{"$f":"IF(NOT(ISBLANK(テーブル63[[#This Row],[防水]])),VLOOKUP(テーブル63[[#This Row],[防水]],塗装[],2,TRUE), IF(NOT(ISBLANK(テーブル63[[#This Row],[許可区分（防水）]])),\"D\",\"-\"))","v":"B"},{"$f":"IF(NOT(ISBLANK(テーブル63[[#This Row],[機械器具設置]])),VLOOKUP(テーブル63[[#This Row],[機械器具設置]],塗装[],2,TRUE), IF(NOT(ISBLANK(テーブル63[[#This Row],[許可区分（機械器具）]])),\"D\",\"-\"))","v":"-"},{"$f":"IF(NOT(ISBLANK(テーブル63[[#This Row],[電気通信]])),VLOOKUP(テーブル63[[#This Row],[電気通信]],電気[],2,TRUE), IF(NOT(ISBLANK(テーブル63[[#This Row],[許可区分(電気)]])),\"D\",\"-\"))","v":"-"},{"$f":"IF(NOT(ISBLANK(テーブル63[[#This Row],[水道施設]])),VLOOKUP(テーブル63[[#This Row],[水道施設]],水道[],2,TRUE), IF(NOT(ISBLANK(テーブル63[[#This Row],[許可区分（水道施設）]])),\"D\",\"-\"))","v":"B"}]
[78,"県内","昱株式会社　千葉支店","千葉市若葉区貝塚町2034番地の1","齊藤　剛","043-232-2281","043-232-7271","特定",887,"一般",861,"特定",1491,"特定",1111,null,null,null,null,null,null,"特定",1397,"特定",1170,"特定",1221,{"$f":"IF(NOT(ISBLANK(テーブル63[[#This Row],[土木一式]])),VLOOKUP(テーブル63[[#This Row],[土木一式]],土木[],2,TRUE), IF(NOT(ISBLANK(テーブル63[[#This Row],[許可区分(土木)]])),\"D\",\"-\"))","v":"A"},{"$f":"IF(NOT(ISBLANK(テーブル63[[#This Row],[建築一式]])),VLOOKUP(テーブル63[[#This Row],[建築一式]],建築[],2,TRUE), IF(NOT(ISBLANK(テーブル63[[#This Row],[許可区分（建築）]])),\"D\",\"-\"))","v":"A"},{"$f":"IF(NOT(ISBLANK(テーブル63[[#This Row],[電気]])),VLOOKUP(テーブル63[[#This Row],[電気]],電気[],2,TRUE), IF(NOT(ISBLANK(テーブル63[[#This Row],[許可区分（電気）]])),\"D\",\"-\"))","v":"A"},{"$f":"IF(NOT(ISBLANK(テーブル63[[#This Row],[管]])),VLOOKUP(テーブル63[[#This Row],[管]],管[],2,TRUE), IF(NOT(ISBLANK(テーブル63[[#This Row],[許可区分（管）]])),\"D\",\"-\"))","v":"A"},{"$f":"IF(NOT(ISBLANK(テーブル63[[#This Row],[ほ装]])),VLOOKUP(テーブル63[[#This Row],[ほ装]],ほ装[],2,TRUE), IF(NOT(ISBLANK(テーブル63[[#This Row],[許可区分(ほ装)]])),\"D\",\"-\"))","v":"-"},{"$f":"IF(NOT(ISBLANK(テーブル63[[#This Row],[塗装]])),VLOOKUP(テーブル63[[#This Row],[塗装]],塗装[],2,TRUE), IF(NOT(ISBLANK(テーブル63[[#This Row],[許可区分（塗装）]])),\"D\",\"-\"))","v":"-"},{"$f":"IF(NOT(ISBLANK(テーブル63[[#This Row],[防水]])),VLOOKUP(テーブル63[[#This Row],[防水]],塗装[],2,TRUE), IF(NOT(ISBLANK(テーブル63[[#This Row],[許可区分（防水）]])),\"D\",\"-\"))","v":"-"},{"$f":"IF(NOT(ISBLANK(テーブル63[[#This Row],[機械器具設置]])),VLOOKUP(テーブル63[[#This Row],[機械器具設置]],塗装[],2,TRUE), IF(NOT(ISBLANK(テーブル63[[#This Row],[許可区分（機械器具）]])),\"D\",\"-\"))","v":"A"},{"$f":"IF(NOT(ISBLANK(テーブル63[[#This Row],[電気通信]])),VLOOKUP(テーブル63[[#This Row],[電気通信]],電気[],2,TRUE), IF(NOT(ISBLANK(テーブル63[[#This Row],[許可区分(電気)]])),\"D\",\"-\"))","v":"A"},{"$f":"IF(NOT(ISBLANK(テーブル63[[#This Row],[水道施設]])),VLOOKUP(テーブル63[[#This Row],[水道施設]],水道[],2,TRUE), IF(NOT(ISBLANK(テーブル63[[#This Row],[許可区分（水道施設）]])),\"D\",\"-\"))","v":"A"}]
[79,"県内","株式会社彩","千葉市若葉区加曽利町710","中島　康浩","043-214-0566","043-214-0810",null,null,"特定",718,null,null,null,null,null,null,"特定",856,"特定",769,null,null,null,null,null,null,{"$f":"IF(NOT(ISBLANK(テーブル63[[#This Row],[土木一式]])),VLOOKUP(テーブル63[[#This Row],[土木一式]],土木[],2,TRUE), IF(NOT(ISBLANK(テーブル63[[#This Row],[許可区分(土木)]])),\"D\",\"-\"))","v":"-"},{"$f":"IF(NOT(ISBLANK(テーブル63[[#This Row],[建築一式]])),VLOOKUP(テーブル63[[#This Row],[建築一式]],建築[],2,TRUE), IF(NOT(ISBLANK(テーブル63[[#This Row],[許可区分（建築）]])),\"D\",\"-\"))","v":"B"},{"$f":"IF(NOT(ISBLANK(テーブル63[[#This Row],[電気]])),VLOOKUP(テーブル63[[#This Row],[電気]],電気[],2,TRUE), IF(NOT(ISBLANK(テーブル63[[#This Row],[許可区分（電気）]])),\"D\",\"-\"))","v":"-"},{"$f":"IF(NOT(ISBLANK(テーブル63[[#This Row],[管]])),VLOOKUP(テーブル63[[#This Row],[管]],管[],2,TRUE), IF(NOT(ISBLANK(テーブル63[[#This Row],[許可区分（管）]])),\"D\",\"-\"))","v":"-"},{"$f":"IF(NOT(ISBLANK(テーブル63[[#This Row],[ほ装]])),VLOOKUP(テーブル63[[#This Row],[ほ装]],ほ装[],2,TRUE), IF(NOT(ISBLANK(テーブル63[[#This Row],[許可区分(ほ装)]])),\"D\",\"-\"))","v":"-"},{"$f":"IF(NOT(ISBLANK(テーブル63[[#This Row],[塗装]])),VLOOKUP(テーブル63[[#This Row],[塗装]],塗装[],2,TRUE), IF(NOT(ISBLANK(テーブル63[[#This Row],[許可区分（塗装）]])),\"D\",\"-\"))","v":"A"},{"$f":"IF(NOT(ISBLANK(テーブル63[[#This Row],[防水]])),VLOOKUP(テーブル63[[#This Row],[防水]],塗装[],2,TRUE), IF(NOT(ISBLANK(テーブル63[[#This Row],[許可区分（防水）]])),\"D\",\"-\"))","v":"B"},{"$f":"IF(NOT(ISBLANK(テーブル63[[#This Row],[機械器具設置]])),VLOOKUP(テーブル63[[#This Row],[機械器具設置]],塗装[],2,TRUE), IF(NOT(ISBLANK(テーブル63[[#This Row],[許可区分（機械器具）]])),\"D\",\"-\"))","v":"-"},{"$f":"IF(NOT(ISBLANK(テーブル63[[#This Row],[電気通信]])),VLOOKUP(テーブル63[[#This Row],[電気通信]],電気[],2,TRUE), IF(NOT(ISBLANK(テーブル63[[#This Row],[許可区分(電気)]])),\"D\",\"-\"))","v":"-"},{"$f":"IF(NOT(ISBLANK(テーブル63[[#This Row],[水道施設]])),VLOOKUP(テーブル63[[#This Row],[水道施設]],水道[],2,TRUE), IF(NOT(ISBLANK(テーブル63[[#This Row],[許可区分（水道施設）]])),\"D\",\"-\"))","v":"-"}]
[80,"県内","スイス通信システム株式会社","千葉市中央区都町六丁目21番5号","平野　恒次","043-231-8231","043-231-8166",null,null,null,null,"特定",800,null,null,null,null,null,null,null,null,null,null,"特定",959,null,null,{"$f":"IF(NOT(ISBLANK(テーブル63[[#This Row],[土木一式]])),VLOOKUP(テーブル63[[#This Row],[土木一式]],土木[],2,TRUE), IF(NOT(ISBLANK(テーブル63[[#This Row],[許可区分(土木)]])),\"D\",\"-\"))","v":"-"},{"$f":"IF(NOT(ISBLANK(テーブル63[[#This Row],[建築一式]])),VLOOKUP(テーブル63[[#This Row],[建築一式]],建築[],2,TRUE), IF(NOT(ISBLANK(テーブル63[[#This Row],[許可区分（建築）]])),\"D\",\"-\"))","v":"-"},{"$f":"IF(NOT(ISBLANK(テーブル63[[#This Row],[電気]])),VLOOKUP(テーブル63[[#This Row],[電気]],電気[],2,TRUE), IF(NOT(ISBLANK(テーブル63[[#This Row],[許可区分（電気）]])),\"D\",\"-\"))","v":"A"},{"$f":"IF(NOT(ISBLANK(テーブル63[[#This Row],[管]])),VLOOKUP(テーブル63[[#This Row],[管]],管[],2,TRUE), IF(NOT(ISBLANK(テーブル63[[#This Row],[許可区分（管）]])),\"D\",\"-\"))","v":"-"},{"$f":"IF(NOT(ISBLANK(テーブル63[[#This Row],[ほ装]])),VLOOKUP(テーブル63[[#This Row],[ほ装]],ほ装[],2,TRUE), IF(NOT(ISBLANK(テーブル63[[#This Row],[許可区分(ほ装)]])),\"D\",\"-\"))","v":"-"},{"$f":"IF(NOT(ISBLANK(テーブル63[[#This Row],[塗装]])),VLOOKUP(テーブル63[[#This Row],[塗装]],塗装[],2,TRUE), IF(NOT(ISBLANK(テーブル63[[#This Row],[許可区分（塗装）]])),\"D\",\"-\"))","v":"-"},{"$f":"IF(NOT(ISBLANK(テーブル63[[#This Row],[防水]])),VLOOKUP(テーブル63[[#This Row],[防水]],塗装[],2,TRUE), IF(NOT(ISBLANK(テーブル63[[#This Row],[許可区分（防水）]])),\"D\",\"-\"))","v":"-"},{"$f":"IF(NOT(ISBLANK(テーブル63[[#This Row],[機械器具設置]])),VLOOKUP(テーブル63[[#This Row],[機械器具設置]],塗装[],2,TRUE), IF(NOT(ISBLANK(テーブル63[[#This Row],[許可区分（機械器具）]])),\"D\",\"-\"))","v":"-"},{"$f":"IF(NOT(ISBLANK(テーブル63[[#This Row],[電気通信]])),VLOOKUP(テーブル63[[#This Row],[電気通信]],電気[],2,TRUE), IF(NOT(ISBLANK(テーブル63[[#This Row],[許可区分(電気)]])),\"D\",\"-\"))","v":"A"},{"$f":"IF(NOT(ISBLANK(テーブル63[[#This Row],[水道施設]])),VLOOKUP(テーブル63[[#This Row],[水道施設]],水道[],2,TRUE), IF(NOT(ISBLANK(テーブル63[[#This Row],[許可区分（水道施設）]])),\"D\",\"-\"))","v":"-"}]
[81,"県内","株式会社橋本電業社","千葉市花見川区作新台四丁目16番10号","橋本　淳","043-259-8415","043-259-8413",null,null,null,null,"特定",1038,null,null,null,null,null,null,null,null,null,null,"一般",866,null,null,{"$f":"IF(NOT(ISBLANK(テーブル63[[#This Row],[土木一式]])),VLOOKUP(テーブル63[[#This Row],[土木一式]],土木[],2,TRUE), IF(NOT(ISBLANK(テーブル63[[#This Row],[許可区分(土木)]])),\"D\",\"-\"))","v":"-"},{"$f":"IF(NOT(ISBLANK(テーブル63[[#This Row],[建築一式]])),VLOOKUP(テーブル63[[#This Row],[建築一式]],建築[],2,TRUE), IF(NOT(ISBLANK(テーブル63[[#This Row],[許可区分（建築）]])),\"D\",\"-\"))","v":"-"},{"$f":"IF(NOT(ISBLANK(テーブル63[[#This Row],[電気]])),VLOOKUP(テーブル63[[#This Row],[電気]],電気[],2,TRUE), IF(NOT(ISBLANK(テーブル63[[#This Row],[許可区分（電気）]])),\"D\",\"-\"))","v":"A"},{"$f":"IF(NOT(ISBLANK(テーブル63[[#This Row],[管]])),VLOOKUP(テーブル63[[#This Row],[管]],管[],2,TRUE), IF(NOT(ISBLANK(テーブル63[[#This Row],[許可区分（管）]])),\"D\",\"-\"))","v":"-"},{"$f":"IF(NOT(ISBLANK(テーブル63[[#This Row],[ほ装]])),VLOOKUP(テーブル63[[#This Row],[ほ装]],ほ装[],2,TRUE), IF(NOT(ISBLANK(テーブル63[[#This Row],[許可区分(ほ装)]])),\"D\",\"-\"))","v":"-"},{"$f":"IF(NOT(ISBLANK(テーブル63[[#This Row],[塗装]])),VLOOKUP(テーブル63[[#This Row],[塗装]],塗装[],2,TRUE), IF(NOT(ISBLANK(テーブル63[[#This Row],[許可区分（塗装）]])),\"D\",\"-\"))","v":"-"},{"$f":"IF(NOT(ISBLANK(テーブル63[[#This Row],[防水]])),VLOOKUP(テーブル63[[#This Row],[防水]],塗装[],2,TRUE), IF(NOT(ISBLANK(テーブル63[[#This Row],[許可区分（防水）]])),\"D\",\"-\"))","v":"-"},{"$f":"IF(NOT(ISBLANK(テーブル63[[#This Row],[機械器具設置]])),VLOOKUP(テーブル63[[#This Row],[機械器具設置]],塗装[],2,TRUE), IF(NOT(ISBLANK(テーブル63[[#This Row],[許可区分（機械器具）]])),\"D\",\"-\"))","v":"-"},{"$f":"IF(NOT(ISBLANK(テーブル63[[#This Row],[電気通信]])),VLOOKUP(テーブル63[[#This Row],[電気通信]],電気[],2,TRUE), IF(NOT(ISBLANK(テーブル63[[#This Row],[許可区分(電気)]])),\"D\",\"-\"))","v":"A"},{"$f":"IF(NOT(ISBLANK(テーブル63[[#This Row],[水道施設]])),VLOOKUP(テーブル63[[#This Row],[水道施設]],水道[],2,TRUE), IF(NOT(ISBLANK(テーブル63[[#This Row],[許可区分（水道施設）]])),\"D\",\"-\"))","v":"-"}]
[82,"県内","阿部建設株式会社","旭市二の528番地","阿部　典義","0479-62-1221","0479-63-7171","特定",1119,"特定",1134,"特定",754,"特定",780,"特定",987,null,null,null,null,null,null,null,null,"特定",903,{"$f":"IF(NOT(ISBLANK(テーブル63[[#This Row],[土木一式]])),VLOOKUP(テーブル63[[#This Row],[土木一式]],土木[],2,TRUE), IF(NOT(ISBLANK(テーブル63[[#This Row],[許可区分(土木)]])),\"D\",\"-\"))","v":"A"},{"$f":"IF(NOT(ISBLANK(テーブル63[[#This Row],[建築一式]])),VLOOKUP(テーブル63[[#This Row],[建築一式]],建築[],2,TRUE), IF(NOT(ISBLANK(テーブル63[[#This Row],[許可区分（建築）]])),\"D\",\"-\"))","v":"A"},{"$f":"IF(NOT(ISBLANK(テーブル63[[#This Row],[電気]])),VLOOKUP(テーブル63[[#This Row],[電気]],電気[],2,TRUE), IF(NOT(ISBLANK(テーブル63[[#This Row],[許可区分（電気）]])),\"D\",\"-\"))","v":"B"},{"$f":"IF(NOT(ISBLANK(テーブル63[[#This Row],[管]])),VLOOKUP(テーブル63[[#This Row],[管]],管[],2,TRUE), IF(NOT(ISBLANK(テーブル63[[#This Row],[許可区分（管）]])),\"D\",\"-\"))","v":"A"},{"$f":"IF(NOT(ISBLANK(テーブル63[[#This Row],[ほ装]])),VLOOKUP(テーブル63[[#This Row],[ほ装]],ほ装[],2,TRUE), IF(NOT(ISBLANK(テーブル63[[#This Row],[許可区分(ほ装)]])),\"D\",\"-\"))","v":"A"},{"$f":"IF(NOT(ISBLANK(テーブル63[[#This Row],[塗装]])),VLOOKUP(テーブル63[[#This Row],[塗装]],塗装[],2,TRUE), IF(NOT(ISBLANK(テーブル63[[#This Row],[許可区分（塗装）]])),\"D\",\"-\"))","v":"-"},{"$f":"IF(NOT(ISBLANK(テーブル63[[#This Row],[防水]])),VLOOKUP(テーブル63[[#This Row],[防水]],塗装[],2,TRUE), IF(NOT(ISBLANK(テーブル63[[#This Row],[許可区分（防水）]])),\"D\",\"-\"))","v":"-"},{"$f":"IF(NOT(ISBLANK(テーブル63[[#This Row],[機械器具設置]])),VLOOKUP(テーブル63[[#This Row],[機械器具設置]],塗装[],2,TRUE), IF(NOT(ISBLANK(テーブル63[[#This Row],[許可区分（機械器具）]])),\"D\",\"-\"))","v":"-"},{"$f":"IF(NOT(ISBLANK(テーブル63[[#This Row],[電気通信]])),VLOOKUP(テーブル63[[#This Row],[電気通信]],電気[],2,TRUE), IF(NOT(ISBLANK(テーブル63[[#This Row],[許可区分(電気)]])),\"D\",\"-\"))","v":"-"},{"$f":"IF(NOT(ISBLANK(テーブル63[[#This Row],[水道施設]])),VLOOKUP(テーブル63[[#This Row],[水道施設]],水道[],2,TRUE), IF(NOT(ISBLANK(テーブル63[[#This Row],[許可区分（水道施設）]])),\"D\",\"-\"))","v":"A"}]
[83,"県内","株式会社第一テクノ　千葉営業所","千葉市中央区今井二丁目14番5号","新井　延弘","043-209-9291","043-209-9293","特定",887,null,null,"特定",1339,"特定",942,null,null,null,null,null,null,"特定",1334,null,null,"特定",1040,{"$f":"IF(NOT(ISBLANK(テーブル63[[#This Row],[土木一式]])),VLOOKUP(テーブル63[[#This Row],[土木一式]],土木[],2,TRUE), IF(NOT(ISBLANK(テーブル63[[#This Row],[許可区分(土木)]])),\"D\",\"-\"))","v":"A"},{"$f":"IF(NOT(ISBLANK(テーブル63[[#This Row],[建築一式]])),VLOOKUP(テーブル63[[#This Row],[建築一式]],建築[],2,TRUE), IF(NOT(ISBLANK(テーブル63[[#This Row],[許可区分（建築）]])),\"D\",\"-\"))","v":"-"},{"$f":"IF(NOT(ISBLANK(テーブル63[[#This Row],[電気]])),VLOOKUP(テーブル63[[#This Row],[電気]],電気[],2,TRUE), IF(NOT(ISBLANK(テーブル63[[#This Row],[許可区分（電気）]])),\"D\",\"-\"))","v":"A"},{"$f":"IF(NOT(ISBLANK(テーブル63[[#This Row],[管]])),VLOOKUP(テーブル63[[#This Row],[管]],管[],2,TRUE), IF(NOT(ISBLANK(テーブル63[[#This Row],[許可区分（管）]])),\"D\",\"-\"))","v":"A"},{"$f":"IF(NOT(ISBLANK(テーブル63[[#This Row],[ほ装]])),VLOOKUP(テーブル63[[#This Row],[ほ装]],ほ装[],2,TRUE), IF(NOT(ISBLANK(テーブル63[[#This Row],[許可区分(ほ装)]])),\"D\",\"-\"))","v":"-"},{"$f":"IF(NOT(ISBLANK(テーブル63[[#This Row],[塗装]])),VLOOKUP(テーブル63[[#This Row],[塗装]],塗装[],2,TRUE), IF(NOT(ISBLANK(テーブル63[[#This Row],[許可区分（塗装）]])),\"D\",\"-\"))","v":"-"},{"$f":"IF(NOT(ISBLANK(テーブル63[[#This Row],[防水]])),VLOOKUP(テーブル63[[#This Row],[防水]],塗装[],2,TRUE), IF(NOT(ISBLANK(テーブル63[[#This Row],[許可区分（防水）]])),\"D\",\"-\"))","v":"-"},{"$f":"IF(NOT(ISBLANK(テーブル63[[#This Row],[機械器具設置]])),VLOOKUP(テーブル63[[#This Row],[機械器具設置]],塗装[],2,TRUE), IF(NOT(ISBLANK(テーブル63[[#This Row],[許可区分（機械器具）]])),\"D\",\"-\"))","v":"A"},{"$f":"IF(NOT(ISBLANK(テーブル63[[#This Row],[電気通信]])),VLOOKUP(テーブル63[[#This Row],[電気通信]],電気[],2,TRUE), IF(NOT(ISBLANK(テーブル63[[#This Row],[許可区分(電気)]])),\"D\",\"-\"))","v":"-"},{"$f":"IF(NOT(ISBLANK(テーブル63[[#This Row],[水道施設]])),VLOOKUP(テーブル63[[#This Row],[水道施設]],水道[],2,TRUE), IF(NOT(ISBLANK(テーブル63[[#This Row],[許可区分（水道施設）]])),\"D\",\"-\"))","v":"A"}]
[84,"県内","株式会社髙山工業","東金市東新宿10番地16","髙山　裕太","0475-86-7776","0475-86-7780","一般",607,null,null,null,null,"一般",691,"一般",624,"一般",579,null,null,null,null,null,null,"一般",690,{"$f":"IF(NOT(ISBLANK(テーブル63[[#This Row],[土木一式]])),VLOOKUP(テーブル63[[#This Row],[土木一式]],土木[],2,TRUE), IF(NOT(ISBLANK(テーブル63[[#This Row],[許可区分(土木)]])),\"D\",\"-\"))","v":"C"},{"$f":"IF(NOT(ISBLANK(テーブル63[[#This Row],[建築一式]])),VLOOKUP(テーブル63[[#This Row],[建築一式]],建築[],2,TRUE), IF(NOT(ISBLANK(テーブル63[[#This Row],[許可区分（建築）]])),\"D\",\"-\"))","v":"-"},{"$f":"IF(NOT(ISBLANK(テーブル63[[#This Row],[電気]])),VLOOKUP(テーブル63[[#This Row],[電気]],電気[],2,TRUE), IF(NOT(ISBLANK(テーブル63[[#This Row],[許可区分（電気）]])),\"D\",\"-\"))","v":"-"},{"$f":"IF(NOT(ISBLANK(テーブル63[[#This Row],[管]])),VLOOKUP(テーブル63[[#This Row],[管]],管[],2,TRUE), IF(NOT(ISBLANK(テーブル63[[#This Row],[許可区分（管）]])),\"D\",\"-\"))","v":"B"},{"$f":"IF(NOT(ISBLANK(テーブル63[[#This Row],[ほ装]])),VLOOKUP(テーブル63[[#This Row],[ほ装]],ほ装[],2,TRUE), IF(NOT(ISBLANK(テーブル63[[#This Row],[許可区分(ほ装)]])),\"D\",\"-\"))","v":"B"},{"$f":"IF(NOT(ISBLANK(テーブル63[[#This Row],[塗装]])),VLOOKUP(テーブル63[[#This Row],[塗装]],塗装[],2,TRUE), IF(NOT(ISBLANK(テーブル63[[#This Row],[許可区分（塗装）]])),\"D\",\"-\"))","v":"D"},{"$f":"IF(NOT(ISBLANK(テーブル63[[#This Row],[防水]])),VLOOKUP(テーブル63[[#This Row],[防水]],塗装[],2,TRUE), IF(NOT(ISBLANK(テーブル63[[#This Row],[許可区分（防水）]])),\"D\",\"-\"))","v":"-"},{"$f":"IF(NOT(ISBLANK(テーブル63[[#This Row],[機械器具設置]])),VLOOKUP(テーブル63[[#This Row],[機械器具設置]],塗装[],2,TRUE), IF(NOT(ISBLANK(テーブル63[[#This Row],[許可区分（機械器具）]])),\"D\",\"-\"))","v":"-"},{"$f":"IF(NOT(ISBLANK(テーブル63[[#This Row],[電気通信]])),VLOOKUP(テーブル63[[#This Row],[電気通信]],電気[],2,TRUE), IF(NOT(ISBLANK(テーブル63[[#This Row],[許可区分(電気)]])),\"D\",\"-\"))","v":"-"},{"$f":"IF(NOT(ISBLANK(テーブル63[[#This Row],[水道施設]])),VLOOKUP(テーブル63[[#This Row],[水道施設]],水道[],2,TRUE), IF(NOT(ISBLANK(テーブル63[[#This Row],[許可区分（水道施設）]])),\"D\",\"-\"))","v":"C"}]
[85,"県内","三建設備工業株式会社　東関東支店","千葉市中央区一丁目1番3号","小島　直樹","043-227-3501","043-222-9713",null,null,null,null,null,null,"特定",1691,null,null,null,null,null,null,null,null,null,null,null,null,{"$f":"IF(NOT(ISBLANK(テーブル63[[#This Row],[土木一式]])),VLOOKUP(テーブル63[[#This Row],[土木一式]],土木[],2,TRUE), IF(NOT(ISBLANK(テーブル63[[#This Row],[許可区分(土木)]])),\"D\",\"-\"))","v":"-"},{"$f":"IF(NOT(ISBLANK(テーブル63[[#This Row],[建築一式]])),VLOOKUP(テーブル63[[#This Row],[建築一式]],建築[],2,TRUE), IF(NOT(ISBLANK(テーブル63[[#This Row],[許可区分（建築）]])),\"D\",\"-\"))","v":"-"},{"$f":"IF(NOT(ISBLANK(テーブル63[[#This Row],[電気]])),VLOOKUP(テーブル63[[#This Row],[電気]],電気[],2,TRUE), IF(NOT(ISBLANK(テーブル63[[#This Row],[許可区分（電気）]])),\"D\",\"-\"))","v":"-"},{"$f":"IF(NOT(ISBLANK(テーブル63[[#This Row],[管]])),VLOOKUP(テーブル63[[#This Row],[管]],管[],2,TRUE), IF(NOT(ISBLANK(テーブル63[[#This Row],[許可区分（管）]])),\"D\",\"-\"))","v":"A"},{"$f":"IF(NOT(ISBLANK(テーブル63[[#This Row],[ほ装]])),VLOOKUP(テーブル63[[#This Row],[ほ装]],ほ装[],2,TRUE), IF(NOT(ISBLANK(テーブル63[[#This Row],[許可区分(ほ装)]])),\"D\",\"-\"))","v":"-"},{"$f":"IF(NOT(ISBLANK(テーブル63[[#This Row],[塗装]])),VLOOKUP(テーブル63[[#This Row],[塗装]],塗装[],2,TRUE), IF(NOT(ISBLANK(テーブル63[[#This Row],[許可区分（塗装）]])),\"D\",\"-\"))","v":"-"},{"$f":"IF(NOT(ISBLANK(テーブル63[[#This Row],[防水]])),VLOOKUP(テーブル63[[#This Row],[防水]],塗装[],2,TRUE), IF(NOT(ISBLANK(テーブル63[[#This Row],[許可区分（防水）]])),\"D\",\"-\"))","v":"-"},{"$f":"IF(NOT(ISBLANK(テーブル63[[#This Row],[機械器具設置]])),VLOOKUP(テーブル63[[#This Row],[機械器具設置]],塗装[],2,TRUE), IF(NOT(ISBLANK(テーブル63[[#This Row],[許可区分（機械器具）]])),\"D\",\"-\"))","v":"-"},{"$f":"IF(NOT(ISBLANK(テーブル63[[#This Row],[電気通信]])),VLOOKUP(テーブル63[[#This Row],[電気通信]],電気[],2,TRUE), IF(NOT(ISBLANK(テーブル63[[#This Row],[許可区分(電気)]])),\"D\",\"-\"))","v":"-"},{"$f":"IF(NOT(ISBLANK(テーブル63[[#This Row],[水道施設]])),VLOOKUP(テーブル63[[#This Row],[水道施設]],水道[],2,TRUE), IF(NOT(ISBLANK(テーブル63[[#This Row],[許可区分（水道施設）]])),\"D\",\"-\"))","v":"-"}]
[86,"県内","株式会社日立製作所　千葉支店","千葉市中央区新千葉一丁目4番3号","和田　典幸","043-247-8201","043-247-1426",null,null,null,null,"特定",1850,null,null,null,null,null,null,null,null,"特定",1474,"特定",1580,null,null,{"$f":"IF(NOT(ISBLANK(テーブル63[[#This Row],[土木一式]])),VLOOKUP(テーブル63[[#This Row],[土木一式]],土木[],2,TRUE), IF(NOT(ISBLANK(テーブル63[[#This Row],[許可区分(土木)]])),\"D\",\"-\"))","v":"-"},{"$f":"IF(NOT(ISBLANK(テーブル63[[#This Row],[建築一式]])),VLOOKUP(テーブル63[[#This Row],[建築一式]],建築[],2,TRUE), IF(NOT(ISBLANK(テーブル63[[#This Row],[許可区分（建築）]])),\"D\",\"-\"))","v":"-"},{"$f":"IF(NOT(ISBLANK(テーブル63[[#This Row],[電気]])),VLOOKUP(テーブル63[[#This Row],[電気]],電気[],2,TRUE), IF(NOT(ISBLANK(テーブル63[[#This Row],[許可区分（電気）]])),\"D\",\"-\"))","v":"A"},{"$f":"IF(NOT(ISBLANK(テーブル63[[#This Row],[管]])),VLOOKUP(テーブル63[[#This Row],[管]],管[],2,TRUE), IF(NOT(ISBLANK(テーブル63[[#This Row],[許可区分（管）]])),\"D\",\"-\"))","v":"-"},{"$f":"IF(NOT(ISBLANK(テーブル63[[#This Row],[ほ装]])),VLOOKUP(テーブル63[[#This Row],[ほ装]],ほ装[],2,TRUE), IF(NOT(ISBLANK(テーブル63[[#This Row],[許可区分(ほ装)]])),\"D\",\"-\"))","v":"-"},{"$f":"IF(NOT(ISBLANK(テーブル63[[#This Row],[塗装]])),VLOOKUP(テーブル63[[#This Row],[塗装]],塗装[],2,TRUE), IF(NOT(ISBLANK(テーブル63[[#This Row],[許可区分（塗装）]])),\"D\",\"-\"))","v":"-"},{"$f":"IF(NOT(ISBLANK(テーブル63[[#This Row],[防水]])),VLOOKUP(テーブル63[[#This Row],[防水]],塗装[],2,TRUE), IF(NOT(ISBLANK(テーブル63[[#This Row],[許可区分（防水）]])),\"D\",\"-\"))","v":"-"},{"$f":"IF(NOT(ISBLANK(テーブル63[[#This Row],[機械器具設置]])),VLOOKUP(テーブル63[[#This Row],[機械器具設置]],塗装[],2,TRUE), IF(NOT(ISBLANK(テーブル63[[#This Row],[許可区分（機械器具）]])),\"D\",\"-\"))","v":"A"},{"$f":"IF(NOT(ISBLANK(テーブル63[[#This Row],[電気通信]])),VLOOKUP(テーブル63[[#This Row],[電気通信]],電気[],2,TRUE), IF(NOT(ISBLANK(テーブル63[[#This Row],[許可区分(電気)]])),\"D\",\"-\"))","v":"A"},{"$f":"IF(NOT(ISBLANK(テーブル63[[#This Row],[水道施設]])),VLOOKUP(テーブル63[[#This Row],[水道施設]],水道[],2,TRUE), IF(NOT(ISBLANK(テーブル63[[#This Row],[許可区分（水道施設）]])),\"D\",\"-\"))","v":"-"}]
[87,"県内","平山建設株式会社","成田市花崎町943番地1","平山　秀樹","0476-23-1111","0476-23-1118","一般",730,"特定",1030,null,null,null,null,null,null,null,null,null,null,null,null,null,null,null,null,{"$f":"IF(NOT(ISBLANK(テーブル63[[#This Row],[土木一式]])),VLOOKUP(テーブル63[[#This Row],[土木一式]],土木[],2,TRUE), IF(NOT(ISBLANK(テーブル63[[#This Row],[許可区分(土木)]])),\"D\",\"-\"))","v":"B"},{"$f":"IF(NOT(ISBLANK(テーブル63[[#This Row],[建築一式]])),VLOOKUP(テーブル63[[#This Row],[建築一式]],建築[],2,TRUE), IF(NOT(ISBLANK(テーブル63[[#This Row],[許可区分（建築）]])),\"D\",\"-\"))","v":"A"},{"$f":"IF(NOT(ISBLANK(テーブル63[[#This Row],[電気]])),VLOOKUP(テーブル63[[#This Row],[電気]],電気[],2,TRUE), IF(NOT(ISBLANK(テーブル63[[#This Row],[許可区分（電気）]])),\"D\",\"-\"))","v":"-"},{"$f":"IF(NOT(ISBLANK(テーブル63[[#This Row],[管]])),VLOOKUP(テーブル63[[#This Row],[管]],管[],2,TRUE), IF(NOT(ISBLANK(テーブル63[[#This Row],[許可区分（管）]])),\"D\",\"-\"))","v":"-"},{"$f":"IF(NOT(ISBLANK(テーブル63[[#This Row],[ほ装]])),VLOOKUP(テーブル63[[#This Row],[ほ装]],ほ装[],2,TRUE), IF(NOT(ISBLANK(テーブル63[[#This Row],[許可区分(ほ装)]])),\"D\",\"-\"))","v":"-"},{"$f":"IF(NOT(ISBLANK(テーブル63[[#This Row],[塗装]])),VLOOKUP(テーブル63[[#This Row],[塗装]],塗装[],2,TRUE), IF(NOT(ISBLANK(テーブル63[[#This Row],[許可区分（塗装）]])),\"D\",\"-\"))","v":"-"},{"$f":"IF(NOT(ISBLANK(テーブル63[[#This Row],[防水]])),VLOOKUP(テーブル63[[#This Row],[防水]],塗装[],2,TRUE), IF(NOT(ISBLANK(テーブル63[[#This Row],[許可区分（防水）]])),\"D\",\"-\"))","v":"-"},{"$f":"IF(NOT(ISBLANK(テーブル63[[#This Row],[機械器具設置]])),VLOOKUP(テーブル63[[#This Row],[機械器具設置]],塗装[],2,TRUE), IF(NOT(ISBLANK(テーブル63[[#This Row],[許可区分（機械器具）]])),\"D\",\"-\"))","v":"-"},{"$f":"IF(NOT(ISBLANK(テーブル63[[#This Row],[電気通信]])),VLOOKUP(テーブル63[[#This Row],[電気通信]],電気[],2,TRUE), IF(NOT(ISBLANK(テーブル63[[#This Row],[許可区分(電気)]])),\"D\",\"-\"))","v":"-"},{"$f":"IF(NOT(ISBLANK(テーブル63[[#This Row],[水道施設]])),VLOOKUP(テーブル63[[#This Row],[水道施設]],水道[],2,TRUE), IF(NOT(ISBLANK(テーブル63[[#This Row],[許可区分（水道施設）]])),\"D\",\"-\"))","v":"-"}]

{"sheet":"公表名簿（県外建設)","index":1,"n_rows":30,"n_cols":37,"rows_kept":30,"cut":false,"hidden":false,"merged":[[0,6,0,11]]}
["八匝水道企業団建設工事等入札参加業者資格者名簿（県外建設）　",null,null,null,null,null,{"$f":"'公表名簿（県内建設)'!G1","v":"2025-10-21"}]
["番号","区域","商号又は名称","所在地","代表者氏名","電話番号","ＦＡＸ","許可区分(土木)","土木一式","許可区分（建築）","建築一式","許可区分（電気）","電気","許可区分（管）","管","許可区分(ほ装)","ほ装","許可区分（塗装）","塗装","許可区分（防水）","防水","許可区分（機械器具）","機械器具設置","許可区分(電気)","電気通信","許可区分（水道施設）","水道施設","土木一式(等級)","建築一式(等級)","電気(等級)","管(等級)","ほ装(等級)","塗装(等級)","防水(等級)","機械器具設置(等級)","電気通信(等級)","水道施設(等級)"]
[1,"県外","株式会社森田鉄工所　東京営業支店","東京都千代田区岩本町1丁目8番15号","髙品　祥一","03-5820-3090","03-5820-3081",null,null,null,null,null,null,null,null,null,null,null,null,null,null,"特定",937,null,null,"特定",946,{"$f":"IF(NOT(ISBLANK(テーブル635[[#This Row],[土木一式]])),VLOOKUP(テーブル635[[#This Row],[土木一式]],土木[],2,TRUE), IF(NOT(ISBLANK(テーブル635[[#This Row],[許可区分(土木)]])),\"D\",\"-\"))","v":"-"},{"$f":"IF(NOT(ISBLANK(テーブル635[[#This Row],[建築一式]])),VLOOKUP(テーブル635[[#This Row],[建築一式]],建築[],2,TRUE), IF(NOT(ISBLANK(テーブル635[[#This Row],[許可区分（建築）]])),\"D\",\"-\"))","v":"-"},{"$f":"IF(NOT(ISBLANK(テーブル635[[#This Row],[電気]])),VLOOKUP(テーブル635[[#This Row],[電気]],電気[],2,TRUE), IF(NOT(ISBLANK(テーブル635[[#This Row],[許可区分（電気）]])),\"D\",\"-\"))","v":"-"},{"$f":"IF(NOT(ISBLANK(テーブル635[[#This Row],[管]])),VLOOKUP(テーブル635[[#This Row],[管]],管[],2,TRUE), IF(NOT(ISBLANK(テーブル635[[#This Row],[許可区分（管）]])),\"D\",\"-\"))","v":"-"},{"$f":"IF(NOT(ISBLANK(テーブル635[[#This Row],[ほ装]])),VLOOKUP(テーブル635[[#This Row],[ほ装]],ほ装[],2,TRUE), IF(NOT(ISBLANK(テーブル635[[#This Row],[許可区分(ほ装)]])),\"D\",\"-\"))","v":"-"},{"$f":"IF(NOT(ISBLANK(テーブル635[[#This Row],[塗装]])),VLOOKUP(テーブル635[[#This Row],[塗装]],塗装[],2,TRUE), IF(NOT(ISBLANK(テーブル635[[#This Row],[許可区分（塗装）]])),\"D\",\"-\"))","v":"-"},{"$f":"IF(NOT(ISBLANK(テーブル635[[#This Row],[防水]])),VLOOKUP(テーブル635[[#This Row],[防水]],塗装[],2,TRUE), IF(NOT(ISBLANK(テーブル635[[#This Row],[許可区分（防水）]])),\"D\",\"-\"))","v":"-"},{"$f":"IF(NOT(ISBLANK(テーブル635[[#This Row],[機械器具設置]])),VLOOKUP(テーブル635[[#This Row],[機械器具設置]],塗装[],2,TRUE), IF(NOT(ISBLANK(テーブル635[[#This Row],[許可区分（機械器具）]])),\"D\",\"-\"))","v":"A"},{"$f":"IF(NOT(ISBLANK(テーブル635[[#This Row],[電気通信]])),VLOOKUP(テーブル635[[#This Row],[電気通信]],電気[],2,TRUE), IF(NOT(ISBLANK(テーブル635[[#This Row],[許可区分(電気)]])),\"D\",\"-\"))","v":"-"},{"$f":"IF(NOT(ISBLANK(テーブル635[[#This Row],[水道施設]])),VLOOKUP(テーブル635[[#This Row],[水道施設]],水道[],2,TRUE), IF(NOT(ISBLANK(テーブル635[[#This Row],[許可区分（水道施設）]])),\"D\",\"-\"))","v":"A"}]
[2,"県外","水ingエンジニアリング株式会社　首都圏支店","東京都港区東新橋一丁目9番2号","金森　武司","03-4346-0627","03-3572-1209","特定",956,null,null,"特定",1068,"特定",1096,null,null,"特定",943,null,null,"特定",1340,null,null,"特定",1341,{"$f":"IF(NOT(ISBLANK(テーブル635[[#This Row],[土木一式]])),VLOOKUP(テーブル635[[#This Row],[土木一式]],土木[],2,TRUE), IF(NOT(ISBLANK(テーブル635[[#This Row],[許可区分(土木)]])),\"D\",\"-\"))","v":"A"},{"$f":"IF(NOT(ISBLANK(テーブル635[[#This Row],[建築一式]])),VLOOKUP(テーブル635[[#This Row],[建築一式]],建築[],2,TRUE), IF(NOT(ISBLANK(テーブル635[[#This Row],[許可区分（建築）]])),\"D\",\"-\"))","v":"-"},{"$f":"IF(NOT(ISBLANK(テーブル635[[#This Row],[電気]])),VLOOKUP(テーブル635[[#This Row],[電気]],電気[],2,TRUE), IF(NOT(ISBLANK(テーブル635[[#This Row],[許可区分（電気）]])),\"D\",\"-\"))","v":"A"},{"$f":"IF(NOT(ISBLANK(テーブル635[[#This Row],[管]])),VLOOKUP(テーブル635[[#This Row],[管]],管[],2,TRUE), IF(NOT(ISBLANK(テーブル635[[#This Row],[許可区分（管）]])),\"D\",\"-\"))","v":"A"},{"$f":"IF(NOT(ISBLANK(テーブル635[[#This Row],[ほ装]])),VLOOKUP(テーブル635[[#This Row],[ほ装]],ほ装[],2,TRUE), IF(NOT(ISBLANK(テーブル635[[#This Row],[許可区分(ほ装)]])),\"D\",\"-\"))","v":"-"},{"$f":"IF(NOT(ISBLANK(テーブル635[[#This Row],[塗装]])),VLOOKUP(テーブル635[[#This Row],[塗装]],塗装[],2,TRUE), IF(NOT(ISBLANK(テーブル635[[#This Row],[許可区分（塗装）]])),\"D\",\"-\"))","v":"A"},{"$f":"IF(NOT(ISBLANK(テーブル635[[#This Row],[防水]])),VLOOKUP(テーブル635[[#This Row],[防水]],塗装[],2,TRUE), IF(NOT(ISBLANK(テーブル635[[#This Row],[許可区分（防水）]])),\"D\",\"-\"))","v":"-"},{"$f":"IF(NOT(ISBLANK(テーブル635[[#This Row],[機械器具設置]])),VLOOKUP(テーブル635[[#This Row],[機械器具設置]],塗装[],2,TRUE), IF(NOT(ISBLANK(テーブル635[[#This Row],[許可区分（機械器具）]])),\"D\",\"-\"))","v":"A"},{"$f":"IF(NOT(ISBLANK(テーブル635[[#This Row],[電気通信]])),VLOOKUP(テーブル635[[#This Row],[電気通信]],電気[],2,TRUE), IF(NOT(ISBLANK(テーブル635[[#This Row],[許可区分(電気)]])),\"D\",\"-\"))","v":"-"},{"$f":"IF(NOT(ISBLANK(テーブル635[[#This Row],[水道施設]])),VLOOKUP(テーブル635[[#This Row],[水道施設]],水道[],2,TRUE), IF(NOT(ISBLANK(テーブル635[[#This Row],[許可区分（水道施設）]])),\"D\",\"-\"))","v":"A"}]
[3,"県外","理水化学株式会社　東京支店","東京都中央区新川1-22-4","福森　道明","03-5540-5731","03-5540-5739",null,null,null,null,null,null,null,null,null,null,null,null,null,null,"特定",1146,null,null,"特定",1250,{"$f":"IF(NOT(ISBLANK(テーブル635[[#This Row],[土木一式]])),VLOOKUP(テーブル635[[#This Row],[土木一式]],土木[],2,TRUE), IF(NOT(ISBLANK(テーブル635[[#This Row],[許可区分(土木)]])),\"D\",\"-\"))","v":"-"},{"$f":"IF(NOT(ISBLANK(テーブル635[[#This Row],[建築一式]])),VLOOKUP(テーブル635[[#This Row],[建築一式]],建築[],2,TRUE), IF(NOT(ISBLANK(テーブル635[[#This Row],[許可区分（建築）]])),\"D\",\"-\"))","v":"-"},{"$f":"IF(NOT(ISBLANK(テーブル635[[#This Row],[電気]])),VLOOKUP(テーブル635[[#This Row],[電気]],電気[],2,TRUE), IF(NOT(ISBLANK(テーブル635[[#This Row],[許可区分（電気）]])),\"D\",\"-\"))","v":"-"},{"$f":"IF(NOT(ISBLANK(テーブル635[[#This Row],[管]])),VLOOKUP(テーブル635[[#This Row],[管]],管[],2,TRUE), IF(NOT(ISBLANK(テーブル635[[#This Row],[許可区分（管）]])),\"D\",\"-\"))","v":"-"},{"$f":"IF(NOT(ISBLANK(テーブル635[[#This Row],[ほ装]])),VLOOKUP(テーブル635[[#This Row],[ほ装]],ほ装[],2,TRUE), IF(NOT(ISBLANK(テーブル635[[#This Row],[許可区分(ほ装)]])),\"D\",\"-\"))","v":"-"},{"$f":"IF(NOT(ISBLANK(テーブル635[[#This Row],[塗装]])),VLOOKUP(テーブル635[[#This Row],[塗装]],塗装[],2,TRUE), IF(NOT(ISBLANK(テーブル635[[#This Row],[許可区分（塗装）]])),\"D\",\"-\"))","v":"-"},{"$f":"IF(NOT(ISBLANK(テーブル635[[#This Row],[防水]])),VLOOKUP(テーブル635[[#This Row],[防水]],塗装[],2,TRUE), IF(NOT(ISBLANK(テーブル635[[#This Row],[許可区分（防水）]])),\"D\",\"-\"))","v":"-"},{"$f":"IF(NOT(ISBLANK(テーブル635[[#This Row],[機械器具設置]])),VLOOKUP(テーブル635[[#This Row],[機械器具設置]],塗装[],2,TRUE), IF(NOT(ISBLANK(テーブル635[[#This Row],[許可区分（機械器具）]])),\"D\",\"-\"))","v":"A"},{"$f":"IF(NOT(ISBLANK(テーブル635[[#This Row],[電気通信]])),VLOOKUP(テーブル635[[#This Row],[電気通信]],電気[],2,TRUE), IF(NOT(ISBLANK(テーブル635[[#This Row],[許可区分(電気)]])),\"D\",\"-\"))","v":"-"},{"$f":"IF(NOT(ISBLANK(テーブル635[[#This Row],[水道施設]])),VLOOKUP(テーブル635[[#This Row],[水道施設]],水道[],2,TRUE), IF(NOT(ISBLANK(テーブル635[[#This Row],[許可区分（水道施設）]])),\"D\",\"-\"))","v":"A"}]
[4,"県外","株式会社正興電機製作所　東京営業所","東京都千代田区東神田1-7-8","青木　正尚","03-5835-1015","03-5835-1016",null,null,null,null,"特定",1388,null,null,null,null,null,null,null,null,null,null,"特定",1176,null,null,{"$f":"IF(NOT(ISBLANK(テーブル635[[#This Row],[土木一式]])),VLOOKUP(テーブル635[[#This Row],[土木一式]],土木[],2,TRUE), IF(NOT(ISBLANK(テーブル635[[#This Row],[許可区分(土木)]])),\"D\",\"-\"))","v":"-"},{"$f":"IF(NOT(ISBLANK(テーブル635[[#This Row],[建築一式]])),VLOOKUP(テーブル635[[#This Row],[建築一式]],建築[],2,TRUE), IF(NOT(ISBLANK(テーブル635[[#This Row],[許可区分（建築）]])),\"D\",\"-\"))","v":"-"},{"$f":"IF(NOT(ISBLANK(テーブル635[[#This Row],[電気]])),VLOOKUP(テーブル635[[#This Row],[電気]],電気[],2,TRUE), IF(NOT(ISBLANK(テーブル635[[#This Row],[許可区分（電気）]])),\"D\",\"-\"))","v":"A"},{"$f":"IF(NOT(ISBLANK(テーブル635[[#This Row],[管]])),VLOOKUP(テーブル635[[#This Row],[管]],管[],2,TRUE), IF(NOT(ISBLANK(テーブル635[[#This Row],[許可区分（管）]])),\"D\",\"-\"))","v":"-"},{"$f":"IF(NOT(ISBLANK(テーブル635[[#This Row],[ほ装]])),VLOOKUP(テーブル635[[#This Row],[ほ装]],ほ装[],2,TRUE), IF(NOT(ISBLANK(テーブル635[[#This Row],[許可区分(ほ装)]])),\"D\",\"-\"))","v":"-"},{"$f":"IF(NOT(ISBLANK(テーブル635[[#This Row],[塗装]])),VLOOKUP(テーブル635[[#This Row],[塗装]],塗装[],2,TRUE), IF(NOT(ISBLANK(テーブル635[[#This Row],[許可区分（塗装）]])),\"D\",\"-\"))","v":"-"},{"$f":"IF(NOT(ISBLANK(テーブル635[[#This Row],[防水]])),VLOOKUP(テーブル635[[#This Row],[防水]],塗装[],2,TRUE), IF(NOT(ISBLANK(テーブル635[[#This Row],[許可区分（防水）]])),\"D\",\"-\"))","v":"-"},{"$f":"IF(NOT(ISBLANK(テーブル635[[#This Row],[機械器具設置]])),VLOOKUP(テーブル635[[#This Row],[機械器具設置]],塗装[],2,TRUE), IF(NOT(ISBLANK(テーブル635[[#This Row],[許可区分（機械器具）]])),\"D\",\"-\"))","v":"-"},{"$f":"IF(NOT(ISBLANK(テーブル635[[#This Row],[電気通信]])),VLOOKUP(テーブル635[[#This Row],[電気通信]],電気[],2,TRUE), IF(NOT(ISBLANK(テーブル635[[#This Row],[許可区分(電気)]])),\"D\",\"-\"))","v":"A"},{"$f":"IF(NOT(ISBLANK(テーブル635[[#This Row],[水道施設]])),VLOOKUP(テーブル635[[#This Row],[水道施設]],水道[],2,TRUE), IF(NOT(ISBLANK(テーブル635[[#This Row],[許可区分（水道施設）]])),\"D\",\"-\"))","v":"-"}]
[5,"県外","株式会社岩城　東京営業所","東京都大田区北嶺町14-9　フォレスト北峰101号室","亀岡　正典","03-6809-5991","03-6809-5992","特定",675,null,null,null,null,null,null,null,null,"特定",703,null,null,null,null,null,null,"特定",963,{"$f":"IF(NOT(ISBLANK(テーブル635[[#This Row],[土木一式]])),VLOOKUP(テーブル635[[#This Row],[土木一式]],土木[],2,TRUE), IF(NOT(ISBLANK(テーブル635[[#This Row],[許可区分(土木)]])),\"D\",\"-\"))","v":"B"},{"$f":"IF(NOT(ISBLANK(テーブル635[[#This Row],[建築一式]])),VLOOKUP(テーブル635[[#This Row],[建築一式]],建築[],2,TRUE), IF(NOT(ISBLANK(テーブル635[[#This Row],[許可区分（建築）]])),\"D\",\"-\"))","v":"-"},{"$f":"IF(NOT(ISBLANK(テーブル635[[#This Row],[電気]])),VLOOKUP(テーブル635[[#This Row],[電気]],電気[],2,TRUE), IF(NOT(ISBLANK(テーブル635[[#This Row],[許可区分（電気）]])),\"D\",\"-\"))","v":"-"},{"$f":"IF(NOT(ISBLANK(テーブル635[[#This Row],[管]])),VLOOKUP(テーブル635[[#This Row],[管]],管[],2,TRUE), IF(NOT(ISBLANK(テーブル635[[#This Row],[許可区分（管）]])),\"D\",\"-\"))","v":"-"},{"$f":"IF(NOT(ISBLANK(テーブル635[[#This Row],[ほ装]])),VLOOKUP(テーブル635[[#This Row],[ほ装]],ほ装[],2,TRUE), IF(NOT(ISBLANK(テーブル635[[#This Row],[許可区分(ほ装)]])),\"D\",\"-\"))","v":"-"},{"$f":"IF(NOT(ISBLANK(テーブル635[[#This Row],[塗装]])),VLOOKUP(テーブル635[[#This Row],[塗装]],塗装[],2,TRUE), IF(NOT(ISBLANK(テーブル635[[#This Row],[許可区分（塗装）]])),\"D\",\"-\"))","v":"B"},{"$f":"IF(NOT(ISBLANK(テーブル635[[#This Row],[防水]])),VLOOKUP(テーブル635[[#This Row],[防水]],塗装[],2,TRUE), IF(NOT(ISBLANK(テーブル635[[#This Row],[許可区分（防水）]])),\"D\",\"-\"))","v":"-"},{"$f":"IF(NOT(ISBLANK(テーブル635[[#This Row],[機械器具設置]])),VLOOKUP(テーブル635[[#This Row],[機械器具設置]],塗装[],2,TRUE), IF(NOT(ISBLANK(テーブル635[[#This Row],[許可区分（機械器具）]])),\"D\",\"-\"))","v":"-"},{"$f":"IF(NOT(ISBLANK(テーブル635[[#This Row],[電気通信]])),VLOOKUP(テーブル635[[#This Row],[電気通信]],電気[],2,TRUE), IF(NOT(ISBLANK(テーブル635[[#This Row],[許可区分(電気)]])),\"D\",\"-\"))","v":"-"},{"$f":"IF(NOT(ISBLANK(テーブル635[[#This Row],[水道施設]])),VLOOKUP(テーブル635[[#This Row],[水道施設]],水道[],2,TRUE), IF(NOT(ISBLANK(テーブル635[[#This Row],[許可区分（水道施設）]])),\"D\",\"-\"))","v":"A"}]
[6,"県外","愛知時計電機株式会社　東京支店","東京都新宿区西新宿6丁目8番1号　新宿オークタワー18階","河上　智洋","03-5323-5350","03-5323-0271",null,null,null,null,"特定",1347,"一般",1244,null,null,null,null,null,null,"一般",1075,"一般",1322,null,null,{"$f":"IF(NOT(ISBLANK(テーブル635[[#This Row],[土木一式]])),VLOOKUP(テーブル635[[#This Row],[土木一式]],土木[],2,TRUE), IF(NOT(ISBLANK(テーブル635[[#This Row],[許可区分(土木)]])),\"D\",\"-\"))","v":"-"},{"$f":"IF(NOT(ISBLANK(テーブル635[[#This Row],[建築一式]])),VLOOKUP(テーブル635[[#This Row],[建築一式]],建築[],2,TRUE), IF(NOT(ISBLANK(テーブル635[[#This Row],[許可区分（建築）]])),\"D\",\"-\"))","v":"-"},{"$f":"IF(NOT(ISBLANK(テーブル635[[#This Row],[電気]])),VLOOKUP(テーブル635[[#This Row],[電気]],電気[],2,TRUE), IF(NOT(ISBLANK(テーブル635[[#This Row],[許可区分（電気）]])),\"D\",\"-\"))","v":"A"},{"$f":"IF(NOT(ISBLANK(テーブル635[[#This Row],[管]])),VLOOKUP(テーブル635[[#This Row],[管]],管[],2,TRUE), IF(NOT(ISBLANK(テーブル635[[#This Row],[許可区分（管）]])),\"D\",\"-\"))","v":"A"},{"$f":"IF(NOT(ISBLANK(テーブル635[[#This Row],[ほ装]])),VLOOKUP(テーブル635[[#This Row],[ほ装]],ほ装[],2,TRUE), IF(NOT(ISBLANK(テーブル635[[#This Row],[許可区分(ほ装)]])),\"D\",\"-\"))","v":"-"},{"$f":"IF(NOT(ISBLANK(テーブル635[[#This Row],[塗装]])),VLOOKUP(テーブル635[[#This Row],[塗装]],塗装[],2,TRUE), IF(NOT(ISBLANK(テーブル635[[#This Row],[許可区分（塗装）]])),\"D\",\"-\"))","v":"-"},{"$f":"IF(NOT(ISBLANK(テーブル635[[#This Row],[防水]])),VLOOKUP(テーブル635[[#This Row],[防水]],塗装[],2,TRUE), IF(NOT(ISBLANK(テーブル635[[#This Row],[許可区分（防水）]])),\"D\",\"-\"))","v":"-"},{"$f":"IF(NOT(ISBLANK(テーブル635[[#This Row],[機械器具設置]])),VLOOKUP(テーブル635[[#This Row],[機械器具設置]],塗装[],2,TRUE), IF(NOT(ISBLANK(テーブル635[[#This Row],[許可区分（機械器具）]])),\"D\",\"-\"))","v":"A"},{"$f":"IF(NOT(ISBLANK(テーブル635[[#This Row],[電気通信]])),VLOOKUP(テーブル635[[#This Row],[電気通信]],電気[],2,TRUE), IF(NOT(ISBLANK(テーブル635[[#This Row],[許可区分(電気)]])),\"D\",\"-\"))","v":"A"},{"$f":"IF(NOT(ISBLANK(テーブル635[[#This Row],[水道施設]])),VLOOKUP(テーブル635[[#This Row],[水道施設]],水道[],2,TRUE), IF(NOT(ISBLANK(テーブル635[[#This Row],[許可区分（水道施設）]])),\"D\",\"-\"))","v":"-"}]
[7,"県外","清水建設株式会社　土木東京支店","東京都中央区京橋2丁目16番1ー10号","齊藤　武文","03-3561-3800","03-3561-8621","特定",1968,"特定",2002,null,null,null,null,"特定",1353,null,null,null,null,null,null,null,null,"特定",1577,{"$f":"IF(NOT(ISBLANK(テーブル635[[#This Row],[土木一式]])),VLOOKUP(テーブル635[[#This Row],[土木一式]],土木[],2,TRUE), IF(NOT(ISBLANK(テーブル635[[#This Row],[許可区分(土木)]])),\"D\",\"-\"))","v":"A"},{"$f":"IF(NOT(ISBLANK(テーブル635[[#This Row],[建築一式]])),VLOOKUP(テーブル635[[#This Row],[建築一式]],建築[],2,TRUE), IF(NOT(ISBLANK(テーブル635[[#This Row],[許可区分（建築）]])),\"D\",\"-\"))","v":"A"},{"$f":"IF(NOT(ISBLANK(テーブル635[[#This Row],[電気]])),VLOOKUP(テーブル635[[#This Row],[電気]],電気[],2,TRUE), IF(NOT(ISBLANK(テーブル635[[#This Row],[許可区分（電気）]])),\"D\",\"-\"))","v":"-"},{"$f":"IF(NOT(ISBLANK(テーブル635[[#This Row],[管]])),VLOOKUP(テーブル635[[#This Row],[管]],管[],2,TRUE), IF(NOT(ISBLANK(テーブル635[[#This Row],[許可区分（管）]])),\"D\",\"-\"))","v":"-"},{"$f":"IF(NOT(ISBLANK(テーブル635[[#This Row],[ほ装]])),VLOOKUP(テーブル635[[#This Row],[ほ装]],ほ装[],2,TRUE), IF(NOT(ISBLANK(テーブル635[[#This Row],[許可区分(ほ装)]])),\"D\",\"-\"))","v":"A"},{"$f":"IF(NOT(ISBLANK(テーブル635[[#This Row],[塗装]])),VLOOKUP(テーブル635[[#This Row],[塗装]],塗装[],2,TRUE), IF(NOT(ISBLANK(テーブル635[[#This Row],[許可区分（塗装）]])),\"D\",\"-\"))","v":"-"},{"$f":"IF(NOT(ISBLANK(テーブル635[[#This Row],[防水]])),VLOOKUP(テーブル635[[#This Row],[防水]],塗装[],2,TRUE), IF(NOT(ISBLANK(テーブル635[[#This Row],[許可区分（防水）]])),\"D\",\"-\"))","v":"-"},{"$f":"IF(NOT(ISBLANK(テーブル635[[#This Row],[機械器具設置]])),VLOOKUP(テーブル635[[#This Row],[機械器具設置]],塗装[],2,TRUE), IF(NOT(ISBLANK(テーブル635[[#This Row],[許可区分（機械器具）]])),\"D\",\"-\"))","v":"-"},{"$f":"IF(NOT(ISBLANK(テーブル635[[#This Row],[電気通信]])),VLOOKUP(テーブル635[[#This Row],[電気通信]],電気[],2,TRUE), IF(NOT(ISBLANK(テーブル635[[#This Row],[許可区分(電気)]])),\"D\",\"-\"))","v":"-"},{"$f":"IF(NOT(ISBLANK(テーブル635[[#This Row],[水道施設]])),VLOOKUP(テーブル635[[#This Row],[水道施設]],水道[],2,TRUE), IF(NOT(ISBLANK(テーブル635[[#This Row],[許可区分（水道施設）]])),\"D\",\"-\"))","v":"A"}]
[8,"県外","株式会社ウォーターテック　東日本支店","東京都港区芝浦3丁目16番1号","岳藤　圭生","03-3456-0795","03-3456-0646","特定",708,null,null,null,null,null,null,null,null,null,null,null,null,"特定",1043,null,null,"特定",1106,{"$f":"IF(NOT(ISBLANK(テーブル635[[#This Row],[土木一式]])),VLOOKUP(テーブル635[[#This Row],[土木一式]],土木[],2,TRUE), IF(NOT(ISBLANK(テーブル635[[#This Row],[許可区分(土木)]])),\"D\",\"-\"))","v":"B"},{"$f":"IF(NOT(ISBLANK(テーブル635[[#This Row],[建築一式]])),VLOOKUP(テーブル635[[#This Row],[建築一式]],建築[],2,TRUE), IF(NOT(ISBLANK(テーブル635[[#This Row],[許可区分（建築）]])),\"D\",\"-\"))","v":"-"},{"$f":"IF(NOT(ISBLANK(テーブル635[[#This Row],[電気]])),VLOOKUP(テーブル635[[#This Row],[電気]],電気[],2,TRUE), IF(NOT(ISBLANK(テーブル635[[#This Row],[許可区分（電気）]])),\"D\",\"-\"))","v":"-"},{"$f":"IF(NOT(ISBLANK(テーブル635[[#This Row],[管]])),VLOOKUP(テーブル635[[#This Row],[管]],管[],2,TRUE), IF(NOT(ISBLANK(テーブル635[[#This Row],[許可区分（管）]])),\"D\",\"-\"))","v":"-"},{"$f":"IF(NOT(ISBLANK(テーブル635[[#This Row],[ほ装]])),VLOOKUP(テーブル635[[#This Row],[ほ装]],ほ装[],2,TRUE), IF(NOT(ISBLANK(テーブル635[[#This Row],[許可区分(ほ装)]])),\"D\",\"-\"))","v":"-"},{"$f":"IF(NOT(ISBLANK(テーブル635[[#This Row],[塗装]])),VLOOKUP(テーブル635[[#This Row],[塗装]],塗装[],2,TRUE), IF(NOT(ISBLANK(テーブル635[[#This Row],[許可区分（塗装）]])),\"D\",\"-\"))","v":"-"},{"$f":"IF(NOT(ISBLANK(テーブル635[[#This Row],[防水]])),VLOOKUP(テーブル635[[#This Row],[防水]],塗装[],2,TRUE), IF(NOT(ISBLANK(テーブル635[[#This Row],[許可区分（防水）]])),\"D\",\"-\"))","v":"-"},{"$f":"IF(NOT(ISBLANK(テーブル635[[#This Row],[機械器具設置]])),VLOOKUP(テーブル635[[#This Row],[機械器具設置]],塗装[],2,TRUE), IF(NOT(ISBLANK(テーブル635[[#This Row],[許可区分（機械器具）]])),\"D\",\"-\"))","v":"A"},{"$f":"IF(NOT(ISBLANK(テーブル635[[#This Row],[電気通信]])),VLOOKUP(テーブル635[[#This Row],[電気通信]],電気[],2,TRUE), IF(NOT(ISBLANK(テーブル635[[#This Row],[許可区分(電気)]])),\"D\",\"-\"))","v":"-"},{"$f":"IF(NOT(ISBLANK(テーブル635[[#This Row],[水道施設]])),VLOOKUP(テーブル635[[#This Row],[水道施設]],水道[],2,TRUE), IF(NOT(ISBLANK(テーブル635[[#This Row],[許可区分（水道施設）]])),\"D\",\"-\"))","v":"A"}]
[9,"県外","株式会社荏原製作所　東京支社","東京都大田区羽田旭町11番1号","緒方　潔","050-3416-0123","03-3744-0187",null,null,null,null,"特定",1413,"特定",1472,null,null,null,null,null,null,"特定",1705,null,null,"特定",1337,{"$f":"IF(NOT(ISBLANK(テーブル635[[#This Row],[土木一式]])),VLOOKUP(テーブル635[[#This Row],[土木一式]],土木[],2,TRUE), IF(NOT(ISBLANK(テーブル635[[#This Row],[許可区分(土木)]])),\"D\",\"-\"))","v":"-"},{"$f":"IF(NOT(ISBLANK(テーブル635[[#This Row],[建築一式]])),VLOOKUP(テーブル635[[#This Row],[建築一式]],建築[],2,TRUE), IF(NOT(ISBLANK(テーブル635[[#This Row],[許可区分（建築）]])),\"D\",\"-\"))","v":"-"},{"$f":"IF(NOT(ISBLANK(テーブル635[[#This Row],[電気]])),VLOOKUP(テーブル635[[#This Row],[電気]],電気[],2,TRUE), IF(NOT(ISBLANK(テーブル635[[#This Row],[許可区分（電気）]])),\"D\",\"-\"))","v":"A"},{"$f":"IF(NOT(ISBLANK(テーブル635[[#This Row],[管]])),VLOOKUP(テーブル635[[#This Row],[管]],管[],2,TRUE), IF(NOT(ISBLANK(テーブル635[[#This Row],[許可区分（管）]])),\"D\",\"-\"))","v":"A"},{"$f":"IF(NOT(ISBLANK(テーブル635[[#This Row],[ほ装]])),VLOOKUP(テーブル635[[#This Row],[ほ装]],ほ装[],2,TRUE), IF(NOT(ISBLANK(テーブル635[[#This Row],[許可区分(ほ装)]])),\"D\",\"-\"))","v":"-"},{"$f":"IF(NOT(ISBLANK(テーブル635[[#This Row],[塗装]])),VLOOKUP(テーブル635[[#This Row],[塗装]],塗装[],2,TRUE), IF(NOT(ISBLANK(テーブル635[[#This Row],[許可区分（塗装）]])),\"D\",\"-\"))","v":"-"},{"$f":"IF(NOT(ISBLANK(テーブル635[[#This Row],[防水]])),VLOOKUP(テーブル635[[#This Row],[防水]],塗装[],2,TRUE), IF(NOT(ISBLANK(テーブル635[[#This Row],[許可区分（防水）]])),\"D\",\"-\"))","v":"-"},{"$f":"IF(NOT(ISBLANK(テーブル635[[#This Row],[機械器具設置]])),VLOOKUP(テーブル635[[#This Row],[機械器具設置]],塗装[],2,TRUE), IF(NOT(ISBLANK(テーブル635[[#This Row],[許可区分（機械器具）]])),\"D\",\"-\"))","v":"A"},{"$f":"IF(NOT(ISBLANK(テーブル635[[#This Row],[電気通信]])),VLOOKUP(テーブル635[[#This Row],[電気通信]],電気[],2,TRUE), IF(NOT(ISBLANK(テーブル635[[#This Row],[許可区分(電気)]])),\"D\",\"-\"))","v":"-"},{"$f":"IF(NOT(ISBLANK(テーブル635[[#This Row],[水道施設]])),VLOOKUP(テーブル635[[#This Row],[水道施設]],水道[],2,TRUE), IF(NOT(ISBLANK(テーブル635[[#This Row],[許可区分（水道施設）]])),\"D\",\"-\"))","v":"A"}]
[10,"県外","カナデビア株式会社　東京本社","東京都品川区南大井6丁目26番3号","金谷　孝之","03-6404-0823","03-6404-0862",null,null,null,null,null,null,"特定",1244,null,null,null,null,null,null,"特定",1610,null,null,"特定",1335,{"$f":"IF(NOT(ISBLANK(テーブル635[[#This Row],[土木一式]])),VLOOKUP(テーブル635[[#This Row],[土木一式]],土木[],2,TRUE), IF(NOT(ISBLANK(テーブル635[[#This Row],[許可区分(土木)]])),\"D\",\"-\"))","v":"-"},{"$f":"IF(NOT(ISBLANK(テーブル635[[#This Row],[建築一式]])),VLOOKUP(テーブル635[[#This Row],[建築一式]],建築[],2,TRUE), IF(NOT(ISBLANK(テーブル635[[#This Row],[許可区分（建築）]])),\"D\",\"-\"))","v":"-"},{"$f":"IF(NOT(ISBLANK(テーブル635[[#This Row],[電気]])),VLOOKUP(テーブル635[[#This Row],[電気]],電気[],2,TRUE), IF(NOT(ISBLANK(テーブル635[[#This Row],[許可区分（電気）]])),\"D\",\"-\"))","v":"-"},{"$f":"IF(NOT(ISBLANK(テーブル635[[#This Row],[管]])),VLOOKUP(テーブル635[[#This Row],[管]],管[],2,TRUE), IF(NOT(ISBLANK(テーブル635[[#This Row],[許可区分（管）]])),\"D\",\"-\"))","v":"A"},{"$f":"IF(NOT(ISBLANK(テーブル635[[#This Row],[ほ装]])),VLOOKUP(テーブル635[[#This Row],[ほ装]],ほ装[],2,TRUE), IF(NOT(ISBLANK(テーブル635[[#This Row],[許可区分(ほ装)]])),\"D\",\"-\"))","v":"-"},{"$f":"IF(NOT(ISBLANK(テーブル635[[#This Row],[塗装]])),VLOOKUP(テーブル635[[#This Row],[塗装]],塗装[],2,TRUE), IF(NOT(ISBLANK(テーブル635[[#This Row],[許可区分（塗装）]])),\"D\",\"-\"))","v":"-"},{"$f":"IF(NOT(ISBLANK(テーブル635[[#This Row],[防水]])),VLOOKUP(テーブル635[[#This Row],[防水]],塗装[],2,TRUE), IF(NOT(ISBLANK(テーブル635[[#This Row],[許可区分（防水）]])),\"D\",\"-\"))","v":"-"},{"$f":"IF(NOT(ISBLANK(テーブル635[[#This Row],[機械器具設置]])),VLOOKUP(テーブル635[[#This Row],[機械器具設置]],塗装[],2,TRUE), IF(NOT(ISBLANK(テーブル635[[#This Row],[許可区分（機械器具）]])),\"D\",\"-\"))","v":"A"},{"$f":"IF(NOT(ISBLANK(テーブル635[[#This Row],[電気通信]])),VLOOKUP(テーブル635[[#This Row],[電気通信]],電気[],2,TRUE), IF(NOT(ISBLANK(テーブル635[[#This Row],[許可区分(電気)]])),\"D\",\"-\"))","v":"-"},{"$f":"IF(NOT(ISBLANK(テーブル635[[#This Row],[水道施設]])),VLOOKUP(テーブル635[[#This Row],[水道施設]],水道[],2,TRUE), IF(NOT(ISBLANK(テーブル635[[#This Row],[許可区分（水道施設）]])),\"D\",\"-\"))","v":"A"}]
[11,"県外","シンク・エンジニアリング株式会社","東京都目黒区自由が丘3-16-15","岡村　勝也","03-3724-7201","03-3724-7203","特定",772,null,null,"特定",1118,null,null,null,null,null,null,null,null,"一般",823,"特定",1038,"一般",785,{"$f":"IF(NOT(ISBLANK(テーブル635[[#This Row],[土木一式]])),VLOOKUP(テーブル635[[#This Row],[土木一式]],土木[],2,TRUE), IF(NOT(ISBLANK(テーブル635[[#This Row],[許可区分(土木)]])),\"D\",\"-\"))","v":"A"},{"$f":"IF(NOT(ISBLANK(テーブル635[[#This Row],[建築一式]])),VLOOKUP(テーブル635[[#This Row],[建築一式]],建築[],2,TRUE), IF(NOT(ISBLANK(テーブル635[[#This Row],[許可区分（建築）]])),\"D\",\"-\"))","v":"-"},{"$f":"IF(NOT(ISBLANK(テーブル635[[#This Row],[電気]])),VLOOKUP(テーブル635[[#This Row],[電気]],電気[],2,TRUE), IF(NOT(ISBLANK(テーブル635[[#This Row],[許可区分（電気）]])),\"D\",\"-\"))","v":"A"},{"$f":"IF(NOT(ISBLANK(テーブル635[[#This Row],[管]])),VLOOKUP(テーブル635[[#This Row],[管]],管[],2,TRUE), IF(NOT(ISBLANK(テーブル635[[#This Row],[許可区分（管）]])),\"D\",\"-\"))","v":"-"},{"$f":"IF(NOT(ISBLANK(テーブル635[[#This Row],[ほ装]])),VLOOKUP(テーブル635[[#This Row],[ほ装]],ほ装[],2,TRUE), IF(NOT(ISBLANK(テーブル635[[#This Row],[許可区分(ほ装)]])),\"D\",\"-\"))","v":"-"},{"$f":"IF(NOT(ISBLANK(テーブル635[[#This Row],[塗装]])),VLOOKUP(テーブル635[[#This Row],[塗装]],塗装[],2,TRUE), IF(NOT(ISBLANK(テーブル635[[#This Row],[許可区分（塗装）]])),\"D\",\"-\"))","v":"-"},{"$f":"IF(NOT(ISBLANK(テーブル635[[#This Row],[防水]])),VLOOKUP(テーブル635[[#This Row],[防水]],塗装[],2,TRUE), IF(NOT(ISBLANK(テーブル635[[#This Row],[許可区分（防水）]])),\"D\",\"-\"))","v":"-"},{"$f":"IF(NOT(ISBLANK(テーブル635[[#This Row],[機械器具設置]])),VLOOKUP(テーブル635[[#This Row],[機械器具設置]],塗装[],2,TRUE), IF(NOT(ISBLANK(テーブル635[[#This Row],[許可区分（機械器具）]])),\"D\",\"-\"))","v":"A"},{"$f":"IF(NOT(ISBLANK(テーブル635[[#This Row],[電気通信]])),VLOOKUP(テーブル635[[#This Row],[電気通信]],電気[],2,TRUE), IF(NOT(ISBLANK(テーブル635[[#This Row],[許可区分(電気)]])),\"D\",\"-\"))","v":"A"},{"$f":"IF(NOT(ISBLANK(テーブル635[[#This Row],[水道施設]])),VLOOKUP(テーブル635[[#This Row],[水道施設]],水道[],2,TRUE), IF(NOT(ISBLANK(テーブル635[[#This Row],[許可区分（水道施設）]])),\"D\",\"-\"))","v":"B"}]
[12,"県外","協和機電工業株式会社　東京支店","東京都千代田区外神田三丁目3番1号　Nbuilding7階","川原　鉄也","03-3525-7204","03-3525-7214",null,null,null,null,"特定",1218,null,null,null,null,null,null,null,null,"特定",1201,null,null,"特定",1117,{"$f":"IF(NOT(ISBLANK(テーブル635[[#This Row],[土木一式]])),VLOOKUP(テーブル635[[#This Row],[土木一式]],土木[],2,TRUE), IF(NOT(ISBLANK(テーブル635[[#This Row],[許可区分(土木)]])),\"D\",\"-\"))","v":"-"},{"$f":"IF(NOT(ISBLANK(テーブル635[[#This Row],[建築一式]])),VLOOKUP(テーブル635[[#This Row],[建築一式]],建築[],2,TRUE), IF(NOT(ISBLANK(テーブル635[[#This Row],[許可区分（建築）]])),\"D\",\"-\"))","v":"-"},{"$f":"IF(NOT(ISBLANK(テーブル635[[#This Row],[電気]])),VLOOKUP(テーブル635[[#This Row],[電気]],電気[],2,TRUE), IF(NOT(ISBLANK(テーブル635[[#This Row],[許可区分（電気）]])),\"D\",\"-\"))","v":"A"},{"$f":"IF(NOT(ISBLANK(テーブル635[[#This Row],[管]])),VLOOKUP(テーブル635[[#This Row],[管]],管[],2,TRUE), IF(NOT(ISBLANK(テーブル635[[#This Row],[許可区分（管）]])),\"D\",\"-\"))","v":"-"},{"$f":"IF(NOT(ISBLANK(テーブル635[[#This Row],[ほ装]])),VLOOKUP(テーブル635[[#This Row],[ほ装]],ほ装[],2,TRUE), IF(NOT(ISBLANK(テーブル635[[#This Row],[許可区分(ほ装)]])),\"D\",\"-\"))","v":"-"},{"$f":"IF(NOT(ISBLANK(テーブル635[[#This Row],[塗装]])),VLOOKUP(テーブル635[[#This Row],[塗装]],塗装[],2,TRUE), IF(NOT(ISBLANK(テーブル635[[#This Row],[許可区分（塗装）]])),\"D\",\"-\"))","v":"-"},{"$f":"IF(NOT(ISBLANK(テーブル635[[#This Row],[防水]])),VLOOKUP(テーブル635[[#This Row],[防水]],塗装[],2,TRUE), IF(NOT(ISBLANK(テーブル635[[#This Row],[許可区分（防水）]])),\"D\",\"-\"))","v":"-"},{"$f":"IF(NOT(ISBLANK(テーブル635[[#This Row],[機械器具設置]])),VLOOKUP(テーブル635[[#This Row],[機械器具設置]],塗装[],2,TRUE), IF(NOT(ISBLANK(テーブル635[[#This Row],[許可区分（機械器具）]])),\"D\",\"-\"))","v":"A"},{"$f":"IF(NOT(ISBLANK(テーブル635[[#This Row],[電気通信]])),VLOOKUP(テーブル635[[#This Row],[電気通信]],電気[],2,TRUE), IF(NOT(ISBLANK(テーブル635[[#This Row],[許可区分(電気)]])),\"D\",\"-\"))","v":"-"},{"$f":"IF(NOT(ISBLANK(テーブル635[[#This Row],[水道施設]])),VLOOKUP(テーブル635[[#This Row],[水道施設]],水道[],2,TRUE), IF(NOT(ISBLANK(テーブル635[[#This Row],[許可区分（水道施設）]])),\"D\",\"-\"))","v":"A"}]
[13,"県外","シンフォニアテクノロジー株式会社　社会インフラシステム営業部","東京都港区芝大門一丁目1番30","齋藤　真","03-5473-1830","03-5473-1846",null,null,null,null,"特定",1516,null,null,null,null,null,null,null,null,"特定",1168,"特定",1267,null,null,{"$f":"IF(NOT(ISBLANK(テーブル635[[#This Row],[土木一式]])),VLOOKUP(テーブル635[[#This Row],[土木一式]],土木[],2,TRUE), IF(NOT(ISBLANK(テーブル635[[#This Row],[許可区分(土木)]])),\"D\",\"-\"))","v":"-"},{"$f":"IF(NOT(ISBLANK(テーブル635[[#This Row],[建築一式]])),VLOOKUP(テーブル635[[#This Row],[建築一式]],建築[],2,TRUE), IF(NOT(ISBLANK(テーブル635[[#This Row],[許可区分（建築）]])),\"D\",\"-\"))","v":"-"},{"$f":"IF(NOT(ISBLANK(テーブル635[[#This Row],[電気]])),VLOOKUP(テーブル635[[#This Row],[電気]],電気[],2,TRUE), IF(NOT(ISBLANK(テーブル635[[#This Row],[許可区分（電気）]])),\"D\",\"-\"))","v":"A"},{"$f":"IF(NOT(ISBLANK(テーブル635[[#This Row],[管]])),VLOOKUP(テーブル635[[#This Row],[管]],管[],2,TRUE), IF(NOT(ISBLANK(テーブル635[[#This Row],[許可区分（管）]])),\"D\",\"-\"))","v":"-"},{"$f":"IF(NOT(ISBLANK(テーブル635[[#This Row],[ほ装]])),VLOOKUP(テーブル635[[#This Row],[ほ装]],ほ装[],2,TRUE), IF(NOT(ISBLANK(テーブル635[[#This Row],[許可区分(ほ装)]])),\"D\",\"-\"))","v":"-"},{"$f":"IF(NOT(ISBLANK(テーブル635[[#This Row],[塗装]])),VLOOKUP(テーブル635[[#This Row],[塗装]],塗装[],2,TRUE), IF(NOT(ISBLANK(テーブル635[[#This Row],[許可区分（塗装）]])),\"D\",\"-\"))","v":"-"},{"$f":"IF(NOT(ISBLANK(テーブル635[[#This Row],[防水]])),VLOOKUP(テーブル635[[#This Row],[防水]],塗装[],2,TRUE), IF(NOT(ISBLANK(テーブル635[[#This Row],[許可区分（防水）]])),\"D\",\"-\"))","v":"-"},{"$f":"IF(NOT(ISBLANK(テーブル635[[#This Row],[機械器具設置]])),VLOOKUP(テーブル635[[#This Row],[機械器具設置]],塗装[],2,TRUE), IF(NOT(ISBLANK(テーブル635[[#This Row],[許可区分（機械器具）]])),\"D\",\"-\"))","v":"A"},{"$f":"IF(NOT(ISBLANK(テーブル635[[#This Row],[電気通信]])),VLOOKUP(テーブル635[[#This Row],[電気通信]],電気[],2,TRUE), IF(NOT(ISBLANK(テーブル635[[#This Row],[許可区分(電気)]])),\"D\",\"-\"))","v":"A"},{"$f":"IF(NOT(ISBLANK(テーブル635[[#This Row],[水道施設]])),VLOOKUP(テーブル635[[#This Row],[水道施設]],水道[],2,TRUE), IF(NOT(ISBLANK(テーブル635[[#This Row],[許可区分（水道施設）]])),\"D\",\"-\"))","v":"-"}]
[14,"県外","株式会社石垣","東京都千代田区丸の内1丁目6番5号","安室　要一","03-6848-7822","03-6848-7902",null,null,null,null,null,null,null,null,null,null,null,null,null,null,"特定",1388,null,null,"特定",1188,{"$f":"IF(NOT(ISBLANK(テーブル635[[#This Row],[土木一式]])),VLOOKUP(テーブル635[[#This Row],[土木一式]],土木[],2,TRUE), IF(NOT(ISBLANK(テーブル635[[#This Row],[許可区分(土木)]])),\"D\",\"-\"))","v":"-"},{"$f":"IF(NOT(ISBLANK(テーブル635[[#This Row],[建築一式]])),VLOOKUP(テーブル635[[#This Row],[建築一式]],建築[],2,TRUE), IF(NOT(ISBLANK(テーブル635[[#This Row],[許可区分（建築）]])),\"D\",\"-\"))","v":"-"},{"$f":"IF(NOT(ISBLANK(テーブル635[[#This Row],[電気]])),VLOOKUP(テーブル635[[#This Row],[電気]],電気[],2,TRUE), IF(NOT(ISBLANK(テーブル635[[#This Row],[許可区分（電気）]])),\"D\",\"-\"))","v":"-"},{"$f":"IF(NOT(ISBLANK(テーブル635[[#This Row],[管]])),VLOOKUP(テーブル635[[#This Row],[管]],管[],2,TRUE), IF(NOT(ISBLANK(テーブル635[[#This Row],[許可区分（管）]])),\"D\",\"-\"))","v":"-"},{"$f":"IF(NOT(ISBLANK(テーブル635[[#This Row],[ほ装]])),VLOOKUP(テーブル635[[#This Row],[ほ装]],ほ装[],2,TRUE), IF(NOT(ISBLANK(テーブル635[[#This Row],[許可区分(ほ装)]])),\"D\",\"-\"))","v":"-"},{"$f":"IF(NOT(ISBLANK(テーブル635[[#This Row],[塗装]])),VLOOKUP(テーブル635[[#This Row],[塗装]],塗装[],2,TRUE), IF(NOT(ISBLANK(テーブル635[[#This Row],[許可区分（塗装）]])),\"D\",\"-\"))","v":"-"},{"$f":"IF(NOT(ISBLANK(テーブル635[[#This Row],[防水]])),VLOOKUP(テーブル635[[#This Row],[防水]],塗装[],2,TRUE), IF(NOT(ISBLANK(テーブル635[[#This Row],[許可区分（防水）]])),\"D\",\"-\"))","v":"-"},{"$f":"IF(NOT(ISBLANK(テーブル635[[#This Row],[機械器具設置]])),VLOOKUP(テーブル635[[#This Row],[機械器具設置]],塗装[],2,TRUE), IF(NOT(ISBLANK(テーブル635[[#This Row],[許可区分（機械器具）]])),\"D\",\"-\"))","v":"A"},{"$f":"IF(NOT(ISBLANK(テーブル635[[#This Row],[電気通信]])),VLOOKUP(テーブル635[[#This Row],[電気通信]],電気[],2,TRUE), IF(NOT(ISBLANK(テーブル635[[#This Row],[許可区分(電気)]])),\"D\",\"-\"))","v":"-"},{"$f":"IF(NOT(ISBLANK(テーブル635[[#This Row],[水道施設]])),VLOOKUP(テーブル635[[#This Row],[水道施設]],水道[],2,TRUE), IF(NOT(ISBLANK(テーブル635[[#This Row],[許可区分（水道施設）]])),\"D\",\"-\"))","v":"A"}]
[15,"県外","株式会社栗本鐵工所　東京支社","東京都港区港南二丁目16番2号","髙僧　英樹","03-3450-8521","03-3450-8526",null,null,null,null,null,null,"特定",1021,null,null,null,null,null,null,"特定",1323,null,null,"特定",1228,{"$f":"IF(NOT(ISBLANK(テーブル635[[#This Row],[土木一式]])),VLOOKUP(テーブル635[[#This Row],[土木一式]],土木[],2,TRUE), IF(NOT(ISBLANK(テーブル635[[#This Row],[許可区分(土木)]])),\"D\",\"-\"))","v":"-"},{"$f":"IF(NOT(ISBLANK(テーブル635[[#This Row],[建築一式]])),VLOOKUP(テーブル635[[#This Row],[建築一式]],建築[],2,TRUE), IF(NOT(ISBLANK(テーブル635[[#This Row],[許可区分（建築）]])),\"D\",\"-\"))","v":"-"},{"$f":"IF(NOT(ISBLANK(テーブル635[[#This Row],[電気]])),VLOOKUP(テーブル635[[#This Row],[電気]],電気[],2,TRUE), IF(NOT(ISBLANK(テーブル635[[#This Row],[許可区分（電気）]])),\"D\",\"-\"))","v":"-"},{"$f":"IF(NOT(ISBLANK(テーブル635[[#This Row],[管]])),VLOOKUP(テーブル635[[#This Row],[管]],管[],2,TRUE), IF(NOT(ISBLANK(テーブル635[[#This Row],[許可区分（管）]])),\"D\",\"-\"))","v":"A"},{"$f":"IF(NOT(ISBLANK(テーブル635[[#This Row],[ほ装]])),VLOOKUP(テーブル635[[#This Row],[ほ装]],ほ装[],2,TRUE), IF(NOT(ISBLANK(テーブル635[[#This Row],[許可区分(ほ装)]])),\"D\",\"-\"))","v":"-"},{"$f":"IF(NOT(ISBLANK(テーブル635[[#This Row],[塗装]])),VLOOKUP(テーブル635[[#This Row],[塗装]],塗装[],2,TRUE), IF(NOT(ISBLANK(テーブル635[[#This Row],[許可区分（塗装）]])),\"D\",\"-\"))","v":"-"},{"$f":"IF(NOT(ISBLANK(テーブル635[[#This Row],[防水]])),VLOOKUP(テーブル635[[#This Row],[防水]],塗装[],2,TRUE), IF(NOT(ISBLANK(テーブル635[[#This Row],[許可区分（防水）]])),\"D\",\"-\"))","v":"-"},{"$f":"IF(NOT(ISBLANK(テーブル635[[#This Row],[機械器具設置]])),VLOOKUP(テーブル635[[#This Row],[機械器具設置]],塗装[],2,TRUE), IF(NOT(ISBLANK(テーブル635[[#This Row],[許可区分（機械器具）]])),\"D\",\"-\"))","v":"A"},{"$f":"IF(NOT(ISBLANK(テーブル635[[#This Row],[電気通信]])),VLOOKUP(テーブル635[[#This Row],[電気通信]],電気[],2,TRUE), IF(NOT(ISBLANK(テーブル635[[#This Row],[許可区分(電気)]])),\"D\",\"-\"))","v":"-"},{"$f":"IF(NOT(ISBLANK(テーブル635[[#This Row],[水道施設]])),VLOOKUP(テーブル635[[#This Row],[水道施設]],水道[],2,TRUE), IF(NOT(ISBLANK(テーブル635[[#This Row],[許可区分（水道施設）]])),\"D\",\"-\"))","v":"A"}]
[16,"県外","アズビル株式会社　アドバンスオートメーションカンパニー東京支社","東京都品川区北品川5丁目5番15号","刑部　彰一","03-6432-5140","03-3440-3163",null,null,null,null,"特定",1881,"特定",1649,null,null,null,null,null,null,null,null,"特定",1428,null,null,{"$f":"IF(NOT(ISBLANK(テーブル635[[#This Row],[土木一式]])),VLOOKUP(テーブル635[[#This Row],[土木一式]],土木[],2,TRUE), IF(NOT(ISBLANK(テーブル635[[#This Row],[許可区分(土木)]])),\"D\",\"-\"))","v":"-"},{"$f":"IF(NOT(ISBLANK(テーブル635[[#This Row],[建築一式]])),VLOOKUP(テーブル635[[#This Row],[建築一式]],建築[],2,TRUE), IF(NOT(ISBLANK(テーブル635[[#This Row],[許可区分（建築）]])),\"D\",\"-\"))","v":"-"},{"$f":"IF(NOT(ISBLANK(テーブル635[[#This Row],[電気]])),VLOOKUP(テーブル635[[#This Row],[電気]],電気[],2,TRUE), IF(NOT(ISBLANK(テーブル635[[#This Row],[許可区分（電気）]])),\"D\",\"-\"))","v":"A"},{"$f":"IF(NOT(ISBLANK(テーブル635[[#This Row],[管]])),VLOOKUP(テーブル635[[#This Row],[管]],管[],2,TRUE), IF(NOT(ISBLANK(テーブル635[[#This Row],[許可区分（管）]])),\"D\",\"-\"))","v":"A"},{"$f":"IF(NOT(ISBLANK(テーブル635[[#This Row],[ほ装]])),VLOOKUP(テーブル635[[#This Row],[ほ装]],ほ装[],2,TRUE), IF(NOT(ISBLANK(テーブル635[[#This Row],[許可区分(ほ装)]])),\"D\",\"-\"))","v":"-"},{"$f":"IF(NOT(ISBLANK(テーブル635[[#This Row],[塗装]])),VLOOKUP(テーブル635[[#This Row],[塗装]],塗装[],2,TRUE), IF(NOT(ISBLANK(テーブル635[[#This Row],[許可区分（塗装）]])),\"D\",\"-\"))","v":"-"},{"$f":"IF(NOT(ISBLANK(テーブル635[[#This Row],[防水]])),VLOOKUP(テーブル635[[#This Row],[防水]],塗装[],2,TRUE), IF(NOT(ISBLANK(テーブル635[[#This Row],[許可区分（防水）]])),\"D\",\"-\"))","v":"-"},{"$f":"IF(NOT(ISBLANK(テーブル635[[#This Row],[機械器具設置]])),VLOOKUP(テーブル635[[#This Row],[機械器具設置]],塗装[],2,TRUE), IF(NOT(ISBLANK(テーブル635[[#This Row],[許可区分（機械器具）]])),\"D\",\"-\"))","v":"-"},{"$f":"IF(NOT(ISBLANK(テーブル635[[#This Row],[電気通信]])),VLOOKUP(テーブル635[[#This Row],[電気通信]],電気[],2,TRUE), IF(NOT(ISBLANK(テーブル635[[#This Row],[許可区分(電気)]])),\"D\",\"-\"))","v":"A"},{"$f":"IF(NOT(ISBLANK(テーブル635[[#This Row],[水道施設]])),VLOOKUP(テーブル635[[#This Row],[水道施設]],水道[],2,TRUE), IF(NOT(ISBLANK(テーブル635[[#This Row],[許可区分（水道施設）]])),\"D\",\"-\"))","v":"-"}]
[17,"県外","株式会社データベース　東京支店","東京都中央区日本橋本町2-8-12","大場　浩司","03-5641-1381","03-5641-1384",null,null,null,null,"特定",982,"特定",769,null,null,null,null,null,null,null,null,null,null,"特定",837,{"$f":"IF(NOT(ISBLANK(テーブル635[[#This Row],[土木一式]])),VLOOKUP(テーブル635[[#This Row],[土木一式]],土木[],2,TRUE), IF(NOT(ISBLANK(テーブル635[[#This Row],[許可区分(土木)]])),\"D\",\"-\"))","v":"-"},{"$f":"IF(NOT(ISBLANK(テーブル635[[#This Row],[建築一式]])),VLOOKUP(テーブル635[[#This Row],[建築一式]],建築[],2,TRUE), IF(NOT(ISBLANK(テーブル635[[#This Row],[許可区分（建築）]])),\"D\",\"-\"))","v":"-"},{"$f":"IF(NOT(ISBLANK(テーブル635[[#This Row],[電気]])),VLOOKUP(テーブル635[[#This Row],[電気]],電気[],2,TRUE), IF(NOT(ISBLANK(テーブル635[[#This Row],[許可区分（電気）]])),\"D\",\"-\"))","v":"A"},{"$f":"IF(NOT(ISBLANK(テーブル635[[#This Row],[管]])),VLOOKUP(テーブル635[[#This Row],[管]],管[],2,TRUE), IF(NOT(ISBLANK(テーブル635[[#This Row],[許可区分（管）]])),\"D\",\"-\"))","v":"A"},{"$f":"IF(NOT(ISBLANK(テーブル635[[#This Row],[ほ装]])),VLOOKUP(テーブル635[[#This Row],[ほ装]],ほ装[],2,TRUE), IF(NOT(ISBLANK(テーブル635[[#This Row],[許可区分(ほ装)]])),\"D\",\"-\"))","v":"-"},{"$f":"IF(NOT(ISBLANK(テーブル635[[#This Row],[塗装]])),VLOOKUP(テーブル635[[#This Row],[塗装]],塗装[],2,TRUE), IF(NOT(ISBLANK(テーブル635[[#This Row],[許可区分（塗装）]])),\"D\",\"-\"))","v":"-"},{"$f":"IF(NOT(ISBLANK(テーブル635[[#This Row],[防水]])),VLOOKUP(テーブル635[[#This Row],[防水]],塗装[],2,TRUE), IF(NOT(ISBLANK(テーブル635[[#This Row],[許可区分（防水）]])),\"D\",\"-\"))","v":"-"},{"$f":"IF(NOT(ISBLANK(テーブル635[[#This Row],[機械器具設置]])),VLOOKUP(テーブル635[[#This Row],[機械器具設置]],塗装[],2,TRUE), IF(NOT(ISBLANK(テーブル635[[#This Row],[許可区分（機械器具）]])),\"D\",\"-\"))","v":"-"},{"$f":"IF(NOT(ISBLANK(テーブル635[[#This Row],[電気通信]])),VLOOKUP(テーブル635[[#This Row],[電気通信]],電気[],2,TRUE), IF(NOT(ISBLANK(テーブル635[[#This Row],[許可区分(電気)]])),\"D\",\"-\"))","v":"-"},{"$f":"IF(NOT(ISBLANK(テーブル635[[#This Row],[水道施設]])),VLOOKUP(テーブル635[[#This Row],[水道施設]],水道[],2,TRUE), IF(NOT(ISBLANK(テーブル635[[#This Row],[許可区分（水道施設）]])),\"D\",\"-\"))","v":"A"}]
[18,"県外","株式会社西原環境　東京支店","東京都港区海岸三丁目20番20号","稲垣　和博","03-3455-4448","03-3455-4404","特定",891,"特定",791,"特定",1009,"特定",1057,null,null,null,null,null,null,"特定",1240,null,null,"特定",1158,{"$f":"IF(NOT(ISBLANK(テーブル635[[#This Row],[土木一式]])),VLOOKUP(テーブル635[[#This Row],[土木一式]],土木[],2,TRUE), IF(NOT(ISBLANK(テーブル635[[#This Row],[許可区分(土木)]])),\"D\",\"-\"))","v":"A"},{"$f":"IF(NOT(ISBLANK(テーブル635[[#This Row],[建築一式]])),VLOOKUP(テーブル635[[#This Row],[建築一式]],建築[],2,TRUE), IF(NOT(ISBLANK(テーブル635[[#This Row],[許可区分（建築）]])),\"D\",\"-\"))","v":"B"},{"$f":"IF(NOT(ISBLANK(テーブル635[[#This Row],[電気]])),VLOOKUP(テーブル635[[#This Row],[電気]],電気[],2,TRUE), IF(NOT(ISBLANK(テーブル635[[#This Row],[許可区分（電気）]])),\"D\",\"-\"))","v":"A"},{"$f":"IF(NOT(ISBLANK(テーブル635[[#This Row],[管]])),VLOOKUP(テーブル635[[#This Row],[管]],管[],2,TRUE), IF(NOT(ISBLANK(テーブル635[[#This Row],[許可区分（管）]])),\"D\",\"-\"))","v":"A"},{"$f":"IF(NOT(ISBLANK(テーブル635[[#This Row],[ほ装]])),VLOOKUP(テーブル635[[#This Row],[ほ装]],ほ装[],2,TRUE), IF(NOT(ISBLANK(テーブル635[[#This Row],[許可区分(ほ装)]])),\"D\",\"-\"))","v":"-"},{"$f":"IF(NOT(ISBLANK(テーブル635[[#This Row],[塗装]])),VLOOKUP(テーブル635[[#This Row],[塗装]],塗装[],2,TRUE), IF(NOT(ISBLANK(テーブル635[[#This Row],[許可区分（塗装）]])),\"D\",\"-\"))","v":"-"},{"$f":"IF(NOT(ISBLANK(テーブル635[[#This Row],[防水]])),VLOOKUP(テーブル635[[#This Row],[防水]],塗装[],2,TRUE), IF(NOT(ISBLANK(テーブル635[[#This Row],[許可区分（防水）]])),\"D\",\"-\"))","v":"-"},{"$f":"IF(NOT(ISBLANK(テーブル635[[#This Row],[機械器具設置]])),VLOOKUP(テーブル635[[#This Row],[機械器具設置]],塗装[],2,TRUE), IF(NOT(ISBLANK(テーブル635[[#This Row],[許可区分（機械器具）]])),\"D\",\"-\"))","v":"A"},{"$f":"IF(NOT(ISBLANK(テーブル635[[#This Row],[電気通信]])),VLOOKUP(テーブル635[[#This Row],[電気通信]],電気[],2,TRUE), IF(NOT(ISBLANK(テーブル635[[#This Row],[許可区分(電気)]])),\"D\",\"-\"))","v":"-"},{"$f":"IF(NOT(ISBLANK(テーブル635[[#This Row],[水道施設]])),VLOOKUP(テーブル635[[#This Row],[水道施設]],水道[],2,TRUE), IF(NOT(ISBLANK(テーブル635[[#This Row],[許可区分（水道施設）]])),\"D\",\"-\"))","v":"A"}]
[19,"県外","三菱電機株式会社　社会システム第一部","東京都千代田区丸の内二丁目7番3号","金原　盛人","03-3218-1482","03-3218-2893",null,null,null,null,"特定",1923,null,null,null,null,null,null,null,null,null,null,"特定",1596,null,null,{"$f":"IF(NOT(ISBLANK(テーブル635[[#This Row],[土木一式]])),VLOOKUP(テーブル635[[#This Row],[土木一式]],土木[],2,TRUE), IF(NOT(ISBLANK(テーブル635[[#This Row],[許可区分(土木)]])),\"D\",\"-\"))","v":"-"},{"$f":"IF(NOT(ISBLANK(テーブル635[[#This Row],[建築一式]])),VLOOKUP(テーブル635[[#This Row],[建築一式]],建築[],2,TRUE), IF(NOT(ISBLANK(テーブル635[[#This Row],[許可区分（建築）]])),\"D\",\"-\"))","v":"-"},{"$f":"IF(NOT(ISBLANK(テーブル635[[#This Row],[電気]])),VLOOKUP(テーブル635[[#This Row],[電気]],電気[],2,TRUE), IF(NOT(ISBLANK(テーブル635[[#This Row],[許可区分（電気）]])),\"D\",\"-\"))","v":"A"},{"$f":"IF(NOT(ISBLANK(テーブル635[[#This Row],[管]])),VLOOKUP(テーブル635[[#This Row],[管]],管[],2,TRUE), IF(NOT(ISBLANK(テーブル635[[#This Row],[許可区分（管）]])),\"D\",\"-\"))","v":"-"},{"$f":"IF(NOT(ISBLANK(テーブル635[[#This Row],[ほ装]])),VLOOKUP(テーブル635[[#This Row],[ほ装]],ほ装[],2,TRUE), IF(NOT(ISBLANK(テーブル635[[#This Row],[許可区分(ほ装)]])),\"D\",\"-\"))","v":"-"},{"$f":"IF(NOT(ISBLANK(テーブル635[[#This Row],[塗装]])),VLOOKUP(テーブル635[[#This Row],[塗装]],塗装[],2,TRUE), IF(NOT(ISBLANK(テーブル635[[#This Row],[許可区分（塗装）]])),\"D\",\"-\"))","v":"-"},{"$f":"IF(NOT(ISBLANK(テーブル635[[#This Row],[防水]])),VLOOKUP(テーブル635[[#This Row],[防水]],塗装[],2,TRUE), IF(NOT(ISBLANK(テーブル635[[#This Row],[許可区分（防水）]])),\"D\",\"-\"))","v":"-"},{"$f":"IF(NOT(ISBLANK(テーブル635[[#This Row],[機械器具設置]])),VLOOKUP(テーブル635[[#This Row],[機械器具設置]],塗装[],2,TRUE), IF(NOT(ISBLANK(テーブル635[[#This Row],[許可区分（機械器具）]])),\"D\",\"-\"))","v":"-"},{"$f":"IF(NOT(ISBLANK(テーブル635[[#This Row],[電気通信]])),VLOOKUP(テーブル635[[#This Row],[電気通信]],電気[],2,TRUE), IF(NOT(ISBLANK(テーブル635[[#This Row],[許可区分(電気)]])),\"D\",\"-\"))","v":"A"},{"$f":"IF(NOT(ISBLANK(テーブル635[[#This Row],[水道施設]])),VLOOKUP(テーブル635[[#This Row],[水道施設]],水道[],2,TRUE), IF(NOT(ISBLANK(テーブル635[[#This Row],[許可区分（水道施設）]])),\"D\",\"-\"))","v":"-"}]
[20,"県外","新菱工業株式会社","東京都千代田区神田多町二丁目9番2号","寺垣　彰雄","03-5289-0009","03-5289-0023",null,null,null,null,"特定",1017,null,null,null,null,null,null,null,null,"特定",1232,null,null,"特定",932,{"$f":"IF(NOT(ISBLANK(テーブル635[[#This Row],[土木一式]])),VLOOKUP(テーブル635[[#This Row],[土木一式]],土木[],2,TRUE), IF(NOT(ISBLANK(テーブル635[[#This Row],[許可区分(土木)]])),\"D\",\"-\"))","v":"-"},{"$f":"IF(NOT(ISBLANK(テーブル635[[#This Row],[建築一式]])),VLOOKUP(テーブル635[[#This Row],[建築一式]],建築[],2,TRUE), IF(NOT(ISBLANK(テーブル635[[#This Row],[許可区分（建築）]])),\"D\",\"-\"))","v":"-"},{"$f":"IF(NOT(ISBLANK(テーブル635[[#This Row],[電気]])),VLOOKUP(テーブル635[[#This Row],[電気]],電気[],2,TRUE), IF(NOT(ISBLANK(テーブル635[[#This Row],[許可区分（電気）]])),\"D\",\"-\"))","v":"A"},{"$f":"IF(NOT(ISBLANK(テーブル635[[#This Row],[管]])),VLOOKUP(テーブル635[[#This Row],[管]],管[],2,TRUE), IF(NOT(ISBLANK(テーブル635[[#This Row],[許可区分（管）]])),\"D\",\"-\"))","v":"-"},{"$f":"IF(NOT(ISBLANK(テーブル635[[#This Row],[ほ装]])),VLOOKUP(テーブル635[[#This Row],[ほ装]],ほ装[],2,TRUE), IF(NOT(ISBLANK(テーブル635[[#This Row],[許可区分(ほ装)]])),\"D\",\"-\"))","v":"-"},{"$f":"IF(NOT(ISBLANK(テーブル635[[#This Row],[塗装]])),VLOOKUP(テーブル635[[#This Row],[塗装]],塗装[],2,TRUE), IF(NOT(ISBLANK(テーブル635[[#This Row],[許可区分（塗装）]])),\"D\",\"-\"))","v":"-"},{"$f":"IF(NOT(ISBLANK(テーブル635[[#This Row],[防水]])),VLOOKUP(テーブル635[[#This Row],[防水]],塗装[],2,TRUE), IF(NOT(ISBLANK(テーブル635[[#This Row],[許可区分（防水）]])),\"D\",\"-\"))","v":"-"},{"$f":"IF(NOT(ISBLANK(テーブル635[[#This Row],[機械器具設置]])),VLOOKUP(テーブル635[[#This Row],[機械器具設置]],塗装[],2,TRUE), IF(NOT(ISBLANK(テーブル635[[#This Row],[許可区分（機械器具）]])),\"D\",\"-\"))","v":"A"},{"$f":"IF(NOT(ISBLANK(テーブル635[[#This Row],[電気通信]])),VLOOKUP(テーブル635[[#This Row],[電気通信]],電気[],2,TRUE), IF(NOT(ISBLANK(テーブル635[[#This Row],[許可区分(電気)]])),\"D\",\"-\"))","v":"-"},{"$f":"IF(NOT(ISBLANK(テーブル635[[#This Row],[水道施設]])),VLOOKUP(テーブル635[[#This Row],[水道施設]],水道[],2,TRUE), IF(NOT(ISBLANK(テーブル635[[#This Row],[許可区分（水道施設）]])),\"D\",\"-\"))","v":"A"}]
[21,"県外","島津システムソリューションズ株式会社　東京支店","東京都墨田区太平二丁目10番10号　ユナイトビル錦糸町4階","小林　淳一","03-6658-4186","03-6658-4994",null,null,null,null,"特定",1185,null,null,null,null,null,null,null,null,null,null,"特定",1091,null,null,{"$f":"IF(NOT(ISBLANK(テーブル635[[#This Row],[土木一式]])),VLOOKUP(テーブル635[[#This Row],[土木一式]],土木[],2,TRUE), IF(NOT(ISBLANK(テーブル635[[#This Row],[許可区分(土木)]])),\"D\",\"-\"))","v":"-"},{"$f":"IF(NOT(ISBLANK(テーブル635[[#This Row],[建築一式]])),VLOOKUP(テーブル635[[#This Row],[建築一式]],建築[],2,TRUE), IF(NOT(ISBLANK(テーブル635[[#This Row],[許可区分（建築）]])),\"D\",\"-\"))","v":"-"},{"$f":"IF(NOT(ISBLANK(テーブル635[[#This Row],[電気]])),VLOOKUP(テーブル635[[#This Row],[電気]],電気[],2,TRUE), IF(NOT(ISBLANK(テーブル635[[#This Row],[許可区分（電気）]])),\"D\",\"-\"))","v":"A"},{"$f":"IF(NOT(ISBLANK(テーブル635[[#This Row],[管]])),VLOOKUP(テーブル635[[#This Row],[管]],管[],2,TRUE), IF(NOT(ISBLANK(テーブル635[[#This Row],[許可区分（管）]])),\"D\",\"-\"))","v":"-"},{"$f":"IF(NOT(ISBLANK(テーブル635[[#This Row],[ほ装]])),VLOOKUP(テーブル635[[#This Row],[ほ装]],ほ装[],2,TRUE), IF(NOT(ISBLANK(テーブル635[[#This Row],[許可区分(ほ装)]])),\"D\",\"-\"))","v":"-"},{"$f":"IF(NOT(ISBLANK(テーブル635[[#This Row],[塗装]])),VLOOKUP(テーブル635[[#This Row],[塗装]],塗装[],2,TRUE), IF(NOT(ISBLANK(テーブル635[[#This Row],[許可区分（塗装）]])),\"D\",\"-\"))","v":"-"},{"$f":"IF(NOT(ISBLANK(テーブル635[[#This Row],[防水]])),VLOOKUP(テーブル635[[#This Row],[防水]],塗装[],2,TRUE), IF(NOT(ISBLANK(テーブル635[[#This Row],[許可区分（防水）]])),\"D\",\"-\"))","v":"-"},{"$f":"IF(NOT(ISBLANK(テーブル635[[#This Row],[機械器具設置]])),VLOOKUP(テーブル635[[#This Row],[機械器具設置]],塗装[],2,TRUE), IF(NOT(ISBLANK(テーブル635[[#This Row],[許可区分（機械器具）]])),\"D\",\"-\"))","v":"-"},{"$f":"IF(NOT(ISBLANK(テーブル635[[#This Row],[電気通信]])),VLOOKUP(テーブル635[[#This Row],[電気通信]],電気[],2,TRUE), IF(NOT(ISBLANK(テーブル635[[#This Row],[許可区分(電気)]])),\"D\",\"-\"))","v":"A"},{"$f":"IF(NOT(ISBLANK(テーブル635[[#This Row],[水道施設]])),VLOOKUP(テーブル635[[#This Row],[水道施設]],水道[],2,TRUE), IF(NOT(ISBLANK(テーブル635[[#This Row],[許可区分（水道施設）]])),\"D\",\"-\"))","v":"-"}]
[22,"県外","株式会社タケミ・コーポレーション","大阪府堺市西区山田二丁191番地1","廣瀨　丈巳","072-294-9801","072-294-9802",null,null,null,null,null,null,null,null,null,null,null,null,null,null,"一般",596,null,null,"特定",812,{"$f":"IF(NOT(ISBLANK(テーブル635[[#This Row],[土木一式]])),VLOOKUP(テーブル635[[#This Row],[土木一式]],土木[],2,TRUE), IF(NOT(ISBLANK(テーブル635[[#This Row],[許可区分(土木)]])),\"D\",\"-\"))","v":"-"},{"$f":"IF(NOT(ISBLANK(テーブル635[[#This Row],[建築一式]])),VLOOKUP(テーブル635[[#This Row],[建築一式]],建築[],2,TRUE), IF(NOT(ISBLANK(テーブル635[[#This Row],[許可区分（建築）]])),\"D\",\"-\"))","v":"-"},{"$f":"IF(NOT(ISBLANK(テーブル635[[#This Row],[電気]])),VLOOKUP(テーブル635[[#This Row],[電気]],電気[],2,TRUE), IF(NOT(ISBLANK(テーブル635[[#This Row],[許可区分（電気）]])),\"D\",\"-\"))","v":"-"},{"$f":"IF(NOT(ISBLANK(テーブル635[[#This Row],[管]])),VLOOKUP(テーブル635[[#This Row],[管]],管[],2,TRUE), IF(NOT(ISBLANK(テーブル635[[#This Row],[許可区分（管）]])),\"D\",\"-\"))","v":"-"},{"$f":"IF(NOT(ISBLANK(テーブル635[[#This Row],[ほ装]])),VLOOKUP(テーブル635[[#This Row],[ほ装]],ほ装[],2,TRUE), IF(NOT(ISBLANK(テーブル635[[#This Row],[許可区分(ほ装)]])),\"D\",\"-\"))","v":"-"},{"$f":"IF(NOT(ISBLANK(テーブル635[[#This Row],[塗装]])),VLOOKUP(テーブル635[[#This Row],[塗装]],塗装[],2,TRUE), IF(NOT(ISBLANK(テーブル635[[#This Row],[許可区分（塗装）]])),\"D\",\"-\"))","v":"-"},{"$f":"IF(NOT(ISBLANK(テーブル635[[#This Row],[防水]])),VLOOKUP(テーブル635[[#This Row],[防水]],塗装[],2,TRUE), IF(NOT(ISBLANK(テーブル635[[#This Row],[許可区分（防水）]])),\"D\",\"-\"))","v":"-"},{"$f":"IF(NOT(ISBLANK(テーブル635[[#This Row],[機械器具設置]])),VLOOKUP(テーブル635[[#This Row],[機械器具設置]],塗装[],2,TRUE), IF(NOT(ISBLANK(テーブル635[[#This Row],[許可区分（機械器具）]])),\"D\",\"-\"))","v":"D"},{"$f":"IF(NOT(ISBLANK(テーブル635[[#This Row],[電気通信]])),VLOOKUP(テーブル635[[#This Row],[電気通信]],電気[],2,TRUE), IF(NOT(ISBLANK(テーブル635[[#This Row],[許可区分(電気)]])),\"D\",\"-\"))","v":"-"},{"$f":"IF(NOT(ISBLANK(テーブル635[[#This Row],[水道施設]])),VLOOKUP(テーブル635[[#This Row],[水道施設]],水道[],2,TRUE), IF(NOT(ISBLANK(テーブル635[[#This Row],[許可区分（水道施設）]])),\"D\",\"-\"))","v":"A"}]
[23,"県外","株式会社前澤エンジニアリングサービス　関東支店","埼玉県川口市仲町5-11","渡邉　尚樹","08-255-1223","048-258-7141","特定",856,null,null,null,null,null,null,null,null,null,null,null,null,"特定",1339,null,null,"特定",1144,{"$f":"IF(NOT(ISBLANK(テーブル635[[#This Row],[土木一式]])),VLOOKUP(テーブル635[[#This Row],[土木一式]],土木[],2,TRUE), IF(NOT(ISBLANK(テーブル635[[#This Row],[許可区分(土木)]])),\"D\",\"-\"))","v":"A"},{"$f":"IF(NOT(ISBLANK(テーブル635[[#This Row],[建築一式]])),VLOOKUP(テーブル635[[#This Row],[建築一式]],建築[],2,TRUE), IF(NOT(ISBLANK(テーブル635[[#This Row],[許可区分（建築）]])),\"D\",\"-\"))","v":"-"},{"$f":"IF(NOT(ISBLANK(テーブル635[[#This Row],[電気]])),VLOOKUP(テーブル635[[#This Row],[電気]],電気[],2,TRUE), IF(NOT(ISBLANK(テーブル635[[#This Row],[許可区分（電気）]])),\"D\",\"-\"))","v":"-"},{"$f":"IF(NOT(ISBLANK(テーブル635[[#This Row],[管]])),VLOOKUP(テーブル635[[#This Row],[管]],管[],2,TRUE), IF(NOT(ISBLANK(テーブル635[[#This Row],[許可区分（管）]])),\"D\",\"-\"))","v":"-"},{"$f":"IF(NOT(ISBLANK(テーブル635[[#This Row],[ほ装]])),VLOOKUP(テーブル635[[#This Row],[ほ装]],ほ装[],2,TRUE), IF(NOT(ISBLANK(テーブル635[[#This Row],[許可区分(ほ装)]])),\"D\",\"-\"))","v":"-"},{"$f":"IF(NOT(ISBLANK(テーブル635[[#This Row],[塗装]])),VLOOKUP(テーブル635[[#This Row],[塗装]],塗装[],2,TRUE), IF(NOT(ISBLANK(テーブル635[[#This Row],[許可区分（塗装）]])),\"D\",\"-\"))","v":"-"},{"$f":"IF(NOT(ISBLANK(テーブル635[[#This Row],[防水]])),VLOOKUP(テーブル635[[#This Row],[防水]],塗装[],2,TRUE), IF(NOT(ISBLANK(テーブル635[[#This Row],[許可区分（防水）]])),\"D\",\"-\"))","v":"-"},{"$f":"IF(NOT(ISBLANK(テーブル635[[#This Row],[機械器具設置]])),VLOOKUP(テーブル635[[#This Row],[機械器具設置]],塗装[],2,TRUE), IF(NOT(ISBLANK(テーブル635[[#This Row],[許可区分（機械器具）]])),\"D\",\"-\"))","v":"A"},{"$f":"IF(NOT(ISBLANK(テーブル635[[#This Row],[電気通信]])),VLOOKUP(テーブル635[[#This Row],[電気通信]],電気[],2,TRUE), IF(NOT(ISBLANK(テーブル635[[#This Row],[許可区分(電気)]])),\"D\",\"-\"))","v":"-"},{"$f":"IF(NOT(ISBLANK(テーブル635[[#This Row],[水道施設]])),VLOOKUP(テーブル635[[#This Row],[水道施設]],水道[],2,TRUE), IF(NOT(ISBLANK(テーブル635[[#This Row],[許可区分（水道施設）]])),\"D\",\"-\"))","v":"A"}]
[24,"県外","前澤工業株式会社　東京支店","東京都中央区新川一丁目5番17号","腰越　建","03-3297-0611","03-3297-0619","特定",1125,null,null,null,null,null,null,null,null,null,null,null,null,"特定",1345,null,null,"特定",1372,{"$f":"IF(NOT(ISBLANK(テーブル635[[#This Row],[土木一式]])),VLOOKUP(テーブル635[[#This Row],[土木一式]],土木[],2,TRUE), IF(NOT(ISBLANK(テーブル635[[#This Row],[許可区分(土木)]])),\"D\",\"-\"))","v":"A"},{"$f":"IF(NOT(ISBLANK(テーブル635[[#This Row],[建築一式]])),VLOOKUP(テーブル635[[#This Row],[建築一式]],建築[],2,TRUE), IF(NOT(ISBLANK(テーブル635[[#This Row],[許可区分（建築）]])),\"D\",\"-\"))","v":"-"},{"$f":"IF(NOT(ISBLANK(テーブル635[[#This Row],[電気]])),VLOOKUP(テーブル635[[#This Row],[電気]],電気[],2,TRUE), IF(NOT(ISBLANK(テーブル635[[#This Row],[許可区分（電気）]])),\"D\",\"-\"))","v":"-"},{"$f":"IF(NOT(ISBLANK(テーブル635[[#This Row],[管]])),VLOOKUP(テーブル635[[#This Row],[管]],管[],2,TRUE), IF(NOT(ISBLANK(テーブル635[[#This Row],[許可区分（管）]])),\"D\",\"-\"))","v":"-"},{"$f":"IF(NOT(ISBLANK(テーブル635[[#This Row],[ほ装]])),VLOOKUP(テーブル635[[#This Row],[ほ装]],ほ装[],2,TRUE), IF(NOT(ISBLANK(テーブル635[[#This Row],[許可区分(ほ装)]])),\"D\",\"-\"))","v":"-"},{"$f":"IF(NOT(ISBLANK(テーブル635[[#This Row],[塗装]])),VLOOKUP(テーブル635[[#This Row],[塗装]],塗装[],2,TRUE), IF(NOT(ISBLANK(テーブル635[[#This Row],[許可区分（塗装）]])),\"D\",\"-\"))","v":"-"},{"$f":"IF(NOT(ISBLANK(テーブル635[[#This Row],[防水]])),VLOOKUP(テーブル635[[#This Row],[防水]],塗装[],2,TRUE), IF(NOT(ISBLANK(テーブル635[[#This Row],[許可区分（防水）]])),\"D\",\"-\"))","v":"-"},{"$f":"IF(NOT(ISBLANK(テーブル635[[#This Row],[機械器具設置]])),VLOOKUP(テーブル635[[#This Row],[機械器具設置]],塗装[],2,TRUE), IF(NOT(ISBLANK(テーブル635[[#This Row],[許可区分（機械器具）]])),\"D\",\"-\"))","v":"A"},{"$f":"IF(NOT(ISBLANK(テーブル635[[#This Row],[電気通信]])),VLOOKUP(テーブル635[[#This Row],[電気通信]],電気[],2,TRUE), IF(NOT(ISBLANK(テーブル635[[#This Row],[許可区分(電気)]])),\"D\",\"-\"))","v":"-"},{"$f":"IF(NOT(ISBLANK(テーブル635[[#This Row],[水道施設]])),VLOOKUP(テーブル635[[#This Row],[水道施設]],水道[],2,TRUE), IF(NOT(ISBLANK(テーブル635[[#This Row],[許可区分（水道施設）]])),\"D\",\"-\"))","v":"A"}]
[25,"県外","清田軌道工業株式会社　東京支店","東京都大田区南蒲田二丁目16番1号","濱田　徹","03-5713-7021","03-5713-7015","特定",1264,null,null,null,null,null,null,"特定",847,null,null,null,null,null,null,null,null,"特定",1050,{"$f":"IF(NOT(ISBLANK(テーブル635[[#This Row],[土木一式]])),VLOOKUP(テーブル635[[#This Row],[土木一式]],土木[],2,TRUE), IF(NOT(ISBLANK(テーブル635[[#This Row],[許可区分(土木)]])),\"D\",\"-\"))","v":"A"},{"$f":"IF(NOT(ISBLANK(テーブル635[[#This Row],[建築一式]])),VLOOKUP(テーブル635[[#This Row],[建築一式]],建築[],2,TRUE), IF(NOT(ISBLANK(テーブル635[[#This Row],[許可区分（建築）]])),\"D\",\"-\"))","v":"-"},{"$f":"IF(NOT(ISBLANK(テーブル635[[#This Row],[電気]])),VLOOKUP(テーブル635[[#This Row],[電気]],電気[],2,TRUE), IF(NOT(ISBLANK(テーブル635[[#This Row],[許可区分（電気）]])),\"D\",\"-\"))","v":"-"},{"$f":"IF(NOT(ISBLANK(テーブル635[[#This Row],[管]])),VLOOKUP(テーブル635[[#This Row],[管]],管[],2,TRUE), IF(NOT(ISBLANK(テーブル635[[#This Row],[許可区分（管）]])),\"D\",\"-\"))","v":"-"},{"$f":"IF(NOT(ISBLANK(テーブル635[[#This Row],[ほ装]])),VLOOKUP(テーブル635[[#This Row],[ほ装]],ほ装[],2,TRUE), IF(NOT(ISBLANK(テーブル635[[#This Row],[許可区分(ほ装)]])),\"D\",\"-\"))","v":"A"},{"$f":"IF(NOT(ISBLANK(テーブル635[[#This Row],[塗装]])),VLOOKUP(テーブル635[[#This Row],[塗装]],塗装[],2,TRUE), IF(NOT(ISBLANK(テーブル635[[#This Row],[許可区分（塗装）]])),\"D\",\"-\"))","v":"-"},{"$f":"IF(NOT(ISBLANK(テーブル635[[#This Row],[防水]])),VLOOKUP(テーブル635[[#This Row],[防水]],塗装[],2,TRUE), IF(NOT(ISBLANK(テーブル635[[#This Row],[許可区分（防水）]])),\"D\",\"-\"))","v":"-"},{"$f":"IF(NOT(ISBLANK(テーブル635[[#This Row],[機械器具設置]])),VLOOKUP(テーブル635[[#This Row],[機械器具設置]],塗装[],2,TRUE), IF(NOT(ISBLANK(テーブル635[[#This Row],[許可区分（機械器具）]])),\"D\",\"-\"))","v":"-"},{"$f":"IF(NOT(ISBLANK(テーブル635[[#This Row],[電気通信]])),VLOOKUP(テーブル635[[#This Row],[電気通信]],電気[],2,TRUE), IF(NOT(ISBLANK(テーブル635[[#This Row],[許可区分(電気)]])),\"D\",\"-\"))","v":"-"},{"$f":"IF(NOT(ISBLANK(テーブル635[[#This Row],[水道施設]])),VLOOKUP(テーブル635[[#This Row],[水道施設]],水道[],2,TRUE), IF(NOT(ISBLANK(テーブル635[[#This Row],[許可区分（水道施設）]])),\"D\",\"-\"))","v":"A"}]
[26,"県外","フジテコム株式会社","東京都千代田区神田佐久間町二丁目20番地","森山　慎一","03-3862-3196","03-3866-1979",null,null,null,null,null,null,null,null,null,null,null,null,null,null,null,null,"一般",676,null,null,{"$f":"IF(NOT(ISBLANK(テーブル635[[#This Row],[土木一式]])),VLOOKUP(テーブル635[[#This Row],[土木一式]],土木[],2,TRUE), IF(NOT(ISBLANK(テーブル635[[#This Row],[許可区分(土木)]])),\"D\",\"-\"))","v":"-"},{"$f":"IF(NOT(ISBLANK(テーブル635[[#This Row],[建築一式]])),VLOOKUP(テーブル635[[#This Row],[建築一式]],建築[],2,TRUE), IF(NOT(ISBLANK(テーブル635[[#This Row],[許可区分（建築）]])),\"D\",\"-\"))","v":"-"},{"$f":"IF(NOT(ISBLANK(テーブル635[[#This Row],[電気]])),VLOOKUP(テーブル635[[#This Row],[電気]],電気[],2,TRUE), IF(NOT(ISBLANK(テーブル635[[#This Row],[許可区分（電気）]])),\"D\",\"-\"))","v":"-"},{"$f":"IF(NOT(ISBLANK(テーブル635[[#This Row],[管]])),VLOOKUP(テーブル635[[#This Row],[管]],管[],2,TRUE), IF(NOT(ISBLANK(テーブル635[[#This Row],[許可区分（管）]])),\"D\",\"-\"))","v":"-"},{"$f":"IF(NOT(ISBLANK(テーブル635[[#This Row],[ほ装]])),VLOOKUP(テーブル635[[#This Row],[ほ装]],ほ装[],2,TRUE), IF(NOT(ISBLANK(テーブル635[[#This Row],[許可区分(ほ装)]])),\"D\",\"-\"))","v":"-"},{"$f":"IF(NOT(ISBLANK(テーブル635[[#This Row],[塗装]])),VLOOKUP(テーブル635[[#This Row],[塗装]],塗装[],2,TRUE), IF(NOT(ISBLANK(テーブル635[[#This Row],[許可区分（塗装）]])),\"D\",\"-\"))","v":"-"},{"$f":"IF(NOT(ISBLANK(テーブル635[[#This Row],[防水]])),VLOOKUP(テーブル635[[#This Row],[防水]],塗装[],2,TRUE), IF(NOT(ISBLANK(テーブル635[[#This Row],[許可区分（防水）]])),\"D\",\"-\"))","v":"-"},{"$f":"IF(NOT(ISBLANK(テーブル635[[#This Row],[機械器具設置]])),VLOOKUP(テーブル635[[#This Row],[機械器具設置]],塗装[],2,TRUE), IF(NOT(ISBLANK(テーブル635[[#This Row],[許可区分（機械器具）]])),\"D\",\"-\"))","v":"-"},{"$f":"IF(NOT(ISBLANK(テーブル635[[#This Row],[電気通信]])),VLOOKUP(テーブル635[[#This Row],[電気通信]],電気[],2,TRUE), IF(NOT(ISBLANK(テーブル635[[#This Row],[許可区分(電気)]])),\"D\",\"-\"))","v":"C"},{"$f":"IF(NOT(ISBLANK(テーブル635[[#This Row],[水道施設]])),VLOOKUP(テーブル635[[#This Row],[水道施設]],水道[],2,TRUE), IF(NOT(ISBLANK(テーブル635[[#This Row],[許可区分（水道施設）]])),\"D\",\"-\"))","v":"-"}]
[27,"県外","セコム株式会社","東京都渋谷区神宮前一丁目5番1号","吉田　保幸","03-5775-8475","03-5775-8921",null,null,null,null,"特定",1279,"特定",1226,null,null,null,null,null,null,"一般",1098,"一般",1554,null,null,{"$f":"IF(NOT(ISBLANK(テーブル635[[#This Row],[土木一式]])),VLOOKUP(テーブル635[[#This Row],[土木一式]],土木[],2,TRUE), IF(NOT(ISBLANK(テーブル635[[#This Row],[許可区分(土木)]])),\"D\",\"-\"))","v":"-"},{"$f":"IF(NOT(ISBLANK(テーブル635[[#This Row],[建築一式]])),VLOOKUP(テーブル635[[#This Row],[建築一式]],建築[],2,TRUE), IF(NOT(ISBLANK(テーブル635[[#This Row],[許可区分（建築）]])),\"D\",\"-\"))","v":"-"},{"$f":"IF(NOT(ISBLANK(テーブル635[[#This Row],[電気]])),VLOOKUP(テーブル635[[#This Row],[電気]],電気[],2,TRUE), IF(NOT(ISBLANK(テーブル635[[#This Row],[許可区分（電気）]])),\"D\",\"-\"))","v":"A"},{"$f":"IF(NOT(ISBLANK(テーブル635[[#This Row],[管]])),VLOOKUP(テーブル635[[#This Row],[管]],管[],2,TRUE), IF(NOT(ISBLANK(テーブル635[[#This Row],[許可区分（管）]])),\"D\",\"-\"))","v":"A"},{"$f":"IF(NOT(ISBLANK(テーブル635[[#This Row],[ほ装]])),VLOOKUP(テーブル635[[#This Row],[ほ装]],ほ装[],2,TRUE), IF(NOT(ISBLANK(テーブル635[[#This Row],[許可区分(ほ装)]])),\"D\",\"-\"))","v":"-"},{"$f":"IF(NOT(ISBLANK(テーブル635[[#This Row],[塗装]])),VLOOKUP(テーブル635[[#This Row],[塗装]],塗装[],2,TRUE), IF(NOT(ISBLANK(テーブル635[[#This Row],[許可区分（塗装）]])),\"D\",\"-\"))","v":"-"},{"$f":"IF(NOT(ISBLANK(テーブル635[[#This Row],[防水]])),VLOOKUP(テーブル635[[#This Row],[防水]],塗装[],2,TRUE), IF(NOT(ISBLANK(テーブル635[[#This Row],[許可区分（防水）]])),\"D\",\"-\"))","v":"-"},{"$f":"IF(NOT(ISBLANK(テーブル635[[#This Row],[機械器具設置]])),VLOOKUP(テーブル635[[#This Row],[機械器具設置]],塗装[],2,TRUE), IF(NOT(ISBLANK(テーブル635[[#This Row],[許可区分（機械器具）]])),\"D\",\"-\"))","v":"A"},{"$f":"IF(NOT(ISBLANK(テーブル635[[#This Row],[電気通信]])),VLOOKUP(テーブル635[[#This Row],[電気通信]],電気[],2,TRUE), IF(NOT(ISBLANK(テーブル635[[#This Row],[許可区分(電気)]])),\"D\",\"-\"))","v":"A"},{"$f":"IF(NOT(ISBLANK(テーブル635[[#This Row],[水道施設]])),VLOOKUP(テーブル635[[#This Row],[水道施設]],水道[],2,TRUE), IF(NOT(ISBLANK(テーブル635[[#This Row],[許可区分（水道施設）]])),\"D\",\"-\"))","v":"-"}]
[28,"県外","株式会社フソウ　東京支社","東京都中央区日本橋室町二丁目3番1号","岡田　浩史","03-6880-2124","03-6880-2229","特定",1263,null,null,"特定",1251,"特定",1235,null,null,null,null,null,null,"特定",1341,"特定",880,"特定",1385,{"$f":"IF(NOT(ISBLANK(テーブル635[[#This Row],[土木一式]])),VLOOKUP(テーブル635[[#This Row],[土木一式]],土木[],2,TRUE), IF(NOT(ISBLANK(テーブル635[[#This Row],[許可区分(土木)]])),\"D\",\"-\"))","v":"A"},{"$f":"IF(NOT(ISBLANK(テーブル635[[#This Row],[建築一式]])),VLOOKUP(テーブル635[[#This Row],[建築一式]],建築[],2,TRUE), IF(NOT(ISBLANK(テーブル635[[#This Row],[許可区分（建築）]])),\"D\",\"-\"))","v":"-"},{"$f":"IF(NOT(ISBLANK(テーブル635[[#This Row],[電気]])),VLOOKUP(テーブル635[[#This Row],[電気]],電気[],2,TRUE), IF(NOT(ISBLANK(テーブル635[[#This Row],[許可区分（電気）]])),\"D\",\"-\"))","v":"A"},{"$f":"IF(NOT(ISBLANK(テーブル635[[#This Row],[管]])),VLOOKUP(テーブル635[[#This Row],[管]],管[],2,TRUE), IF(NOT(ISBLANK(テーブル635[[#This Row],[許可区分（管）]])),\"D\",\"-\"))","v":"A"},{"$f":"IF(NOT(ISBLANK(テーブル635[[#This Row],[ほ装]])),VLOOKUP(テーブル635[[#This Row],[ほ装]],ほ装[],2,TRUE), IF(NOT(ISBLANK(テーブル635[[#This Row],[許可区分(ほ装)]])),\"D\",\"-\"))","v":"-"},{"$f":"IF(NOT(ISBLANK(テーブル635[[#This Row],[塗装]])),VLOOKUP(テーブル635[[#This Row],[塗装]],塗装[],2,TRUE), IF(NOT(ISBLANK(テーブル635[[#This Row],[許可区分（塗装）]])),\"D\",\"-\"))","v":"-"},{"$f":"IF(NOT(ISBLANK(テーブル635[[#This Row],[防水]])),VLOOKUP(テーブル635[[#This Row],[防水]],塗装[],2,TRUE), IF(NOT(ISBLANK(テーブル635[[#This Row],[許可区分（防水）]])),\"D\",\"-\"))","v":"-"},{"$f":"IF(NOT(ISBLANK(テーブル635[[#This Row],[機械器具設置]])),VLOOKUP(テーブル635[[#This Row],[機械器具設置]],塗装[],2,TRUE), IF(NOT(ISBLANK(テーブル635[[#This Row],[許可区分（機械器具）]])),\"D\",\"-\"))","v":"A"},{"$f":"IF(NOT(ISBLANK(テーブル635[[#This Row],[電気通信]])),VLOOKUP(テーブル635[[#This Row],[電気通信]],電気[],2,TRUE), IF(NOT(ISBLANK(テーブル635[[#This Row],[許可区分(電気)]])),\"D\",\"-\"))","v":"A"},{"$f":"IF(NOT(ISBLANK(テーブル635[[#This Row],[水道施設]])),VLOOKUP(テーブル635[[#This Row],[水道施設]],水道[],2,TRUE), IF(NOT(ISBLANK(テーブル635[[#This Row],[許可区分（水道施設）]])),\"D\",\"-\"))","v":"A"}]

{"sheet":"等級(21-4月現在)","index":2,"n_rows":20,"n_cols":8,"rows_kept":20,"cut":false,"hidden":false,"merged":[]}
["列1","土木一式",null,"列1","建築一式",null,"列1","電気"]
[0,"-",null,0,"-",null,0,"-"]
[1,"D",null,1,"D",null,1,"D"]
[550,"C",null,600,"C",null,600,"C"]
[650,"B",null,700,"B",null,700,"B"]
[750,"A",null,800,"A",null,800,"A"]
[]
["列1","管",null,"列1","塗装",null,"列1","水道"]
[0,"-",null,0,"-",null,0,"-"]
[1,"D",null,1,"D",null,1,"D"]
[500,"C",null,600,"C",null,600,"C"]
[600,"B",null,700,"B",null,700,"B"]
[700,"A",null,800,"A",null,800,"A"]
[]
["列1","ほ装"]
[0,"-"]
[1,"D"]
[500,"C"]
[600,"B"]
[700,"A"]